Body Name,Body,Expense Area,Expense Type,Expense Code,Date Paid,Transaction Number,Amount,Category,Supplier Name,Registration Number,Supplier ID
North Lincolnshire Council,http://data.ordnancesurvey.co.uk/id/7000000000025623,Central Services To Public,Business Support Grants,6090,22/07/2020,5880262,"10,000.00",REVENUE,12 The Dell,,CD028830
North Lincolnshire Council,http://data.ordnancesurvey.co.uk/id/7000000000025623,Childrens & Education,Home To School Transport,4201,15/07/2020,5876678,"98,359.81",REVENUE,2 Way Transport Ltd,6909369,TWO0002O
North Lincolnshire Council,http://data.ordnancesurvey.co.uk/id/7000000000025623,Central Services To Public,Business Support Grants,6090,01/07/2020,5872446,"3,000.00",REVENUE,A1 Cars,,CD027150
North Lincolnshire Council,http://data.ordnancesurvey.co.uk/id/7000000000025623,Childrens & Education,Home To School Transport,4201,01/07/2020,5871950,"6,825.40",REVENUE,A1 Cars,,CAR0399R
North Lincolnshire Council,http://data.ordnancesurvey.co.uk/id/7000000000025623,Childrens & Education,Home To School Transport,4201,24/07/2020,5880283,"4,224.80",REVENUE,A1 Cars,,CAR0399R
North Lincolnshire Council,http://data.ordnancesurvey.co.uk/id/7000000000025623,Central Services To Public,Business Support Grants,6090,16/07/2020,5877638,"7,000.00",REVENUE,A A Stafford & Son,,CD028710
North Lincolnshire Council,http://data.ordnancesurvey.co.uk/id/7000000000025623,Childrens & Education,Payments To Private Orgs,6002,29/07/2020,5882379,605.83,REVENUE,Aba Autism Journeys,,ABA0015A
North Lincolnshire Council,http://data.ordnancesurvey.co.uk/id/7000000000025623,Central Services To Public,Business Support Grants,6090,08/07/2020,5874923,"3,000.00",REVENUE,Abdul Jamil Khan,,CD028170
North Lincolnshire Council,http://data.ordnancesurvey.co.uk/id/7000000000025623,Adult Social Care,Equipment Purchase,5001,17/07/2020,5877372,"3,315.83",REVENUE,Ability Smart Ltd,10875477,ABI0165I
North Lincolnshire Council,http://data.ordnancesurvey.co.uk/id/7000000000025623,Childrens & Education,Home To School Transport,4201,08/07/2020,5873940,"2,578.60",REVENUE,Abu'S Taxis,,ABU0005U
North Lincolnshire Council,http://data.ordnancesurvey.co.uk/id/7000000000025623,Central Services To Public,Business Support Grants,6090,22/07/2020,5880265,"10,000.00",REVENUE,Acetech Metals Limited,,CD028860
North Lincolnshire Council,http://data.ordnancesurvey.co.uk/id/7000000000025623,Central Services To Public,Business Support Grants,6090,01/07/2020,5872505,"10,000.00",REVENUE,Aclad Uk Limited,,CD027740
North Lincolnshire Council,http://data.ordnancesurvey.co.uk/id/7000000000025623,Fin&Inv I&E,Equipment Purchase,5001,10/07/2020,5875616,147.5,REVENUE,Acs (Uk) Ltd,3876023,ACS0022S
North Lincolnshire Council,http://data.ordnancesurvey.co.uk/id/7000000000025623,Childrens & Education,Payments To Private Orgs,6002,29/07/2020,5871548,"14,106.69",REVENUE,Act Fast North Lincolnshire,,ACT0036T
North Lincolnshire Council,http://data.ordnancesurvey.co.uk/id/7000000000025623,Childrens & Education,Payments To Private Orgs,6002,29/07/2020,5871548,280.8,REVENUE,Act Fast North Lincolnshire,,ACT0036T
North Lincolnshire Council,http://data.ordnancesurvey.co.uk/id/7000000000025623,Central Services To Public,Business Support Grants,6090,08/07/2020,5874957,"10,000.00",REVENUE,Actiforce Racing,,CD028410
North Lincolnshire Council,http://data.ordnancesurvey.co.uk/id/7000000000025623,Childrens & Education,Client Transport Costs,6092,10/07/2020,5875350,291.6,REVENUE,Actsure Ltd,2375365,FAS0002S
North Lincolnshire Council,http://data.ordnancesurvey.co.uk/id/7000000000025623,Childrens & Education,Client Transport Costs,6092,10/07/2020,5875351,256,REVENUE,Actsure Ltd,2375365,FAS0002S
North Lincolnshire Council,http://data.ordnancesurvey.co.uk/id/7000000000025623,Childrens & Education,Client Transport Costs,6092,10/07/2020,5875354,765.2,REVENUE,Actsure Ltd,2375365,FAS0002S
North Lincolnshire Council,http://data.ordnancesurvey.co.uk/id/7000000000025623,Childrens & Education,Home To School Transport,4201,08/07/2020,5874135,375,REVENUE,Actsure Ltd,2375365,FAS0002S
North Lincolnshire Council,http://data.ordnancesurvey.co.uk/id/7000000000025623,Childrens & Education,Home To School Transport,4201,08/07/2020,5874137,336,REVENUE,Actsure Ltd,2375365,FAS0002S
North Lincolnshire Council,http://data.ordnancesurvey.co.uk/id/7000000000025623,Childrens & Education,Home To School Transport,4201,08/07/2020,5874140,411.6,REVENUE,Actsure Ltd,2375365,FAS0002S
North Lincolnshire Council,http://data.ordnancesurvey.co.uk/id/7000000000025623,Childrens & Education,Home To School Transport,4201,08/07/2020,5874142,252,REVENUE,Actsure Ltd,2375365,FAS0002S
North Lincolnshire Council,http://data.ordnancesurvey.co.uk/id/7000000000025623,Childrens & Education,Home To School Transport,4201,08/07/2020,5874149,267.8,REVENUE,Actsure Ltd,2375365,FAS0002S
North Lincolnshire Council,http://data.ordnancesurvey.co.uk/id/7000000000025623,Childrens & Education,Home To School Transport,4201,08/07/2020,5874150,273,REVENUE,Actsure Ltd,2375365,FAS0002S
North Lincolnshire Council,http://data.ordnancesurvey.co.uk/id/7000000000025623,Childrens & Education,Home To School Transport,4201,08/07/2020,5874152,243.4,REVENUE,Actsure Ltd,2375365,FAS0002S
North Lincolnshire Council,http://data.ordnancesurvey.co.uk/id/7000000000025623,Childrens & Education,Home To School Transport,4201,08/07/2020,5874154,294,REVENUE,Actsure Ltd,2375365,FAS0002S
North Lincolnshire Council,http://data.ordnancesurvey.co.uk/id/7000000000025623,Childrens & Education,Home To School Transport,4201,08/07/2020,5874157,651,REVENUE,Actsure Ltd,2375365,FAS0002S
North Lincolnshire Council,http://data.ordnancesurvey.co.uk/id/7000000000025623,Housing Services,Other Supplies & Services,5799,08/07/2020,5874133,455.8,REVENUE,Actsure Ltd,2375365,FAS0002S
North Lincolnshire Council,http://data.ordnancesurvey.co.uk/id/7000000000025623,Adult Social Care,Repair & Maintenance Costs,3000,03/07/2020,5872672,396.42,REVENUE,Acumen Solutions Ltd,3320506,ACU0004U
North Lincolnshire Council,http://data.ordnancesurvey.co.uk/id/7000000000025623,Adult Social Care,Repair & Maintenance Costs,3000,10/07/2020,5875314,452.4,REVENUE,Acumen Solutions Ltd,3320506,ACU0004U
North Lincolnshire Council,http://data.ordnancesurvey.co.uk/id/7000000000025623,Central Services To Public,Repair & Maintenance Costs,3000,03/07/2020,5872667,0,REVENUE,Acumen Solutions Ltd,3320506,ACU0004U
North Lincolnshire Council,http://data.ordnancesurvey.co.uk/id/7000000000025623,Central Services To Public,Repair & Maintenance Costs,3000,03/07/2020,5872668,0,REVENUE,Acumen Solutions Ltd,3320506,ACU0004U
North Lincolnshire Council,http://data.ordnancesurvey.co.uk/id/7000000000025623,Central Services To Public,Repair & Maintenance Costs,3000,03/07/2020,5872669,0,REVENUE,Acumen Solutions Ltd,3320506,ACU0004U
North Lincolnshire Council,http://data.ordnancesurvey.co.uk/id/7000000000025623,Central Services To Public,Repair & Maintenance Costs,3000,03/07/2020,5872672,0,REVENUE,Acumen Solutions Ltd,3320506,ACU0004U
North Lincolnshire Council,http://data.ordnancesurvey.co.uk/id/7000000000025623,Central Services To Public,Repair & Maintenance Costs,3000,03/07/2020,5872673,0,REVENUE,Acumen Solutions Ltd,3320506,ACU0004U
North Lincolnshire Council,http://data.ordnancesurvey.co.uk/id/7000000000025623,Central Services To Public,Repair & Maintenance Costs,3000,10/07/2020,5875300,0,REVENUE,Acumen Solutions Ltd,3320506,ACU0004U
North Lincolnshire Council,http://data.ordnancesurvey.co.uk/id/7000000000025623,Central Services To Public,Repair & Maintenance Costs,3000,10/07/2020,5875304,0,REVENUE,Acumen Solutions Ltd,3320506,ACU0004U
North Lincolnshire Council,http://data.ordnancesurvey.co.uk/id/7000000000025623,Central Services To Public,Repair & Maintenance Costs,3000,10/07/2020,5875312,0,REVENUE,Acumen Solutions Ltd,3320506,ACU0004U
North Lincolnshire Council,http://data.ordnancesurvey.co.uk/id/7000000000025623,Central Services To Public,Repair & Maintenance Costs,3000,10/07/2020,5875314,0,REVENUE,Acumen Solutions Ltd,3320506,ACU0004U
North Lincolnshire Council,http://data.ordnancesurvey.co.uk/id/7000000000025623,Central Services To Public,Repair & Maintenance Costs,3000,10/07/2020,5875317,0,REVENUE,Acumen Solutions Ltd,3320506,ACU0004U
North Lincolnshire Council,http://data.ordnancesurvey.co.uk/id/7000000000025623,Childrens & Education,Repair & Maintenance Costs,3000,03/07/2020,5872667,220.06,REVENUE,Acumen Solutions Ltd,3320506,ACU0004U
North Lincolnshire Council,http://data.ordnancesurvey.co.uk/id/7000000000025623,Childrens & Education,Repair & Maintenance Costs,3000,03/07/2020,5872669,220.06,REVENUE,Acumen Solutions Ltd,3320506,ACU0004U
North Lincolnshire Council,http://data.ordnancesurvey.co.uk/id/7000000000025623,Childrens & Education,Repair & Maintenance Costs,3000,10/07/2020,5875304,180,REVENUE,Acumen Solutions Ltd,3320506,ACU0004U
North Lincolnshire Council,http://data.ordnancesurvey.co.uk/id/7000000000025623,Childrens & Education,Repair & Maintenance Costs,3000,15/07/2020,5875925,"5,805.60",REVENUE,Acumen Solutions Ltd,3320506,ACU0004U
North Lincolnshire Council,http://data.ordnancesurvey.co.uk/id/7000000000025623,Childrens & Education,Repair & Maintenance Costs,3000,15/07/2020,5875927,591.56,REVENUE,Acumen Solutions Ltd,3320506,ACU0004U
North Lincolnshire Council,http://data.ordnancesurvey.co.uk/id/7000000000025623,Childrens & Education,Repair & Maintenance Costs,3000,17/07/2020,5877659,431.57,REVENUE,Acumen Solutions Ltd,3320506,ACU0004U
North Lincolnshire Council,http://data.ordnancesurvey.co.uk/id/7000000000025623,Corporate And Democratic Core,Repair & Maintenance Costs,3000,03/07/2020,5872663,0,REVENUE,Acumen Solutions Ltd,3320506,ACU0004U
North Lincolnshire Council,http://data.ordnancesurvey.co.uk/id/7000000000025623,Corporate And Democratic Core,Repair & Maintenance Costs,3000,03/07/2020,5872665,0,REVENUE,Acumen Solutions Ltd,3320506,ACU0004U
North Lincolnshire Council,http://data.ordnancesurvey.co.uk/id/7000000000025623,Corporate And Democratic Core,Repair & Maintenance Costs,3000,03/07/2020,5872666,0,REVENUE,Acumen Solutions Ltd,3320506,ACU0004U
North Lincolnshire Council,http://data.ordnancesurvey.co.uk/id/7000000000025623,Corporate And Democratic Core,Repair & Maintenance Costs,3000,10/07/2020,5875288,0,REVENUE,Acumen Solutions Ltd,3320506,ACU0004U
North Lincolnshire Council,http://data.ordnancesurvey.co.uk/id/7000000000025623,Corporate And Democratic Core,Repair & Maintenance Costs,3000,10/07/2020,5875301,0,REVENUE,Acumen Solutions Ltd,3320506,ACU0004U
North Lincolnshire Council,http://data.ordnancesurvey.co.uk/id/7000000000025623,Corporate And Democratic Core,Repair & Maintenance Costs,3000,10/07/2020,5875302,0,REVENUE,Acumen Solutions Ltd,3320506,ACU0004U
North Lincolnshire Council,http://data.ordnancesurvey.co.uk/id/7000000000025623,Corporate And Democratic Core,Repair & Maintenance Costs,3000,10/07/2020,5875304,60,REVENUE,Acumen Solutions Ltd,3320506,ACU0004U
North Lincolnshire Council,http://data.ordnancesurvey.co.uk/id/7000000000025623,Culture & Related Services,Repair & Maintenance Costs,3000,10/07/2020,5875304,600,REVENUE,Acumen Solutions Ltd,3320506,ACU0004U
North Lincolnshire Council,http://data.ordnancesurvey.co.uk/id/7000000000025623,Culture & Related Services,Repair & Maintenance Costs,3000,10/07/2020,5875317,370.8,REVENUE,Acumen Solutions Ltd,3320506,ACU0004U
North Lincolnshire Council,http://data.ordnancesurvey.co.uk/id/7000000000025623,Culture & Related Services,Repair & Maintenance Costs,3000,17/07/2020,5877659,"2,037.78",REVENUE,Acumen Solutions Ltd,3320506,ACU0004U
North Lincolnshire Council,http://data.ordnancesurvey.co.uk/id/7000000000025623,Environmental & Regulatory Svs,Repair & Maintenance Costs,3000,10/07/2020,5875304,"1,140.00",REVENUE,Acumen Solutions Ltd,3320506,ACU0004U
North Lincolnshire Council,http://data.ordnancesurvey.co.uk/id/7000000000025623,Environmental & Regulatory Svs,Repair & Maintenance Costs,3000,17/07/2020,5877659,"1,021.54",REVENUE,Acumen Solutions Ltd,3320506,ACU0004U
North Lincolnshire Council,http://data.ordnancesurvey.co.uk/id/7000000000025623,Fin&Inv I&E,Equipment Purchase,5001,03/07/2020,5872673,226.81,REVENUE,Acumen Solutions Ltd,3320506,ACU0004U
North Lincolnshire Council,http://data.ordnancesurvey.co.uk/id/7000000000025623,Fin&Inv I&E,Repair & Maintenance Costs,3000,03/07/2020,5872668,220.06,REVENUE,Acumen Solutions Ltd,3320506,ACU0004U
North Lincolnshire Council,http://data.ordnancesurvey.co.uk/id/7000000000025623,Fin&Inv I&E,Repair & Maintenance Costs,3000,17/07/2020,5877659,87.3,REVENUE,Acumen Solutions Ltd,3320506,ACU0004U
North Lincolnshire Council,http://data.ordnancesurvey.co.uk/id/7000000000025623,Highways & Transport,Repair & Maintenance Costs,3000,10/07/2020,5875300,"1,576.93",REVENUE,Acumen Solutions Ltd,3320506,ACU0004U
North Lincolnshire Council,http://data.ordnancesurvey.co.uk/id/7000000000025623,Highways & Transport,Repair & Maintenance Costs,3000,10/07/2020,5875304,60,REVENUE,Acumen Solutions Ltd,3320506,ACU0004U
North Lincolnshire Council,http://data.ordnancesurvey.co.uk/id/7000000000025623,Highways & Transport,Repair & Maintenance Costs,3000,10/07/2020,5875312,301.6,REVENUE,Acumen Solutions Ltd,3320506,ACU0004U
North Lincolnshire Council,http://data.ordnancesurvey.co.uk/id/7000000000025623,Highways & Transport,Repair & Maintenance Costs,3000,17/07/2020,5877659,483.31,REVENUE,Acumen Solutions Ltd,3320506,ACU0004U
North Lincolnshire Council,http://data.ordnancesurvey.co.uk/id/7000000000025623,Highways & Transport,Repair & Maintenance Costs,3000,17/07/2020,5877659,747.81,REVENUE,Acumen Solutions Ltd,3320506,ACU0004U
North Lincolnshire Council,http://data.ordnancesurvey.co.uk/id/7000000000025623,Central Services To Public,Business Support Grants,6090,08/07/2020,5874956,"10,000.00",REVENUE,Adams Joinery,,CD028400
North Lincolnshire Council,http://data.ordnancesurvey.co.uk/id/7000000000025623,Public Health,Payments To Health Providers,6019,15/07/2020,5874439,"14,474.42",REVENUE,Agencia Consulting Ltd,3448042,AGE0032E
North Lincolnshire Council,http://data.ordnancesurvey.co.uk/id/7000000000025623,Central Services To Public,Business Support Grants,6090,01/07/2020,5872454,"2,000.00",REVENUE,A J Miller Limited,,CD027230
North Lincolnshire Council,http://data.ordnancesurvey.co.uk/id/7000000000025623,Central Services To Public,Business Support Grants,6090,15/07/2020,5877391,"10,000.00",REVENUE,Ak Salih,,CD028580
North Lincolnshire Council,http://data.ordnancesurvey.co.uk/id/7000000000025623,Childrens & Education,Payments To Private Orgs,6002,03/07/2020,5872691,554.4,REVENUE,Alison Fixter,,FIX0036X
North Lincolnshire Council,http://data.ordnancesurvey.co.uk/id/7000000000025623,Central Services To Public,Business Support Grants,6090,08/07/2020,5874938,"2,000.00",REVENUE,Alkborough Cricket Club,,CD028320
North Lincolnshire Council,http://data.ordnancesurvey.co.uk/id/7000000000025623,Adult Social Care,Gen Office Exp (Incl Postage),5603,15/07/2020,5876784,646.73,REVENUE,Allied Publicity Services (Manchester) Ltd,681528,APS0013S
North Lincolnshire Council,http://data.ordnancesurvey.co.uk/id/7000000000025623,Childrens & Education,Payments To Private Orgs,6002,03/07/2020,5872692,"1,486.80",REVENUE,Amanda Foley,,FOL0034L
North Lincolnshire Council,http://data.ordnancesurvey.co.uk/id/7000000000025623,Childrens & Education,Payments To Private Orgs,6002,24/07/2020,5880396,950.4,REVENUE,Amanda Foley,,FOL0034L
North Lincolnshire Council,http://data.ordnancesurvey.co.uk/id/7000000000025623,Adult Social Care,Payments To Private Orgs,6002,03/07/2020,5872372,"39,697.08",REVENUE,Amara Care,4459044,AMA0002A
North Lincolnshire Council,http://data.ordnancesurvey.co.uk/id/7000000000025623,Adult Social Care,Payments To Private Orgs,6002,03/07/2020,5872372,"7,509.96",REVENUE,Amara Care,4459044,AMA0002A
North Lincolnshire Council,http://data.ordnancesurvey.co.uk/id/7000000000025623,Adult Social Care,Payments To Private Orgs,6002,31/07/2020,5882764,"39,697.08",REVENUE,Amara Care,4459044,AMA0002A
North Lincolnshire Council,http://data.ordnancesurvey.co.uk/id/7000000000025623,Adult Social Care,Payments To Private Orgs,6002,31/07/2020,5882764,"7,509.96",REVENUE,Amara Care,4459044,AMA0002A
North Lincolnshire Council,http://data.ordnancesurvey.co.uk/id/7000000000025623,Adult Social Care,Payments To Private Orgs,6002,31/07/2020,5883365,"11,358.24",REVENUE,Amara Care,4459044,AMA0002A
North Lincolnshire Council,http://data.ordnancesurvey.co.uk/id/7000000000025623,Adult Social Care Capital,Other Costs,A085,03/07/2020,5872943,615,CAPITAL,Amazon Payments Uk Ltd,,AMA0016A
North Lincolnshire Council,http://data.ordnancesurvey.co.uk/id/7000000000025623,Planning Services,Client Related Costs,5534,03/07/2020,5872548,474.9,REVENUE,Amazon Payments Uk Ltd,,AMA0016A
North Lincolnshire Council,http://data.ordnancesurvey.co.uk/id/7000000000025623,Central Services To Public,Business Support Grants,6090,29/07/2020,5882898,"10,000.00",REVENUE,A M Bensons Limited,,CD029180
North Lincolnshire Council,http://data.ordnancesurvey.co.uk/id/7000000000025623,Central Services To Public,Business Support Grants,6090,01/07/2020,5872517,"10,000.00",REVENUE,Am Holdings Limited,,CD027860
North Lincolnshire Council,http://data.ordnancesurvey.co.uk/id/7000000000025623,Culture & Related Services,Heating Fuels,3104,08/07/2020,5874202,"2,240.00",REVENUE,Amp Biomass Fuels Ltd,5735950,AMP0041P
North Lincolnshire Council,http://data.ordnancesurvey.co.uk/id/7000000000025623,Culture & Related Services,Heating Fuels,3104,29/07/2020,5881878,"1,834.56",REVENUE,Amp Biomass Fuels Ltd,5735950,AMP0041P
North Lincolnshire Council,http://data.ordnancesurvey.co.uk/id/7000000000025623,Culture & Related Services,Heating Fuels,3104,29/07/2020,5881879,"2,746.80",REVENUE,Amp Biomass Fuels Ltd,5735950,AMP0041P
North Lincolnshire Council,http://data.ordnancesurvey.co.uk/id/7000000000025623,Adult Social Care,Payments To Private Orgs,6002,03/07/2020,5872374,"3,364.20",REVENUE,Amphion Home Care Services Ltd,3480829,AMP0002P
North Lincolnshire Council,http://data.ordnancesurvey.co.uk/id/7000000000025623,Adult Social Care,Payments To Private Orgs,6002,03/07/2020,5872374,"120,457.53",REVENUE,Amphion Home Care Services Ltd,3480829,AMP0002P
North Lincolnshire Council,http://data.ordnancesurvey.co.uk/id/7000000000025623,Adult Social Care,Payments To Private Orgs,6002,31/07/2020,5882768,"113,164.15",REVENUE,Amphion Home Care Services Ltd,3480829,AMP0002P
North Lincolnshire Council,http://data.ordnancesurvey.co.uk/id/7000000000025623,Adult Social Care,Payments To Private Orgs,6002,31/07/2020,5882768,"3,364.20",REVENUE,Amphion Home Care Services Ltd,3480829,AMP0002P
North Lincolnshire Council,http://data.ordnancesurvey.co.uk/id/7000000000025623,Adult Social Care,Payments To Private Orgs,6002,31/07/2020,5882769,318.79,REVENUE,Amphion Home Care Services Ltd,3480829,AMP0002P
North Lincolnshire Council,http://data.ordnancesurvey.co.uk/id/7000000000025623,Adult Social Care,Payments To Private Orgs,6002,31/07/2020,5883367,"27,231.19",REVENUE,Amphion Home Care Services Ltd,3480829,AMP0002P
North Lincolnshire Council,http://data.ordnancesurvey.co.uk/id/7000000000025623,Central Services To Public,Business Support Grants,6090,01/07/2020,5872518,"25,000.00",REVENUE,Ams No Dig Limited,,CD027870
North Lincolnshire Council,http://data.ordnancesurvey.co.uk/id/7000000000025623,Childrens & Education,Home To School Transport,4201,08/07/2020,5874259,"6,019.00",REVENUE,Amvale Medical Transport Ltd,,AMV0003V
North Lincolnshire Council,http://data.ordnancesurvey.co.uk/id/7000000000025623,Childrens & Education,Home To School Transport,4201,10/07/2020,5874319,"22,680.80",REVENUE,Amvale Medical Transport Ltd,,AMV0003V
North Lincolnshire Council,http://data.ordnancesurvey.co.uk/id/7000000000025623,Childrens & Education,Home To School Transport,4201,10/07/2020,5874320,"30,735.20",REVENUE,Amvale Medical Transport Ltd,,AMV0003V
North Lincolnshire Council,http://data.ordnancesurvey.co.uk/id/7000000000025623,Childrens & Education,Home To School Transport,4201,10/07/2020,5874323,-288,REVENUE,Amvale Medical Transport Ltd,,AMV0003V
North Lincolnshire Council,http://data.ordnancesurvey.co.uk/id/7000000000025623,Central Services To Public,Business Support Grants,6090,01/07/2020,5872543,"10,000.00",REVENUE,Ancholme Valley Heritage Trust Ltd,,CD028110
North Lincolnshire Council,http://data.ordnancesurvey.co.uk/id/7000000000025623,Central Services To Public,Business Support Grants,6090,08/07/2020,5874960,"10,000.00",REVENUE,Ancholme Valley Heritage Trust Ltd,,CD028440
North Lincolnshire Council,http://data.ordnancesurvey.co.uk/id/7000000000025623,Adult Social Care,Payments To Health Providers,6019,17/07/2020,5877540,522.09,REVENUE,Ancora Medical Practice,,KEN0064N
North Lincolnshire Council,http://data.ordnancesurvey.co.uk/id/7000000000025623,Central Services To Public,Business Support Grants,6090,08/07/2020,5874929,"25,000.00",REVENUE,Appleby Frodingham Sports & Social Club,,CD028230
North Lincolnshire Council,http://data.ordnancesurvey.co.uk/id/7000000000025623,Childrens & Education,Payments To Private Orgs,6002,03/07/2020,5872682,743.4,REVENUE,Apple Tree Day Nursery Ltd,,APP0024P
North Lincolnshire Council,http://data.ordnancesurvey.co.uk/id/7000000000025623,Corporate And Democratic Core,"Licenses, Subs & Memberships",5510,31/07/2020,5882335,"4,213.00",REVENUE,Apse,,APS0007S
North Lincolnshire Council,http://data.ordnancesurvey.co.uk/id/7000000000025623,Childrens & Education,Home To School Transport,4201,08/07/2020,5874258,"3,608.00",REVENUE,Aria Cars,,ARI0002I
North Lincolnshire Council,http://data.ordnancesurvey.co.uk/id/7000000000025623,Housing Services,Other Supplies & Services,5799,15/07/2020,5876930,"2,358.33",REVENUE,Arties Mill,,ART0028T
North Lincolnshire Council,http://data.ordnancesurvey.co.uk/id/7000000000025623,Housing Services,Other Supplies & Services,5799,22/07/2020,5879309,819,REVENUE,Arties Mill,,ART0028T
North Lincolnshire Council,http://data.ordnancesurvey.co.uk/id/7000000000025623,Housing Services,Other Supplies & Services,5799,22/07/2020,5879311,"2,558.33",REVENUE,Arties Mill,,ART0028T
North Lincolnshire Council,http://data.ordnancesurvey.co.uk/id/7000000000025623,Highways & Transport,Equipment Maint.& Repair,5003,29/07/2020,5882093,640,REVENUE,Arven Chemicals Ltd,1606370,ARV0006V
North Lincolnshire Council,http://data.ordnancesurvey.co.uk/id/7000000000025623,Central Services To Public,Business Support Grants,6090,01/07/2020,5872488,"25,000.00",REVENUE,Ashbourne Hotel Limited,,CD027570
North Lincolnshire Council,http://data.ordnancesurvey.co.uk/id/7000000000025623,Childrens & Education,Home To School Transport,4201,03/07/2020,5872819,"21,482.74",REVENUE,Ashby Cars Ltd,,ROQ0001Q
North Lincolnshire Council,http://data.ordnancesurvey.co.uk/id/7000000000025623,Childrens & Education,Rents,3201,08/07/2020,5873324,306,REVENUE,Ashby Community Association,,ASH0114H
North Lincolnshire Council,http://data.ordnancesurvey.co.uk/id/7000000000025623,Childrens & Education,Rents,3201,08/07/2020,5873325,510,REVENUE,Ashby Community Association,,ASH0114H
North Lincolnshire Council,http://data.ordnancesurvey.co.uk/id/7000000000025623,Childrens & Education,Home To School Transport,4201,10/07/2020,5874321,"17,048.60",REVENUE,Ash Taxis,,ASH0070H
North Lincolnshire Council,http://data.ordnancesurvey.co.uk/id/7000000000025623,Environmental & Regulatory Svs,Other Professional Fees,5829,08/07/2020,5871855,290.7,REVENUE,Asigns (Scunthorpe) Ltd,,ASI0002I
North Lincolnshire Council,http://data.ordnancesurvey.co.uk/id/7000000000025623,Fin&Inv I&E,Telephone Rent/Calls,5403,29/07/2020,5882316,456.75,REVENUE,Ask4 Business Ltd,3614661,ASK0163K
North Lincolnshire Council,http://data.ordnancesurvey.co.uk/id/7000000000025623,Fin&Inv I&E,Telephone Rent/Calls,5403,29/07/2020,5882317,"1,600.00",REVENUE,Ask4 Business Ltd,3614661,ASK0163K
North Lincolnshire Council,http://data.ordnancesurvey.co.uk/id/7000000000025623,Adult Social Care,Payments To Private Orgs,6002,03/07/2020,5872377,"13,126.73",REVENUE,A.T.C.S. Ltd,5057212,ATC0006C
North Lincolnshire Council,http://data.ordnancesurvey.co.uk/id/7000000000025623,Adult Social Care,Payments To Private Orgs,6002,03/07/2020,5872377,"40,997.97",REVENUE,A.T.C.S. Ltd,5057212,ATC0006C
North Lincolnshire Council,http://data.ordnancesurvey.co.uk/id/7000000000025623,Adult Social Care,Payments To Private Orgs,6002,31/07/2020,5882772,"1,665.73",REVENUE,A.T.C.S. Ltd,5057212,ATC0006C
North Lincolnshire Council,http://data.ordnancesurvey.co.uk/id/7000000000025623,Adult Social Care,Payments To Private Orgs,6002,31/07/2020,5882772,71.59,REVENUE,A.T.C.S. Ltd,5057212,ATC0006C
North Lincolnshire Council,http://data.ordnancesurvey.co.uk/id/7000000000025623,Adult Social Care,Payments To Private Orgs,6002,31/07/2020,5882774,"40,237.38",REVENUE,A.T.C.S. Ltd,5057212,ATC0006C
North Lincolnshire Council,http://data.ordnancesurvey.co.uk/id/7000000000025623,Adult Social Care,Payments To Private Orgs,6002,31/07/2020,5882774,"12,951.25",REVENUE,A.T.C.S. Ltd,5057212,ATC0006C
North Lincolnshire Council,http://data.ordnancesurvey.co.uk/id/7000000000025623,Adult Social Care,Payments To Private Orgs,6002,31/07/2020,5883369,"13,792.71",REVENUE,A.T.C.S. Ltd,5057212,ATC0006C
North Lincolnshire Council,http://data.ordnancesurvey.co.uk/id/7000000000025623,Central Services To Public,Business Support Grants,6090,08/07/2020,5874955,"10,000.00",REVENUE,A Torn Construction Ltd,,CD028390
North Lincolnshire Council,http://data.ordnancesurvey.co.uk/id/7000000000025623,Housing Services,Other Supplies & Services,5799,17/07/2020,5877896,476.3,REVENUE,Atwal Property,,ATW0010W
North Lincolnshire Council,http://data.ordnancesurvey.co.uk/id/7000000000025623,Housing Services,Other Supplies & Services,5799,17/07/2020,5877897,476.3,REVENUE,Atwal Property,,ATW0010W
North Lincolnshire Council,http://data.ordnancesurvey.co.uk/id/7000000000025623,Adult Social Care,Payments To Private Orgs,6002,03/07/2020,5872378,"4,353.72",REVENUE,Autism Plus Accounts,,AUT0004T
North Lincolnshire Council,http://data.ordnancesurvey.co.uk/id/7000000000025623,Adult Social Care,Payments To Private Orgs,6002,31/07/2020,5882775,"4,353.72",REVENUE,Autism Plus Accounts,,AUT0004T
North Lincolnshire Council,http://data.ordnancesurvey.co.uk/id/7000000000025623,Central Services To Public,Business Support Grants,6090,22/07/2020,5880279,"10,000.00",REVENUE,Avis Budget Uk Ltd,,CD029000
North Lincolnshire Council,http://data.ordnancesurvey.co.uk/id/7000000000025623,Childrens & Education,Home To School Transport,4201,10/07/2020,5874316,440,REVENUE,Axholme Taxis,,GLE0073E
North Lincolnshire Council,http://data.ordnancesurvey.co.uk/id/7000000000025623,Childrens & Education,Home To School Transport,4201,10/07/2020,5874317,673.2,REVENUE,Axholme Taxis,,GLE0073E
North Lincolnshire Council,http://data.ordnancesurvey.co.uk/id/7000000000025623,Childrens & Education,Home To School Transport,4201,10/07/2020,5874318,660,REVENUE,Axholme Taxis,,GLE0073E
North Lincolnshire Council,http://data.ordnancesurvey.co.uk/id/7000000000025623,Childrens & Education,Home To School Transport,4201,24/07/2020,5880296,397.8,REVENUE,Axholme Taxis,,GLE0073E
North Lincolnshire Council,http://data.ordnancesurvey.co.uk/id/7000000000025623,Childrens & Education,Home To School Transport,4201,24/07/2020,5880298,390,REVENUE,Axholme Taxis,,GLE0073E
North Lincolnshire Council,http://data.ordnancesurvey.co.uk/id/7000000000025623,Childrens & Education,Legal Fees,5823,03/07/2020,5872823,"1,990.00",REVENUE,Aztec Translations,,AZT0006T
North Lincolnshire Council,http://data.ordnancesurvey.co.uk/id/7000000000025623,Adult Social Care,Other Vehicle Costs,4005,29/07/2020,5882104,355.28,REVENUE,B A Bush & Sons  Ltd,,BUS0283S
North Lincolnshire Council,http://data.ordnancesurvey.co.uk/id/7000000000025623,Childrens & Education,Other Vehicle Costs,4005,10/07/2020,5875441,239.5,REVENUE,B A Bush & Sons  Ltd,,BUS0283S
North Lincolnshire Council,http://data.ordnancesurvey.co.uk/id/7000000000025623,Childrens & Education,Other Vehicle Costs,4005,10/07/2020,5875442,249.48,REVENUE,B A Bush & Sons  Ltd,,BUS0283S
North Lincolnshire Council,http://data.ordnancesurvey.co.uk/id/7000000000025623,Childrens & Education,Other Vehicle Costs,4005,29/07/2020,5882099,256.16,REVENUE,B A Bush & Sons  Ltd,,BUS0283S
North Lincolnshire Council,http://data.ordnancesurvey.co.uk/id/7000000000025623,Environmental & Regulatory Svs,Other Vehicle Costs,4005,10/07/2020,5875428,454,REVENUE,B A Bush & Sons  Ltd,,BUS0283S
North Lincolnshire Council,http://data.ordnancesurvey.co.uk/id/7000000000025623,Environmental & Regulatory Svs,Other Vehicle Costs,4005,10/07/2020,5875434,215.15,REVENUE,B A Bush & Sons  Ltd,,BUS0283S
North Lincolnshire Council,http://data.ordnancesurvey.co.uk/id/7000000000025623,Environmental & Regulatory Svs,Other Vehicle Costs,4005,29/07/2020,5882096,454,REVENUE,B A Bush & Sons  Ltd,,BUS0283S
North Lincolnshire Council,http://data.ordnancesurvey.co.uk/id/7000000000025623,Highways & Transport,Other Vehicle Costs,4005,29/07/2020,5882097,212,REVENUE,B A Bush & Sons  Ltd,,BUS0283S
North Lincolnshire Council,http://data.ordnancesurvey.co.uk/id/7000000000025623,Highways & Transport,Other Vehicle Costs,4005,29/07/2020,5882103,472,REVENUE,B A Bush & Sons  Ltd,,BUS0283S
North Lincolnshire Council,http://data.ordnancesurvey.co.uk/id/7000000000025623,Adult Social Care,Other Supplies & Services,5799,24/07/2020,5880342,414,REVENUE,Back Care Solutions Limited,,BAC0060C
North Lincolnshire Council,http://data.ordnancesurvey.co.uk/id/7000000000025623,Central Services To Public,Business Support Grants,6090,08/07/2020,5872438,"5,000.00",REVENUE,Bak Services,,CD027070
North Lincolnshire Council,http://data.ordnancesurvey.co.uk/id/7000000000025623,Central Services To Public,Business Support Grants,6090,01/07/2020,5872442,"3,000.00",REVENUE,Ballpool Heaven,,CD027110
North Lincolnshire Council,http://data.ordnancesurvey.co.uk/id/7000000000025623,Central Services To Public,Business Support Grants,6090,15/07/2020,5877396,"25,000.00",REVENUE,Bapp Industrial Supplies (Scunthorpe) Ltd,,CD028630
North Lincolnshire Council,http://data.ordnancesurvey.co.uk/id/7000000000025623,Central Services To Public,Business Support Grants,6090,01/07/2020,5872535,"4,000.00",REVENUE,Ba Properties 2014 Ltd,,CD028040
North Lincolnshire Council,http://data.ordnancesurvey.co.uk/id/7000000000025623,Childrens & Education,Payments To Private Orgs,6002,10/07/2020,5875385,"19,499.40",REVENUE,Barnardo Services Ltd,,BAR0182R
North Lincolnshire Council,http://data.ordnancesurvey.co.uk/id/7000000000025623,Childrens & Education,Payments To Voluntary Orgs,6001,03/07/2020,5872684,297.36,REVENUE,Barnetby Under Fives Playgroup,,BAR0021R
North Lincolnshire Council,http://data.ordnancesurvey.co.uk/id/7000000000025623,Central Services To Public,Materials,5004,31/07/2020,5883228,0,REVENUE,Barrier Security,,BAR0421R
North Lincolnshire Council,http://data.ordnancesurvey.co.uk/id/7000000000025623,Central Services To Public,Repair & Maintenance Costs,3000,08/07/2020,5874203,0,REVENUE,Barrier Security,,BAR0421R
North Lincolnshire Council,http://data.ordnancesurvey.co.uk/id/7000000000025623,Central Services To Public,Repair & Maintenance Costs,3000,08/07/2020,5874216,0,REVENUE,Barrier Security,,BAR0421R
North Lincolnshire Council,http://data.ordnancesurvey.co.uk/id/7000000000025623,Central Services To Public,Repair & Maintenance Costs,3000,31/07/2020,5883221,0,REVENUE,Barrier Security,,BAR0421R
North Lincolnshire Council,http://data.ordnancesurvey.co.uk/id/7000000000025623,Central Services To Public,Repair & Maintenance Costs,3000,31/07/2020,5883255,0,REVENUE,Barrier Security,,BAR0421R
North Lincolnshire Council,http://data.ordnancesurvey.co.uk/id/7000000000025623,Corporate And Democratic Core,Repair & Maintenance Costs,3000,08/07/2020,5874203,310.9,REVENUE,Barrier Security,,BAR0421R
North Lincolnshire Council,http://data.ordnancesurvey.co.uk/id/7000000000025623,Corporate And Democratic Core,Repair & Maintenance Costs,3000,31/07/2020,5883211,0,REVENUE,Barrier Security,,BAR0421R
North Lincolnshire Council,http://data.ordnancesurvey.co.uk/id/7000000000025623,Corporate And Democratic Core,Repair & Maintenance Costs,3000,31/07/2020,5883225,0,REVENUE,Barrier Security,,BAR0421R
North Lincolnshire Council,http://data.ordnancesurvey.co.uk/id/7000000000025623,Culture & Related Services,Repair & Maintenance Costs,3000,31/07/2020,5883221,456.15,REVENUE,Barrier Security,,BAR0421R
North Lincolnshire Council,http://data.ordnancesurvey.co.uk/id/7000000000025623,Environmental & Regulatory Svs,Repair & Maintenance Costs,3000,08/07/2020,5874216,258.5,REVENUE,Barrier Security,,BAR0421R
North Lincolnshire Council,http://data.ordnancesurvey.co.uk/id/7000000000025623,Environmental & Regulatory Svs,Repair & Maintenance Costs,3000,31/07/2020,5883255,259,REVENUE,Barrier Security,,BAR0421R
North Lincolnshire Council,http://data.ordnancesurvey.co.uk/id/7000000000025623,Highways & Transport,Repair & Maintenance Costs,3000,31/07/2020,5883228,261.5,REVENUE,Barrier Security,,BAR0421R
North Lincolnshire Council,http://data.ordnancesurvey.co.uk/id/7000000000025623,Planning Services,Repair & Maintenance Costs,3000,31/07/2020,5883211,315.69,REVENUE,Barrier Security,,BAR0421R
North Lincolnshire Council,http://data.ordnancesurvey.co.uk/id/7000000000025623,Childrens & Education,Client Transport Costs,6092,08/07/2020,5874255,"8,744.00",REVENUE,Barton Tt Taxis Ltd,7405760,BAR0888R
North Lincolnshire Council,http://data.ordnancesurvey.co.uk/id/7000000000025623,Childrens & Education,Home To School Transport,4201,08/07/2020,5874261,880,REVENUE,Barton Tt Taxis Ltd,7405760,BAR0888R
North Lincolnshire Council,http://data.ordnancesurvey.co.uk/id/7000000000025623,Childrens & Education,Home To School Transport,4201,08/07/2020,5874262,"1,496.00",REVENUE,Barton Tt Taxis Ltd,7405760,BAR0888R
North Lincolnshire Council,http://data.ordnancesurvey.co.uk/id/7000000000025623,Childrens & Education,Home To School Transport,4201,08/07/2020,5874263,576,REVENUE,Barton Tt Taxis Ltd,7405760,BAR0888R
North Lincolnshire Council,http://data.ordnancesurvey.co.uk/id/7000000000025623,Childrens & Education,Home To School Transport,4201,08/07/2020,5874264,352,REVENUE,Barton Tt Taxis Ltd,7405760,BAR0888R
North Lincolnshire Council,http://data.ordnancesurvey.co.uk/id/7000000000025623,Childrens & Education,Client Related Costs,5534,17/07/2020,5877678,725,REVENUE,Bedspace Resource Ltd,,BED0049D
North Lincolnshire Council,http://data.ordnancesurvey.co.uk/id/7000000000025623,Childrens & Education,Payments To Private Orgs,6002,08/07/2020,5874085,350,REVENUE,Bedspace Resource Ltd,,BED0049D
North Lincolnshire Council,http://data.ordnancesurvey.co.uk/id/7000000000025623,Childrens & Education,Payments To Private Orgs,6002,08/07/2020,5874086,350,REVENUE,Bedspace Resource Ltd,,BED0049D
North Lincolnshire Council,http://data.ordnancesurvey.co.uk/id/7000000000025623,Childrens & Education,Payments To Private Orgs,6002,08/07/2020,5874087,350,REVENUE,Bedspace Resource Ltd,,BED0049D
North Lincolnshire Council,http://data.ordnancesurvey.co.uk/id/7000000000025623,Childrens & Education,Payments To Private Orgs,6002,08/07/2020,5874089,350,REVENUE,Bedspace Resource Ltd,,BED0049D
North Lincolnshire Council,http://data.ordnancesurvey.co.uk/id/7000000000025623,Childrens & Education,Payments To Private Orgs,6002,08/07/2020,5874090,350,REVENUE,Bedspace Resource Ltd,,BED0049D
North Lincolnshire Council,http://data.ordnancesurvey.co.uk/id/7000000000025623,Childrens & Education,Payments To Private Orgs,6002,08/07/2020,5874091,350,REVENUE,Bedspace Resource Ltd,,BED0049D
North Lincolnshire Council,http://data.ordnancesurvey.co.uk/id/7000000000025623,Childrens & Education,Payments To Private Orgs,6002,08/07/2020,5874092,375,REVENUE,Bedspace Resource Ltd,,BED0049D
North Lincolnshire Council,http://data.ordnancesurvey.co.uk/id/7000000000025623,Childrens & Education,Payments To Private Orgs,6002,08/07/2020,5874093,375,REVENUE,Bedspace Resource Ltd,,BED0049D
North Lincolnshire Council,http://data.ordnancesurvey.co.uk/id/7000000000025623,Childrens & Education,Payments To Private Orgs,6002,08/07/2020,5874094,375,REVENUE,Bedspace Resource Ltd,,BED0049D
North Lincolnshire Council,http://data.ordnancesurvey.co.uk/id/7000000000025623,Childrens & Education,Payments To Private Orgs,6002,08/07/2020,5874095,375,REVENUE,Bedspace Resource Ltd,,BED0049D
North Lincolnshire Council,http://data.ordnancesurvey.co.uk/id/7000000000025623,Childrens & Education,Payments To Private Orgs,6002,08/07/2020,5874096,375,REVENUE,Bedspace Resource Ltd,,BED0049D
North Lincolnshire Council,http://data.ordnancesurvey.co.uk/id/7000000000025623,Childrens & Education,Payments To Private Orgs,6002,08/07/2020,5874097,375,REVENUE,Bedspace Resource Ltd,,BED0049D
North Lincolnshire Council,http://data.ordnancesurvey.co.uk/id/7000000000025623,Culture & Related Services,Equipment Purchase,5001,31/07/2020,5883101,"2,100.00",REVENUE,Bee3d Ltd,,LIG0007G
North Lincolnshire Council,http://data.ordnancesurvey.co.uk/id/7000000000025623,Culture & Related Services,Exhibitions/Events,5709,08/07/2020,5874283,750,REVENUE,Bee3d Ltd,,LIG0007G
North Lincolnshire Council,http://data.ordnancesurvey.co.uk/id/7000000000025623,Central Services To Public,Business Support Grants,6090,22/07/2020,5880260,"10,000.00",REVENUE,Belgrave Lighting & Gifts Ltd,,CD028810
North Lincolnshire Council,http://data.ordnancesurvey.co.uk/id/7000000000025623,Housing Services,Fees & Charges Income,9002,03/07/2020,5871567,"-3,054.15",REVENUE,Belton Construction,8003557,BEL0219L
North Lincolnshire Council,http://data.ordnancesurvey.co.uk/id/7000000000025623,Housing Services,Fees & Charges Income,9002,24/07/2020,5880524,"-1,925.94",REVENUE,Belton Construction,8003557,BEL0219L
North Lincolnshire Council,http://data.ordnancesurvey.co.uk/id/7000000000025623,Childrens & Education,Payments To Voluntary Orgs,6001,03/07/2020,5872704,296.73,REVENUE,Belwood Playgroup,,PLA0049A
North Lincolnshire Council,http://data.ordnancesurvey.co.uk/id/7000000000025623,Highways & Transport,Equipment Purchase,5001,31/07/2020,5880519,"1,578.00",REVENUE,Bemrose Booth Ltd,,HEN0031N
North Lincolnshire Council,http://data.ordnancesurvey.co.uk/id/7000000000025623,Central Services To Public,Business Support Grants,6090,15/07/2020,5877387,"10,000.00",REVENUE,Benny Online Sales,,CD028540
North Lincolnshire Council,http://data.ordnancesurvey.co.uk/id/7000000000025623,Environmental & Regulatory Svs,Payments To Private Orgs,6002,31/07/2020,5882979,735.1,REVENUE,Biffa Waste Services Plc,946107,BIF0005F
North Lincolnshire Council,http://data.ordnancesurvey.co.uk/id/7000000000025623,Central Services To Public,Business Support Grants,6090,01/07/2020,5872541,"10,000.00",REVENUE,Big Chef Limited,,CD028090
North Lincolnshire Council,http://data.ordnancesurvey.co.uk/id/7000000000025623,Environmental & Regulatory Svs,Payments To Private Orgs,6002,22/07/2020,5879189,"8,137.57",REVENUE,Biowise Ltd,4305295,BIO0014O
North Lincolnshire Council,http://data.ordnancesurvey.co.uk/id/7000000000025623,Environmental & Regulatory Svs,Payments To Private Orgs,6002,29/07/2020,5881139,"75,868.67",REVENUE,Biowise Ltd,4305295,BIO0014O
North Lincolnshire Council,http://data.ordnancesurvey.co.uk/id/7000000000025623,Environmental & Regulatory Svs,Repair & Maintenance Costs,3000,31/07/2020,5883157,"1,100.00",REVENUE,Birkdale Manufacturing Group Ltd,,BIR0003R
North Lincolnshire Council,http://data.ordnancesurvey.co.uk/id/7000000000025623,Childrens & Education,Home To School Transport,4201,10/07/2020,5874330,"3,872.00",REVENUE,Black & White Coaches,,BLA0209A
North Lincolnshire Council,http://data.ordnancesurvey.co.uk/id/7000000000025623,Childrens & Education,Home To School Transport,4201,10/07/2020,5874331,"2,682.00",REVENUE,Black & White Coaches,,BLA0209A
North Lincolnshire Council,http://data.ordnancesurvey.co.uk/id/7000000000025623,Childrens & Education,Home To School Transport,4201,10/07/2020,5874332,"2,769.98",REVENUE,Black & White Coaches,,BLA0209A
North Lincolnshire Council,http://data.ordnancesurvey.co.uk/id/7000000000025623,Highways & Transport,Passenger Transport,6011,01/07/2020,5871841,"3,794.00",REVENUE,Black & White Coaches,,BLA0209A
North Lincolnshire Council,http://data.ordnancesurvey.co.uk/id/7000000000025623,Highways & Transport,Passenger Transport,6011,01/07/2020,5871842,"2,526.55",REVENUE,Black & White Coaches,,BLA0209A
North Lincolnshire Council,http://data.ordnancesurvey.co.uk/id/7000000000025623,Highways & Transport,Passenger Transport,6011,22/07/2020,5879513,"4,400.00",REVENUE,Black & White Coaches,,BLA0209A
North Lincolnshire Council,http://data.ordnancesurvey.co.uk/id/7000000000025623,Highways & Transport,Passenger Transport,6011,22/07/2020,5879514,"3,696.00",REVENUE,Black & White Coaches,,BLA0209A
North Lincolnshire Council,http://data.ordnancesurvey.co.uk/id/7000000000025623,Childrens & Education,Fees & Charges Income,9002,22/07/2020,5879213,"3,230.00",REVENUE,Blossom Social Care Training,,WRE0017E
North Lincolnshire Council,http://data.ordnancesurvey.co.uk/id/7000000000025623,Highways & Transport,Materials,5004,08/07/2020,5868165,471.36,REVENUE,Blue Diamond S.T.L. Ltd,,BLU0002U
North Lincolnshire Council,http://data.ordnancesurvey.co.uk/id/7000000000025623,Public Health,Payments To Private Orgs,6002,08/07/2020,5874260,"20,133.33",REVENUE,Blue Door Support Service Cic,12409042,BLU0033U
North Lincolnshire Council,http://data.ordnancesurvey.co.uk/id/7000000000025623,Culture & Related Services,Books (Libraries+Schools Only),5005,10/07/2020,5875200,305.38,REVENUE,Bolinda Uk Ltd,5086231,BOL0130L
North Lincolnshire Council,http://data.ordnancesurvey.co.uk/id/7000000000025623,Culture & Related Services,Books (Libraries+Schools Only),5005,24/07/2020,5876782,"1,000.00",REVENUE,Bolinda Uk Ltd,5086231,BOL0130L
North Lincolnshire Council,http://data.ordnancesurvey.co.uk/id/7000000000025623,Culture & Related Services,Books (Libraries+Schools Only),5005,24/07/2020,5876783,"1,000.00",REVENUE,Bolinda Uk Ltd,5086231,BOL0130L
North Lincolnshire Council,http://data.ordnancesurvey.co.uk/id/7000000000025623,Culture & Related Services,Books (Libraries+Schools Only),5005,29/07/2020,5881114,282.47,REVENUE,Bolinda Uk Ltd,5086231,BOL0130L
North Lincolnshire Council,http://data.ordnancesurvey.co.uk/id/7000000000025623,Culture & Related Services,Books (Libraries+Schools Only),5005,31/07/2020,5879582,"1,000.00",REVENUE,Bolinda Uk Ltd,5086231,BOL0130L
North Lincolnshire Council,http://data.ordnancesurvey.co.uk/id/7000000000025623,Culture & Related Services,Books (Libraries+Schools Only),5005,31/07/2020,5879583,"1,000.00",REVENUE,Bolinda Uk Ltd,5086231,BOL0130L
North Lincolnshire Council,http://data.ordnancesurvey.co.uk/id/7000000000025623,Central Services To Public,Business Support Grants,6090,16/07/2020,5877637,"10,000.00",REVENUE,Borughton Town Council,,CD028700
North Lincolnshire Council,http://data.ordnancesurvey.co.uk/id/7000000000025623,Central Services To Public,Business Support Grants,6090,01/07/2020,5872477,"5,500.00",REVENUE,Bosom Family Support,,CD027460
North Lincolnshire Council,http://data.ordnancesurvey.co.uk/id/7000000000025623,Central Services To Public,Business Support Grants,6090,01/07/2020,5872491,"25,000.00",REVENUE,Bottesford Town Football Club,,CD027600
North Lincolnshire Council,http://data.ordnancesurvey.co.uk/id/7000000000025623,Central Services To Public,Business Support Grants,6090,16/07/2020,5877641,"10,000.00",REVENUE,Bouncy Land Limited,,CD028740
North Lincolnshire Council,http://data.ordnancesurvey.co.uk/id/7000000000025623,Culture & Related Services,Materials,5004,15/07/2020,5876896,"13,525.12",REVENUE,Boverton Nurseries Ltd,,BOV0010V
North Lincolnshire Council,http://data.ordnancesurvey.co.uk/id/7000000000025623,Childrens & Education,Client Related Costs,5534,15/07/2020,5876712,410,REVENUE,Brigg Beds,,BRI0569I
North Lincolnshire Council,http://data.ordnancesurvey.co.uk/id/7000000000025623,Corporate And Democratic Core,Other Premises Costs,3390,08/07/2020,5874234,"2,772.00",REVENUE,Brigg Heritage Centre,,BRI0936I
North Lincolnshire Council,http://data.ordnancesurvey.co.uk/id/7000000000025623,Culture & Related Services,Other Premises Costs,3390,08/07/2020,5874234,"1,310.40",REVENUE,Brigg Heritage Centre,,BRI0936I
North Lincolnshire Council,http://data.ordnancesurvey.co.uk/id/7000000000025623,Housing Services,Other Supplies & Services,5799,08/07/2020,5874166,"1,337.00",REVENUE,Brigg Marina Ltd,8956768,BRI0977I
North Lincolnshire Council,http://data.ordnancesurvey.co.uk/id/7000000000025623,Housing Services,Other Supplies & Services,5799,08/07/2020,5874167,434,REVENUE,Brigg Marina Ltd,8956768,BRI0977I
North Lincolnshire Council,http://data.ordnancesurvey.co.uk/id/7000000000025623,Housing Services,Other Supplies & Services,5799,10/07/2020,5874164,"1,956.75",REVENUE,Brigg Marina Ltd,8956768,BRI0977I
North Lincolnshire Council,http://data.ordnancesurvey.co.uk/id/7000000000025623,Culture & Related Services,Other Supplies & Services,5799,10/07/2020,5875591,"5,595.00",REVENUE,Brigg Town Council,,BRI0036I
North Lincolnshire Council,http://data.ordnancesurvey.co.uk/id/7000000000025623,Central Services To Public,Business Support Grants,6090,08/07/2020,5874936,"25,000.00",REVENUE,Britannia House Properties Ltd,,CD028300
North Lincolnshire Council,http://data.ordnancesurvey.co.uk/id/7000000000025623,Planning Services,Payments To Private Orgs,6002,10/07/2020,5875353,"136,023.97",REVENUE,Britcon (Scunthorpe) Ltd,,BRI0032I
North Lincolnshire Council,http://data.ordnancesurvey.co.uk/id/7000000000025623,Corporate And Democratic Core,Telephone Rent/Calls,5403,22/07/2020,5878187,388.49,REVENUE,British Telecom Plc,1800000,BRI0020I
North Lincolnshire Council,http://data.ordnancesurvey.co.uk/id/7000000000025623,Corporate And Democratic Core,Telephone Rent/Calls,5403,22/07/2020,5878188,386.7,REVENUE,British Telecom Plc,1800000,BRI0020I
North Lincolnshire Council,http://data.ordnancesurvey.co.uk/id/7000000000025623,Environmental & Regulatory Svs,Telephone Rent/Calls,5403,22/07/2020,5879353,296.64,REVENUE,British Telecom Plc,1800000,BRI0020I
North Lincolnshire Council,http://data.ordnancesurvey.co.uk/id/7000000000025623,Central Services To Public,Business Support Grants,6090,08/07/2020,5874925,"4,000.00",REVENUE,Brocklesby Hunt Pony Club,,CD028190
North Lincolnshire Council,http://data.ordnancesurvey.co.uk/id/7000000000025623,Childrens & Education,Repair & Maintenance Costs,3000,17/07/2020,5877668,80.84,REVENUE,Brook & Mayo Ltd,4625674,BRO0686O
North Lincolnshire Council,http://data.ordnancesurvey.co.uk/id/7000000000025623,Childrens & Education,Repair & Maintenance Costs,3000,31/07/2020,5882972,308.59,REVENUE,Brook & Mayo Ltd,4625674,BRO0686O
North Lincolnshire Council,http://data.ordnancesurvey.co.uk/id/7000000000025623,Culture & Related Services,Repair & Maintenance Costs,3000,31/07/2020,5882831,800.26,REVENUE,Brook & Mayo Ltd,4625674,BRO0686O
North Lincolnshire Council,http://data.ordnancesurvey.co.uk/id/7000000000025623,Culture & Related Services,Repair & Maintenance Costs,3000,31/07/2020,5882901,"1,072.24",REVENUE,Brook & Mayo Ltd,4625674,BRO0686O
North Lincolnshire Council,http://data.ordnancesurvey.co.uk/id/7000000000025623,Culture & Related Services,Repair & Maintenance Costs,3000,31/07/2020,5883347,"3,054.24",REVENUE,Brook & Mayo Ltd,4625674,BRO0686O
North Lincolnshire Council,http://data.ordnancesurvey.co.uk/id/7000000000025623,Corporate And Democratic Core,Other Supplies & Services,5799,10/07/2020,5875617,"18,500.00",REVENUE,Browne Jacobson Llp,,BRO0050O
North Lincolnshire Council,http://data.ordnancesurvey.co.uk/id/7000000000025623,N Lincs Gf Balance Sheet,Insurance-Combined Liability,L493,29/07/2020,5882364,0,CAPITAL,Browne Jacobson Llp,,BRO0050O
North Lincolnshire Council,http://data.ordnancesurvey.co.uk/id/7000000000025623,Central Services To Public,Business Support Grants,6090,01/07/2020,5872490,"25,000.00",REVENUE,Brr Law,,CD027590
North Lincolnshire Council,http://data.ordnancesurvey.co.uk/id/7000000000025623,Childrens & Education,Telephone Rent/Calls,5403,10/07/2020,5875193,232.63,REVENUE,Bt Payment Services Ltd,1800000,BRI0210I
North Lincolnshire Council,http://data.ordnancesurvey.co.uk/id/7000000000025623,Corporate And Democratic Core,It Software-Maintenance,5053,17/07/2020,5876947,"7,000.00",REVENUE,Bts Holdings Plc,1517630,BTS0003S
North Lincolnshire Council,http://data.ordnancesurvey.co.uk/id/7000000000025623,Highways & Transport,Equipment Purchase,5001,15/07/2020,5872882,226.32,REVENUE,Builders' Merchant Company Ltd,5256255,HAR0019R
North Lincolnshire Council,http://data.ordnancesurvey.co.uk/id/7000000000025623,Culture & Related Services,Vehicle Repairs,4004,08/07/2020,5873988,"1,471.30",REVENUE,Burdens Group Ltd,,BUR0253R
North Lincolnshire Council,http://data.ordnancesurvey.co.uk/id/7000000000025623,Culture & Related Services,Vehicle Repairs,4004,29/07/2020,5879308,"1,894.93",REVENUE,Burdens Group Ltd,,BUR0253R
North Lincolnshire Council,http://data.ordnancesurvey.co.uk/id/7000000000025623,"Culture,Env,Reg & Planning Cap",Other Costs,A085,08/07/2020,5873044,"3,000.00",CAPITAL,Burton Upon Stather Village Hall,,BUR0002R
North Lincolnshire Council,http://data.ordnancesurvey.co.uk/id/7000000000025623,Childrens & Education,Payments To Private Orgs,6002,03/07/2020,5872687,"1,115.30",REVENUE,Busi Bodies Day Nursery,,BUS0015S
North Lincolnshire Council,http://data.ordnancesurvey.co.uk/id/7000000000025623,Childrens & Education,Client Related Costs,5534,29/07/2020,5882024,270,REVENUE,Busy Bea Childminding,,BUS0165S
North Lincolnshire Council,http://data.ordnancesurvey.co.uk/id/7000000000025623,Culture & Related Services,Gas,3101,29/07/2020,5881880,868.1,REVENUE,Calor Gas Ltd,303703,CAL0063L
North Lincolnshire Council,http://data.ordnancesurvey.co.uk/id/7000000000025623,Central Services To Public,Business Support Grants,6090,01/07/2020,5872439,"10,000.00",REVENUE,Cambridge Avenue Services Ltd,,CD027080
North Lincolnshire Council,http://data.ordnancesurvey.co.uk/id/7000000000025623,Childrens & Education,It Software-Maintenance,5053,22/07/2020,5879484,"3,365.38",REVENUE,Capita Business Services Ltd,2299747,CAP0021P
North Lincolnshire Council,http://data.ordnancesurvey.co.uk/id/7000000000025623,Corporate And Democratic Core,Equipment Maint.& Repair,5003,31/07/2020,5883543,"14,082.66",REVENUE,Capita Business Services Ltd,2299747,CAP0021P
North Lincolnshire Council,http://data.ordnancesurvey.co.uk/id/7000000000025623,Corporate And Democratic Core,Gen Office Exp (Incl Postage),5603,24/07/2020,5880352,"5,372.17",REVENUE,Capita Business Services Ltd,2299747,CAP0021P
North Lincolnshire Council,http://data.ordnancesurvey.co.uk/id/7000000000025623,Planning Services,Pay - Agency,131,08/07/2020,5873936,"30,946.00",REVENUE,Capita Business Services Ltd,2299747,CAP0021P
North Lincolnshire Council,http://data.ordnancesurvey.co.uk/id/7000000000025623,Planning Services,Pay - Agency,131,08/07/2020,5873937,999.83,REVENUE,Capita Business Services Ltd,2299747,CAP0021P
North Lincolnshire Council,http://data.ordnancesurvey.co.uk/id/7000000000025623,Planning Services,Pay - Agency,131,29/07/2020,5881763,"36,029.00",REVENUE,Capita Business Services Ltd,2299747,CAP0021P
North Lincolnshire Council,http://data.ordnancesurvey.co.uk/id/7000000000025623,Planning Services,Pay - Agency,131,29/07/2020,5881764,"1,023.50",REVENUE,Capita Business Services Ltd,2299747,CAP0021P
North Lincolnshire Council,http://data.ordnancesurvey.co.uk/id/7000000000025623,Central Services To Public,Business Support Grants,6090,15/07/2020,5877384,"10,000.00",REVENUE,Car And Caravan Co Brigg Ltd,,CD028510
North Lincolnshire Council,http://data.ordnancesurvey.co.uk/id/7000000000025623,Adult Social Care,Payments To Private Orgs,6002,03/07/2020,5872380,"1,889.16",REVENUE,Care Plus Care Ltd,,CAR0337R
North Lincolnshire Council,http://data.ordnancesurvey.co.uk/id/7000000000025623,Adult Social Care,Payments To Private Orgs,6002,31/07/2020,5882777,"1,889.16",REVENUE,Care Plus Care Ltd,,CAR0337R
North Lincolnshire Council,http://data.ordnancesurvey.co.uk/id/7000000000025623,Adult Social Care,Payments To Private Orgs,6002,31/07/2020,5883371,"1,057.50",REVENUE,Care Plus Care Ltd,,CAR0337R
North Lincolnshire Council,http://data.ordnancesurvey.co.uk/id/7000000000025623,Adult Social Care,Payments To Private Orgs,6002,01/07/2020,5872392,320,REVENUE,Care Plus Care Uk Ltd,,ISF0002F
North Lincolnshire Council,http://data.ordnancesurvey.co.uk/id/7000000000025623,Adult Social Care,Payments To Private Orgs,6002,29/07/2020,5882798,320,REVENUE,Care Plus Care Uk Ltd,,ISF0002F
North Lincolnshire Council,http://data.ordnancesurvey.co.uk/id/7000000000025623,Adult Social Care,Payments To Private Orgs,6002,03/07/2020,5872381,"2,730.00",REVENUE,Care Plus Care (Uk) Ltd (Isle),,CAR0542R
North Lincolnshire Council,http://data.ordnancesurvey.co.uk/id/7000000000025623,Adult Social Care,Payments To Private Orgs,6002,31/07/2020,5882778,"2,730.00",REVENUE,Care Plus Care (Uk) Ltd (Isle),,CAR0542R
North Lincolnshire Council,http://data.ordnancesurvey.co.uk/id/7000000000025623,Adult Social Care,Payments To Private Orgs,6002,31/07/2020,5883372,"1,157.60",REVENUE,Care Plus Care (Uk) Ltd (Isle),,CAR0542R
North Lincolnshire Council,http://data.ordnancesurvey.co.uk/id/7000000000025623,Adult Social Care,Payments To Private Orgs,6002,01/07/2020,5872393,"1,417.79",REVENUE,Carers' Support Centre,,ISF0003F
North Lincolnshire Council,http://data.ordnancesurvey.co.uk/id/7000000000025623,Adult Social Care,Payments To Private Orgs,6002,03/07/2020,5872379,532,REVENUE,Carers' Support Centre,,CAR0131R
North Lincolnshire Council,http://data.ordnancesurvey.co.uk/id/7000000000025623,Adult Social Care,Payments To Private Orgs,6002,10/07/2020,5875386,"103,331.39",REVENUE,Carers' Support Centre,,CAR0131R
North Lincolnshire Council,http://data.ordnancesurvey.co.uk/id/7000000000025623,Adult Social Care,Payments To Private Orgs,6002,29/07/2020,5882799,836,REVENUE,Carers' Support Centre,,ISF0003F
North Lincolnshire Council,http://data.ordnancesurvey.co.uk/id/7000000000025623,Adult Social Care,Payments To Private Orgs,6002,31/07/2020,5882776,266,REVENUE,Carers' Support Centre,,CAR0131R
North Lincolnshire Council,http://data.ordnancesurvey.co.uk/id/7000000000025623,Adult Social Care,Payments To Private Orgs,6002,31/07/2020,5883370,"1,428.29",REVENUE,Carers' Support Centre,,CAR0131R
North Lincolnshire Council,http://data.ordnancesurvey.co.uk/id/7000000000025623,Childrens & Education,Payments To Private Orgs,6002,24/07/2020,5880404,396,REVENUE,Carlie Peake,,PEA0152A
North Lincolnshire Council,http://data.ordnancesurvey.co.uk/id/7000000000025623,Culture & Related Services,Fuel,4001,08/07/2020,5866660,585.3,REVENUE,Carlton Fuels,4168225,CAR0127R
North Lincolnshire Council,http://data.ordnancesurvey.co.uk/id/7000000000025623,Culture & Related Services,Fuel,4001,08/07/2020,5869370,401.6,REVENUE,Carlton Fuels,4168225,CAR0127R
North Lincolnshire Council,http://data.ordnancesurvey.co.uk/id/7000000000025623,Culture & Related Services,Fuel,4001,08/07/2020,5873024,602,REVENUE,Carlton Fuels,4168225,CAR0127R
North Lincolnshire Council,http://data.ordnancesurvey.co.uk/id/7000000000025623,Culture & Related Services,Fuel,4001,08/07/2020,5874276,417.6,REVENUE,Carlton Fuels,4168225,CAR0127R
North Lincolnshire Council,http://data.ordnancesurvey.co.uk/id/7000000000025623,Environmental & Regulatory Svs,Fuel,4001,31/07/2020,5882969,"1,810.50",REVENUE,Carlton Fuels,4168225,CAR0127R
North Lincolnshire Council,http://data.ordnancesurvey.co.uk/id/7000000000025623,Highways & Transport,Fuel,4001,08/07/2020,5874034,296.17,REVENUE,Carlton Fuels,4168225,CAR0127R
North Lincolnshire Council,http://data.ordnancesurvey.co.uk/id/7000000000025623,Highways & Transport,Fuel,4001,10/07/2020,5875449,"29,949.50",REVENUE,Carlton Fuels,4168225,CAR0127R
North Lincolnshire Council,http://data.ordnancesurvey.co.uk/id/7000000000025623,Adult Social Care,Payments To Private Orgs,6002,17/07/2020,5877907,"2,320.00",REVENUE,Carpenters Lodge,,CAR0473R
North Lincolnshire Council,http://data.ordnancesurvey.co.uk/id/7000000000025623,Childrens & Education,Legal Fees,5823,17/07/2020,5877909,218.63,REVENUE,Carter Brown The Expert Service Limited,,CAR0564R
North Lincolnshire Council,http://data.ordnancesurvey.co.uk/id/7000000000025623,Childrens & Education,Legal Fees,5823,31/07/2020,5882281,820.4,REVENUE,Carter Brown The Expert Service Limited,,CAR0564R
North Lincolnshire Council,http://data.ordnancesurvey.co.uk/id/7000000000025623,Central Services To Public,Business Support Grants,6090,08/07/2020,5874961,"10,000.00",REVENUE,Cash 4 Gold,,CD028450
North Lincolnshire Council,http://data.ordnancesurvey.co.uk/id/7000000000025623,Adult Social Care,Equipment Purchase,5001,22/07/2020,5879555,65,REVENUE,Cat Csh Card Imprest,,NOR0754R
North Lincolnshire Council,http://data.ordnancesurvey.co.uk/id/7000000000025623,Adult Social Care,Gen Office Exp (Incl Postage),5603,22/07/2020,5879557,65,REVENUE,Cat Csh Card Imprest,,NOR0754R
North Lincolnshire Council,http://data.ordnancesurvey.co.uk/id/7000000000025623,Adult Social Care,Payments To Private Orgs,6002,22/07/2020,5879555,40,REVENUE,Cat Csh Card Imprest,,NOR0754R
North Lincolnshire Council,http://data.ordnancesurvey.co.uk/id/7000000000025623,Adult Social Care,Payments To Private Orgs,6002,22/07/2020,5879557,75.95,REVENUE,Cat Csh Card Imprest,,NOR0754R
North Lincolnshire Council,http://data.ordnancesurvey.co.uk/id/7000000000025623,Central Services To Public,Equipment Purchase,5001,22/07/2020,5879555,276,REVENUE,Cat Csh Card Imprest,,NOR0754R
North Lincolnshire Council,http://data.ordnancesurvey.co.uk/id/7000000000025623,Central Services To Public,Equipment Purchase,5001,22/07/2020,5879557,976.5,REVENUE,Cat Csh Card Imprest,,NOR0754R
North Lincolnshire Council,http://data.ordnancesurvey.co.uk/id/7000000000025623,Central Services To Public,Other Supplies & Services,5799,22/07/2020,5879555,677.3,REVENUE,Cat Csh Card Imprest,,NOR0754R
North Lincolnshire Council,http://data.ordnancesurvey.co.uk/id/7000000000025623,Central Services To Public,Other Supplies & Services,5799,22/07/2020,5879557,28.55,REVENUE,Cat Csh Card Imprest,,NOR0754R
North Lincolnshire Council,http://data.ordnancesurvey.co.uk/id/7000000000025623,Childrens & Education,Client Related Costs,5534,22/07/2020,5879555,407.81,REVENUE,Cat Csh Card Imprest,,NOR0754R
North Lincolnshire Council,http://data.ordnancesurvey.co.uk/id/7000000000025623,Childrens & Education,Client Related Costs,5534,22/07/2020,5879557,-145.67,REVENUE,Cat Csh Card Imprest,,NOR0754R
North Lincolnshire Council,http://data.ordnancesurvey.co.uk/id/7000000000025623,Childrens & Education,Equipment Purchase,5001,22/07/2020,5879557,83.2,REVENUE,Cat Csh Card Imprest,,NOR0754R
North Lincolnshire Council,http://data.ordnancesurvey.co.uk/id/7000000000025623,Childrens & Education,Exhibitions/Events,5709,22/07/2020,5879555,30,REVENUE,Cat Csh Card Imprest,,NOR0754R
North Lincolnshire Council,http://data.ordnancesurvey.co.uk/id/7000000000025623,Childrens & Education,It Software-Purchase,5051,22/07/2020,5879555,107.88,REVENUE,Cat Csh Card Imprest,,NOR0754R
North Lincolnshire Council,http://data.ordnancesurvey.co.uk/id/7000000000025623,Corporate And Democratic Core,"Clothing, Uniforms & Laundry",5301,22/07/2020,5879557,206.99,REVENUE,Cat Csh Card Imprest,,NOR0754R
North Lincolnshire Council,http://data.ordnancesurvey.co.uk/id/7000000000025623,Corporate And Democratic Core,Equipment Purchase,5001,22/07/2020,5879557,26.95,REVENUE,Cat Csh Card Imprest,,NOR0754R
North Lincolnshire Council,http://data.ordnancesurvey.co.uk/id/7000000000025623,Corporate And Democratic Core,Equipment Purchase,5001,22/07/2020,5879557,203.6,REVENUE,Cat Csh Card Imprest,,NOR0754R
North Lincolnshire Council,http://data.ordnancesurvey.co.uk/id/7000000000025623,Corporate And Democratic Core,Gen Office Exp (Incl Postage),5603,22/07/2020,5879557,45,REVENUE,Cat Csh Card Imprest,,NOR0754R
North Lincolnshire Council,http://data.ordnancesurvey.co.uk/id/7000000000025623,Corporate And Democratic Core,Legal Fees,5823,22/07/2020,5879555,226,REVENUE,Cat Csh Card Imprest,,NOR0754R
North Lincolnshire Council,http://data.ordnancesurvey.co.uk/id/7000000000025623,Housing Services,Other Supplies & Services,5799,22/07/2020,5879555,833.2,REVENUE,Cat Csh Card Imprest,,NOR0754R
North Lincolnshire Council,http://data.ordnancesurvey.co.uk/id/7000000000025623,Planning Services,Other Supplies & Services,5799,22/07/2020,5879555,30,REVENUE,Cat Csh Card Imprest,,NOR0754R
North Lincolnshire Council,http://data.ordnancesurvey.co.uk/id/7000000000025623,Planning Services,Other Supplies & Services,5799,22/07/2020,5879557,30,REVENUE,Cat Csh Card Imprest,,NOR0754R
North Lincolnshire Council,http://data.ordnancesurvey.co.uk/id/7000000000025623,Childrens & Education,Other Professional Fees,5829,15/07/2020,5876774,"2,000.00",REVENUE,Catherine Al Jawdah,,JAW0003W
North Lincolnshire Council,http://data.ordnancesurvey.co.uk/id/7000000000025623,Adult Social Care Capital,Other Costs,A085,15/07/2020,5874968,"14,000.00",CAPITAL,Cc2i Limited,10239373,CCI0002I
North Lincolnshire Council,http://data.ordnancesurvey.co.uk/id/7000000000025623,Central Services To Public,Business Support Grants,6090,01/07/2020,5872538,"10,000.00",REVENUE,C & E Global Group Limited,,CD028060
North Lincolnshire Council,http://data.ordnancesurvey.co.uk/id/7000000000025623,Adult Social Care,Cleaning Services & Contracts,3311,22/07/2020,5879500,634.6,REVENUE,Central Laundry Ltd,6765045,CEN0085N
North Lincolnshire Council,http://data.ordnancesurvey.co.uk/id/7000000000025623,Adult Social Care,Payments To Private Orgs,6002,08/07/2020,5873983,717.67,REVENUE,Central Laundry Ltd,6765045,CEN0085N
North Lincolnshire Council,http://data.ordnancesurvey.co.uk/id/7000000000025623,Adult Social Care,Payments To Health Providers,6019,09/07/2020,5877541,650.17,REVENUE,Central Surgery,,DIC0005C
North Lincolnshire Council,http://data.ordnancesurvey.co.uk/id/7000000000025623,Central Services To Public,Business Support Grants,6090,01/07/2020,5872533,"5,500.00",REVENUE,C & F Potatoes,,CD028020
North Lincolnshire Council,http://data.ordnancesurvey.co.uk/id/7000000000025623,Adult Social Care,Payments To Private Orgs,6002,08/07/2020,5873320,"1,250.00",REVENUE,Champ Ltd,,CHA0374A
North Lincolnshire Council,http://data.ordnancesurvey.co.uk/id/7000000000025623,Corporate And Democratic Core,Other Professional Fees,5829,08/07/2020,5874279,"6,250.00",REVENUE,Champ Ltd,,CHA0374A
North Lincolnshire Council,http://data.ordnancesurvey.co.uk/id/7000000000025623,Corporate And Democratic Core,Other Professional Fees,5829,08/07/2020,5874281,"6,000.00",REVENUE,Champ Ltd,,CHA0374A
North Lincolnshire Council,http://data.ordnancesurvey.co.uk/id/7000000000025623,Culture & Related Services,Repair & Maintenance Costs,3000,08/07/2020,5874217,"1,250.00",REVENUE,Champ Ltd,,CHA0374A
North Lincolnshire Council,http://data.ordnancesurvey.co.uk/id/7000000000025623,Childrens & Education,Payments To Private Orgs,6002,22/07/2020,5877009,"40,500.00",REVENUE,Changing Lives,10624046,CHA0547A
North Lincolnshire Council,http://data.ordnancesurvey.co.uk/id/7000000000025623,Highways & Transport,Stock Purchases & Adjustments,5030,08/07/2020,5872886,"1,570.00",REVENUE,Charles Endirect Ltd,,CHA0183A
North Lincolnshire Council,http://data.ordnancesurvey.co.uk/id/7000000000025623,Highways & Transport,Stock Purchases & Adjustments,5030,08/07/2020,5872888,"1,570.00",REVENUE,Charles Endirect Ltd,,CHA0183A
North Lincolnshire Council,http://data.ordnancesurvey.co.uk/id/7000000000025623,Central Services To Public,Business Support Grants,6090,01/07/2020,5872496,"2,500.00",REVENUE,Charlotte Wyman,,CD027650
North Lincolnshire Council,http://data.ordnancesurvey.co.uk/id/7000000000025623,Central Services To Public,Business Support Grants,6090,01/07/2020,5872479,"10,000.00",REVENUE,Charmed Wood,,CD027480
North Lincolnshire Council,http://data.ordnancesurvey.co.uk/id/7000000000025623,Fin&Inv I&E,"Licenses, Subs & Memberships",5510,22/07/2020,5879506,"1,252.00",REVENUE,Chartered Institute Of Building,,CHA0203A
North Lincolnshire Council,http://data.ordnancesurvey.co.uk/id/7000000000025623,Central Services To Public,Business Support Grants,6090,22/07/2020,5877642,"4,000.00",REVENUE,Cheaper Business Solutions Ltd,,CD028750
North Lincolnshire Council,http://data.ordnancesurvey.co.uk/id/7000000000025623,Adult Social Care,Payments To Private Orgs,6002,03/07/2020,5872382,"1,307.04",REVENUE,Chestnut Homecare Ltd,,CHE0222E
North Lincolnshire Council,http://data.ordnancesurvey.co.uk/id/7000000000025623,Adult Social Care,Payments To Private Orgs,6002,03/07/2020,5872382,"3,919.48",REVENUE,Chestnut Homecare Ltd,,CHE0222E
North Lincolnshire Council,http://data.ordnancesurvey.co.uk/id/7000000000025623,Adult Social Care,Payments To Private Orgs,6002,31/07/2020,5882779,"1,307.04",REVENUE,Chestnut Homecare Ltd,,CHE0222E
North Lincolnshire Council,http://data.ordnancesurvey.co.uk/id/7000000000025623,Adult Social Care,Payments To Private Orgs,6002,31/07/2020,5882779,"3,010.68",REVENUE,Chestnut Homecare Ltd,,CHE0222E
North Lincolnshire Council,http://data.ordnancesurvey.co.uk/id/7000000000025623,Adult Social Care,Payments To Private Orgs,6002,31/07/2020,5882780,"1,522.59",REVENUE,Chestnut Homecare Ltd,,CHE0222E
North Lincolnshire Council,http://data.ordnancesurvey.co.uk/id/7000000000025623,Adult Social Care,Payments To Private Orgs,6002,31/07/2020,5883374,"1,429.01",REVENUE,Chestnut Homecare Ltd,,CHE0222E
North Lincolnshire Council,http://data.ordnancesurvey.co.uk/id/7000000000025623,Childrens & Education,Payments To Private Orgs,6002,05/08/2020,5882027,"12,639.00",REVENUE,Children'S Links,3484661,CHI0281I
North Lincolnshire Council,http://data.ordnancesurvey.co.uk/id/7000000000025623,Childrens & Education,Other Professional Fees,5829,08/07/2020,5873319,666.25,REVENUE,Christopher Barton,,BAR0895R
North Lincolnshire Council,http://data.ordnancesurvey.co.uk/id/7000000000025623,Childrens & Education,Other Professional Fees,5829,31/07/2020,5883155,266.5,REVENUE,Christopher Barton,,BAR0895R
North Lincolnshire Council,http://data.ordnancesurvey.co.uk/id/7000000000025623,Childrens & Education,Payments To Private Orgs,6002,03/07/2020,5872940,"2,710.50",REVENUE,Chrysalis Consortium,,CHR0024R
North Lincolnshire Council,http://data.ordnancesurvey.co.uk/id/7000000000025623,Childrens & Education,Payments To Private Orgs,6002,03/07/2020,5872942,"5,142.90",REVENUE,Chrysalis Consortium,,CHR0024R
North Lincolnshire Council,http://data.ordnancesurvey.co.uk/id/7000000000025623,Adult Social Care,Repair & Maintenance Costs,3000,03/07/2020,5872021,402.67,REVENUE,Chubb Fire Limited,524469,CHU0021U
North Lincolnshire Council,http://data.ordnancesurvey.co.uk/id/7000000000025623,Adult Social Care,Repair & Maintenance Costs,3000,03/07/2020,5872023,252.35,REVENUE,Chubb Fire Limited,524469,CHU0021U
North Lincolnshire Council,http://data.ordnancesurvey.co.uk/id/7000000000025623,Adult Social Care,Repair & Maintenance Costs,3000,03/07/2020,5872024,294.84,REVENUE,Chubb Fire Limited,524469,CHU0021U
North Lincolnshire Council,http://data.ordnancesurvey.co.uk/id/7000000000025623,Central Services To Public,Repair & Maintenance Costs,3000,03/07/2020,5872013,0,REVENUE,Chubb Fire Limited,524469,CHU0021U
North Lincolnshire Council,http://data.ordnancesurvey.co.uk/id/7000000000025623,Central Services To Public,Repair & Maintenance Costs,3000,03/07/2020,5872020,0,REVENUE,Chubb Fire Limited,524469,CHU0021U
North Lincolnshire Council,http://data.ordnancesurvey.co.uk/id/7000000000025623,Central Services To Public,Repair & Maintenance Costs,3000,03/07/2020,5872021,0,REVENUE,Chubb Fire Limited,524469,CHU0021U
North Lincolnshire Council,http://data.ordnancesurvey.co.uk/id/7000000000025623,Central Services To Public,Repair & Maintenance Costs,3000,03/07/2020,5872022,0,REVENUE,Chubb Fire Limited,524469,CHU0021U
North Lincolnshire Council,http://data.ordnancesurvey.co.uk/id/7000000000025623,Central Services To Public,Repair & Maintenance Costs,3000,03/07/2020,5872023,0,REVENUE,Chubb Fire Limited,524469,CHU0021U
North Lincolnshire Council,http://data.ordnancesurvey.co.uk/id/7000000000025623,Central Services To Public,Repair & Maintenance Costs,3000,03/07/2020,5872024,0,REVENUE,Chubb Fire Limited,524469,CHU0021U
North Lincolnshire Council,http://data.ordnancesurvey.co.uk/id/7000000000025623,Central Services To Public,Repair & Maintenance Costs,3000,03/07/2020,5872028,0,REVENUE,Chubb Fire Limited,524469,CHU0021U
North Lincolnshire Council,http://data.ordnancesurvey.co.uk/id/7000000000025623,Central Services To Public,Repair & Maintenance Costs,3000,03/07/2020,5872029,0,REVENUE,Chubb Fire Limited,524469,CHU0021U
North Lincolnshire Council,http://data.ordnancesurvey.co.uk/id/7000000000025623,Central Services To Public,Repair & Maintenance Costs,3000,03/07/2020,5872032,0,REVENUE,Chubb Fire Limited,524469,CHU0021U
North Lincolnshire Council,http://data.ordnancesurvey.co.uk/id/7000000000025623,Central Services To Public,Repair & Maintenance Costs,3000,31/07/2020,5883117,0,REVENUE,Chubb Fire Limited,524469,CHU0021U
North Lincolnshire Council,http://data.ordnancesurvey.co.uk/id/7000000000025623,Central Services To Public,Repair & Maintenance Costs,3000,31/07/2020,5883131,0,REVENUE,Chubb Fire Limited,524469,CHU0021U
North Lincolnshire Council,http://data.ordnancesurvey.co.uk/id/7000000000025623,Central Services To Public,Repair & Maintenance Costs,3000,31/07/2020,5883133,0,REVENUE,Chubb Fire Limited,524469,CHU0021U
North Lincolnshire Council,http://data.ordnancesurvey.co.uk/id/7000000000025623,Central Services To Public,Repair & Maintenance Costs,3000,31/07/2020,5883134,0,REVENUE,Chubb Fire Limited,524469,CHU0021U
North Lincolnshire Council,http://data.ordnancesurvey.co.uk/id/7000000000025623,Central Services To Public,Repair & Maintenance Costs,3000,31/07/2020,5883141,0,REVENUE,Chubb Fire Limited,524469,CHU0021U
North Lincolnshire Council,http://data.ordnancesurvey.co.uk/id/7000000000025623,Central Services To Public,Repair & Maintenance Costs,3000,31/07/2020,5883145,0,REVENUE,Chubb Fire Limited,524469,CHU0021U
North Lincolnshire Council,http://data.ordnancesurvey.co.uk/id/7000000000025623,Childrens & Education,Repair & Maintenance Costs,3000,03/07/2020,5872013,230.47,REVENUE,Chubb Fire Limited,524469,CHU0021U
North Lincolnshire Council,http://data.ordnancesurvey.co.uk/id/7000000000025623,Culture & Related Services,Repair & Maintenance Costs,3000,03/07/2020,5872028,212.98,REVENUE,Chubb Fire Limited,524469,CHU0021U
North Lincolnshire Council,http://data.ordnancesurvey.co.uk/id/7000000000025623,Culture & Related Services,Repair & Maintenance Costs,3000,03/07/2020,5872029,333.43,REVENUE,Chubb Fire Limited,524469,CHU0021U
North Lincolnshire Council,http://data.ordnancesurvey.co.uk/id/7000000000025623,Culture & Related Services,Repair & Maintenance Costs,3000,03/07/2020,5872032,819.78,REVENUE,Chubb Fire Limited,524469,CHU0021U
North Lincolnshire Council,http://data.ordnancesurvey.co.uk/id/7000000000025623,Culture & Related Services,Repair & Maintenance Costs,3000,31/07/2020,5883117,336.35,REVENUE,Chubb Fire Limited,524469,CHU0021U
North Lincolnshire Council,http://data.ordnancesurvey.co.uk/id/7000000000025623,Culture & Related Services,Repair & Maintenance Costs,3000,31/07/2020,5883131,530.2,REVENUE,Chubb Fire Limited,524469,CHU0021U
North Lincolnshire Council,http://data.ordnancesurvey.co.uk/id/7000000000025623,Culture & Related Services,Repair & Maintenance Costs,3000,31/07/2020,5883133,428.35,REVENUE,Chubb Fire Limited,524469,CHU0021U
North Lincolnshire Council,http://data.ordnancesurvey.co.uk/id/7000000000025623,Culture & Related Services,Repair & Maintenance Costs,3000,31/07/2020,5883134,219.1,REVENUE,Chubb Fire Limited,524469,CHU0021U
North Lincolnshire Council,http://data.ordnancesurvey.co.uk/id/7000000000025623,Environmental & Regulatory Svs,Repair & Maintenance Costs,3000,03/07/2020,5872022,261.1,REVENUE,Chubb Fire Limited,524469,CHU0021U
North Lincolnshire Council,http://data.ordnancesurvey.co.uk/id/7000000000025623,Environmental & Regulatory Svs,Repair & Maintenance Costs,3000,31/07/2020,5883141,320.7,REVENUE,Chubb Fire Limited,524469,CHU0021U
North Lincolnshire Council,http://data.ordnancesurvey.co.uk/id/7000000000025623,Highways & Transport,Repair & Maintenance Costs,3000,03/07/2020,5872020,274.28,REVENUE,Chubb Fire Limited,524469,CHU0021U
North Lincolnshire Council,http://data.ordnancesurvey.co.uk/id/7000000000025623,Highways & Transport,Repair & Maintenance Costs,3000,31/07/2020,5883145,648.75,REVENUE,Chubb Fire Limited,524469,CHU0021U
North Lincolnshire Council,http://data.ordnancesurvey.co.uk/id/7000000000025623,Corporate And Democratic Core,Course Fees/Training,2002,03/07/2020,5872826,395,REVENUE,Cipfa Business Ltd,,CIP0003P
North Lincolnshire Council,http://data.ordnancesurvey.co.uk/id/7000000000025623,Culture & Related Services,Other Premises Costs,3390,10/07/2020,5875169,402.62,REVENUE,Citron Hygiene Ltd,3056469,CAN0001N
North Lincolnshire Council,http://data.ordnancesurvey.co.uk/id/7000000000025623,Culture & Related Services,Other Premises Costs,3390,29/07/2020,5881884,402.62,REVENUE,Citron Hygiene Ltd,3056469,CAN0001N
North Lincolnshire Council,http://data.ordnancesurvey.co.uk/id/7000000000025623,Adult Social Care,Payments To Health Providers,6019,31/07/2020,5883345,"1,224.00",REVENUE,City Health Care Partnership Cic,,HUL0022L
North Lincolnshire Council,http://data.ordnancesurvey.co.uk/id/7000000000025623,Adult Social Care,Other Supplies & Services,5799,24/07/2020,5879469,"1,862.50",REVENUE,Civica Uk Ltd,1628868,CIV0010V
North Lincolnshire Council,http://data.ordnancesurvey.co.uk/id/7000000000025623,Childrens & Education,It Software-Maintenance,5053,31/07/2020,5881725,"8,175.95",REVENUE,Civica Uk Ltd,1628868,CIV0010V
North Lincolnshire Council,http://data.ordnancesurvey.co.uk/id/7000000000025623,Childrens & Education,Payments To Private Orgs,6002,31/07/2020,5882987,250,REVENUE,Clare Drayton,,CLA0636A
North Lincolnshire Council,http://data.ordnancesurvey.co.uk/id/7000000000025623,Adult Social Care,Payments To Private Orgs,6002,03/07/2020,5872384,"20,544.52",REVENUE,Clarity Homecare Ltd,,CLA0252A
North Lincolnshire Council,http://data.ordnancesurvey.co.uk/id/7000000000025623,Adult Social Care,Payments To Private Orgs,6002,03/07/2020,5872384,231.56,REVENUE,Clarity Homecare Ltd,,CLA0252A
North Lincolnshire Council,http://data.ordnancesurvey.co.uk/id/7000000000025623,Adult Social Care,Payments To Private Orgs,6002,31/07/2020,5882784,"-1,468.30",REVENUE,Clarity Homecare Ltd,,CLA0252A
North Lincolnshire Council,http://data.ordnancesurvey.co.uk/id/7000000000025623,Adult Social Care,Payments To Private Orgs,6002,31/07/2020,5882785,"23,426.93",REVENUE,Clarity Homecare Ltd,,CLA0252A
North Lincolnshire Council,http://data.ordnancesurvey.co.uk/id/7000000000025623,Adult Social Care,Payments To Private Orgs,6002,31/07/2020,5882785,641.09,REVENUE,Clarity Homecare Ltd,,CLA0252A
North Lincolnshire Council,http://data.ordnancesurvey.co.uk/id/7000000000025623,Adult Social Care,Payments To Private Orgs,6002,31/07/2020,5883376,"3,839.30",REVENUE,Clarity Homecare Ltd,,CLA0252A
North Lincolnshire Council,http://data.ordnancesurvey.co.uk/id/7000000000025623,Highways & Transport,Other Supplies & Services,5799,08/07/2020,5865632,"4,712.00",REVENUE,Clearway Environmental Services Ltd,,CLE0018E
North Lincolnshire Council,http://data.ordnancesurvey.co.uk/id/7000000000025623,Highways & Transport,Other Supplies & Services,5799,08/07/2020,5869376,"1,344.00",REVENUE,Clearway Environmental Services Ltd,,CLE0018E
North Lincolnshire Council,http://data.ordnancesurvey.co.uk/id/7000000000025623,Highways & Transport,Other Supplies & Services,5799,15/07/2020,5860867,"3,440.00",REVENUE,Clearway Environmental Services Ltd,,CLE0018E
North Lincolnshire Council,http://data.ordnancesurvey.co.uk/id/7000000000025623,Highways & Transport,Other Supplies & Services,5799,15/07/2020,5860896,"4,738.00",REVENUE,Clearway Environmental Services Ltd,,CLE0018E
North Lincolnshire Council,http://data.ordnancesurvey.co.uk/id/7000000000025623,Childrens & Education,Other Supplies & Services,5799,03/07/2020,5872661,"4,275.00",REVENUE,Click Cms Ltd,,CLI0174I
North Lincolnshire Council,http://data.ordnancesurvey.co.uk/id/7000000000025623,Childrens & Education,Other Supplies & Services,5799,15/07/2020,5876952,"3,800.00",REVENUE,Click Cms Ltd,,CLI0174I
North Lincolnshire Council,http://data.ordnancesurvey.co.uk/id/7000000000025623,Culture & Related Services,Exhibitions/Events,5709,10/07/2020,5875416,400,REVENUE,Clicknetherfield Ltd,,NET0031T
North Lincolnshire Council,http://data.ordnancesurvey.co.uk/id/7000000000025623,Adult Social Care,Payments To Private Orgs,6002,10/07/2020,5873931,"2,291.67",REVENUE,Cloverleaf Advocacy 2000 Ltd,,CLO0101O
North Lincolnshire Council,http://data.ordnancesurvey.co.uk/id/7000000000025623,Adult Social Care,Payments To Private Orgs,6002,10/07/2020,5873932,"13,569.60",REVENUE,Cloverleaf Advocacy 2000 Ltd,,CLO0101O
North Lincolnshire Council,http://data.ordnancesurvey.co.uk/id/7000000000025623,Adult Social Care,Pay - Agency,131,03/07/2020,5872966,"25,179.40",REVENUE,Comensura Ltd,4085767,COM0313M
North Lincolnshire Council,http://data.ordnancesurvey.co.uk/id/7000000000025623,Adult Social Care,Pay - Agency,131,03/07/2020,5872966,"5,432.40",REVENUE,Comensura Ltd,4085767,COM0313M
North Lincolnshire Council,http://data.ordnancesurvey.co.uk/id/7000000000025623,Adult Social Care,Pay - Agency,131,10/07/2020,5875405,"5,213.52",REVENUE,Comensura Ltd,4085767,COM0313M
North Lincolnshire Council,http://data.ordnancesurvey.co.uk/id/7000000000025623,Adult Social Care,Pay - Agency,131,10/07/2020,5875405,"19,822.86",REVENUE,Comensura Ltd,4085767,COM0313M
North Lincolnshire Council,http://data.ordnancesurvey.co.uk/id/7000000000025623,Adult Social Care,Pay - Agency,131,22/07/2020,5878180,"5,215.15",REVENUE,Comensura Ltd,4085767,COM0313M
North Lincolnshire Council,http://data.ordnancesurvey.co.uk/id/7000000000025623,Adult Social Care,Pay - Agency,131,22/07/2020,5878180,"23,545.12",REVENUE,Comensura Ltd,4085767,COM0313M
North Lincolnshire Council,http://data.ordnancesurvey.co.uk/id/7000000000025623,Adult Social Care,Pay - Agency,131,24/07/2020,5880582,"25,125.36",REVENUE,Comensura Ltd,4085767,COM0313M
North Lincolnshire Council,http://data.ordnancesurvey.co.uk/id/7000000000025623,Adult Social Care,Pay - Agency,131,24/07/2020,5880582,"5,389.77",REVENUE,Comensura Ltd,4085767,COM0313M
North Lincolnshire Council,http://data.ordnancesurvey.co.uk/id/7000000000025623,Childrens & Education,Pay - Agency,131,10/07/2020,5875405,617.44,REVENUE,Comensura Ltd,4085767,COM0313M
North Lincolnshire Council,http://data.ordnancesurvey.co.uk/id/7000000000025623,Childrens & Education,Pay - Agency,131,10/07/2020,5875405,"1,650.40",REVENUE,Comensura Ltd,4085767,COM0313M
North Lincolnshire Council,http://data.ordnancesurvey.co.uk/id/7000000000025623,Childrens & Education,Pay - Agency,131,22/07/2020,5878180,"3,300.80",REVENUE,Comensura Ltd,4085767,COM0313M
North Lincolnshire Council,http://data.ordnancesurvey.co.uk/id/7000000000025623,Childrens & Education,Pay - Agency,131,24/07/2020,5880582,"1,650.40",REVENUE,Comensura Ltd,4085767,COM0313M
North Lincolnshire Council,http://data.ordnancesurvey.co.uk/id/7000000000025623,Corporate And Democratic Core,Pay - Agency,131,03/07/2020,5872966,"2,927.90",REVENUE,Comensura Ltd,4085767,COM0313M
North Lincolnshire Council,http://data.ordnancesurvey.co.uk/id/7000000000025623,Corporate And Democratic Core,Pay - Agency,131,10/07/2020,5875405,"2,783.44",REVENUE,Comensura Ltd,4085767,COM0313M
North Lincolnshire Council,http://data.ordnancesurvey.co.uk/id/7000000000025623,Corporate And Democratic Core,Pay - Agency,131,22/07/2020,5878180,"2,320.68",REVENUE,Comensura Ltd,4085767,COM0313M
North Lincolnshire Council,http://data.ordnancesurvey.co.uk/id/7000000000025623,Corporate And Democratic Core,Pay - Agency,131,24/07/2020,5880582,"1,952.90",REVENUE,Comensura Ltd,4085767,COM0313M
North Lincolnshire Council,http://data.ordnancesurvey.co.uk/id/7000000000025623,Culture & Related Services,Pay - Agency,131,22/07/2020,5878180,329.08,REVENUE,Comensura Ltd,4085767,COM0313M
North Lincolnshire Council,http://data.ordnancesurvey.co.uk/id/7000000000025623,Culture & Related Services,Pay - Agency,131,24/07/2020,5880582,268.38,REVENUE,Comensura Ltd,4085767,COM0313M
North Lincolnshire Council,http://data.ordnancesurvey.co.uk/id/7000000000025623,Environmental & Regulatory Svs,Pay - Agency,131,03/07/2020,5872966,"4,943.41",REVENUE,Comensura Ltd,4085767,COM0313M
North Lincolnshire Council,http://data.ordnancesurvey.co.uk/id/7000000000025623,Environmental & Regulatory Svs,Pay - Agency,131,03/07/2020,5872966,"1,253.46",REVENUE,Comensura Ltd,4085767,COM0313M
North Lincolnshire Council,http://data.ordnancesurvey.co.uk/id/7000000000025623,Environmental & Regulatory Svs,Pay - Agency,131,10/07/2020,5875405,"5,215.60",REVENUE,Comensura Ltd,4085767,COM0313M
North Lincolnshire Council,http://data.ordnancesurvey.co.uk/id/7000000000025623,Environmental & Regulatory Svs,Pay - Agency,131,10/07/2020,5875405,"1,580.09",REVENUE,Comensura Ltd,4085767,COM0313M
North Lincolnshire Council,http://data.ordnancesurvey.co.uk/id/7000000000025623,Environmental & Regulatory Svs,Pay - Agency,131,22/07/2020,5878180,516.64,REVENUE,Comensura Ltd,4085767,COM0313M
North Lincolnshire Council,http://data.ordnancesurvey.co.uk/id/7000000000025623,Environmental & Regulatory Svs,Pay - Agency,131,22/07/2020,5878180,"2,681.56",REVENUE,Comensura Ltd,4085767,COM0313M
North Lincolnshire Council,http://data.ordnancesurvey.co.uk/id/7000000000025623,Environmental & Regulatory Svs,Pay - Agency,131,24/07/2020,5880582,"3,599.69",REVENUE,Comensura Ltd,4085767,COM0313M
North Lincolnshire Council,http://data.ordnancesurvey.co.uk/id/7000000000025623,Environmental & Regulatory Svs,Pay - Agency,131,24/07/2020,5880582,"7,342.45",REVENUE,Comensura Ltd,4085767,COM0313M
North Lincolnshire Council,http://data.ordnancesurvey.co.uk/id/7000000000025623,Highways & Transport,Pay - Agency,131,03/07/2020,5872966,"1,754.88",REVENUE,Comensura Ltd,4085767,COM0313M
North Lincolnshire Council,http://data.ordnancesurvey.co.uk/id/7000000000025623,Highways & Transport,Pay - Agency,131,10/07/2020,5875405,"1,512.40",REVENUE,Comensura Ltd,4085767,COM0313M
North Lincolnshire Council,http://data.ordnancesurvey.co.uk/id/7000000000025623,Highways & Transport,Pay - Agency,131,22/07/2020,5878180,"2,863.73",REVENUE,Comensura Ltd,4085767,COM0313M
North Lincolnshire Council,http://data.ordnancesurvey.co.uk/id/7000000000025623,Highways & Transport,Pay - Agency,131,24/07/2020,5880582,"1,415.98",REVENUE,Comensura Ltd,4085767,COM0313M
North Lincolnshire Council,http://data.ordnancesurvey.co.uk/id/7000000000025623,Non Distributed Costs,Pay - Agency,131,03/07/2020,5872966,"1,818.42",REVENUE,Comensura Ltd,4085767,COM0313M
North Lincolnshire Council,http://data.ordnancesurvey.co.uk/id/7000000000025623,Non Distributed Costs,Pay - Agency,131,10/07/2020,5875405,"1,607.71",REVENUE,Comensura Ltd,4085767,COM0313M
North Lincolnshire Council,http://data.ordnancesurvey.co.uk/id/7000000000025623,Non Distributed Costs,Pay - Agency,131,22/07/2020,5878180,"2,863.73",REVENUE,Comensura Ltd,4085767,COM0313M
North Lincolnshire Council,http://data.ordnancesurvey.co.uk/id/7000000000025623,Non Distributed Costs,Pay - Agency,131,24/07/2020,5880582,"1,416.00",REVENUE,Comensura Ltd,4085767,COM0313M
North Lincolnshire Council,http://data.ordnancesurvey.co.uk/id/7000000000025623,Public Health,Pay - Agency,131,03/07/2020,5872966,717.06,REVENUE,Comensura Ltd,4085767,COM0313M
North Lincolnshire Council,http://data.ordnancesurvey.co.uk/id/7000000000025623,Public Health,Pay - Agency,131,10/07/2020,5875405,717.06,REVENUE,Comensura Ltd,4085767,COM0313M
North Lincolnshire Council,http://data.ordnancesurvey.co.uk/id/7000000000025623,Public Health,Pay - Agency,131,22/07/2020,5878180,717.06,REVENUE,Comensura Ltd,4085767,COM0313M
North Lincolnshire Council,http://data.ordnancesurvey.co.uk/id/7000000000025623,Central Services To Public,Business Support Grants,6090,01/07/2020,5872513,"10,000.00",REVENUE,Communities Advice Centre Limited,,CD027820
North Lincolnshire Council,http://data.ordnancesurvey.co.uk/id/7000000000025623,Highways & Transport,Other Supplies & Services,5799,24/07/2020,5880259,"5,296.50",REVENUE,Comorant Survey Uk Ltd,,COM0311M
North Lincolnshire Council,http://data.ordnancesurvey.co.uk/id/7000000000025623,Adult Social Care,Equipment Purchase,5001,17/07/2020,5877008,263.29,REVENUE,Complete Care Shop,6352353,COM0257M
North Lincolnshire Council,http://data.ordnancesurvey.co.uk/id/7000000000025623,Central Services To Public,Equipment Purchase,5001,10/07/2020,5875044,"1,630.40",REVENUE,Complete Office Solutions (Uk) Ltd,3045607,AQU0001U
North Lincolnshire Council,http://data.ordnancesurvey.co.uk/id/7000000000025623,Central Services To Public,Equipment Purchase,5001,10/07/2020,5875048,"3,585.00",REVENUE,Complete Office Solutions (Uk) Ltd,3045607,AQU0001U
North Lincolnshire Council,http://data.ordnancesurvey.co.uk/id/7000000000025623,Childrens & Education,Client Related Costs,5534,10/07/2020,5875028,223.76,REVENUE,Complete Office Solutions (Uk) Ltd,3045607,AQU0001U
North Lincolnshire Council,http://data.ordnancesurvey.co.uk/id/7000000000025623,Childrens & Education,Equipment Purchase,5001,10/07/2020,5875041,249.5,REVENUE,Complete Office Solutions (Uk) Ltd,3045607,AQU0001U
North Lincolnshire Council,http://data.ordnancesurvey.co.uk/id/7000000000025623,Corporate And Democratic Core,Fixtures & Fittings,3350,10/07/2020,5875016,"2,728.00",REVENUE,Complete Office Solutions (Uk) Ltd,3045607,AQU0001U
North Lincolnshire Council,http://data.ordnancesurvey.co.uk/id/7000000000025623,Corporate And Democratic Core,Fixtures & Fittings,3350,10/07/2020,5875022,852.5,REVENUE,Complete Office Solutions (Uk) Ltd,3045607,AQU0001U
North Lincolnshire Council,http://data.ordnancesurvey.co.uk/id/7000000000025623,Culture & Related Services,Equipment Purchase,5001,10/07/2020,5875017,608,REVENUE,Complete Office Solutions (Uk) Ltd,3045607,AQU0001U
North Lincolnshire Council,http://data.ordnancesurvey.co.uk/id/7000000000025623,Environmental & Regulatory Svs,Gen Office Exp (Incl Postage),5603,10/07/2020,5875046,998,REVENUE,Complete Office Solutions (Uk) Ltd,3045607,AQU0001U
North Lincolnshire Council,http://data.ordnancesurvey.co.uk/id/7000000000025623,Highways & Transport,Repair & Maintenance Costs,3000,31/07/2020,5883164,"3,965.00",REVENUE,Complete Office Solutions (Uk) Ltd,3045607,AQU0001U
North Lincolnshire Council,http://data.ordnancesurvey.co.uk/id/7000000000025623,Highways & Transport,Repair & Maintenance Costs,3000,31/07/2020,5883166,"11,411.62",REVENUE,Complete Office Solutions (Uk) Ltd,3045607,AQU0001U
North Lincolnshire Council,http://data.ordnancesurvey.co.uk/id/7000000000025623,Planning Services,Equipment Purchase,5001,10/07/2020,5875042,249.5,REVENUE,Complete Office Solutions (Uk) Ltd,3045607,AQU0001U
North Lincolnshire Council,http://data.ordnancesurvey.co.uk/id/7000000000025623,Central Services To Public,Business Support Grants,6090,01/07/2020,5872473,"10,000.00",REVENUE,Coneygarth Farm Day Nursery Ltd,,CD027420
North Lincolnshire Council,http://data.ordnancesurvey.co.uk/id/7000000000025623,Childrens & Education,Equipment Purchase,5001,08/07/2020,5872828,547,REVENUE,Connevans Limited,,CON0120N
North Lincolnshire Council,http://data.ordnancesurvey.co.uk/id/7000000000025623,Childrens & Education,Equipment Purchase,5001,26/08/2020,5882020,"2,027.45",REVENUE,Connevans Limited,,CON0120N
North Lincolnshire Council,http://data.ordnancesurvey.co.uk/id/7000000000025623,Childrens & Education,Other Professional Fees,5829,17/07/2020,5878001,243,REVENUE,Corazon Health Limited,4434615,COR0290R
North Lincolnshire Council,http://data.ordnancesurvey.co.uk/id/7000000000025623,Adult Social Care,Gas,3101,05/08/2020,5881837,360.15,REVENUE,Corona Energy Retail 4 Ltd,,COR0300R
North Lincolnshire Council,http://data.ordnancesurvey.co.uk/id/7000000000025623,Adult Social Care,Gas,3101,05/08/2020,5881845,252.38,REVENUE,Corona Energy Retail 4 Ltd,,COR0300R
North Lincolnshire Council,http://data.ordnancesurvey.co.uk/id/7000000000025623,Adult Social Care,Gas,3101,05/08/2020,5881861,346.79,REVENUE,Corona Energy Retail 4 Ltd,,COR0300R
North Lincolnshire Council,http://data.ordnancesurvey.co.uk/id/7000000000025623,Childrens & Education,Gas,3101,29/07/2020,5881856,278.89,REVENUE,Corona Energy Retail 4 Ltd,,COR0300R
North Lincolnshire Council,http://data.ordnancesurvey.co.uk/id/7000000000025623,Childrens & Education,Gas,3101,05/08/2020,5881778,220.09,REVENUE,Corona Energy Retail 4 Ltd,,COR0300R
North Lincolnshire Council,http://data.ordnancesurvey.co.uk/id/7000000000025623,Childrens & Education,Gas,3101,05/08/2020,5881818,239.1,REVENUE,Corona Energy Retail 4 Ltd,,COR0300R
North Lincolnshire Council,http://data.ordnancesurvey.co.uk/id/7000000000025623,Corporate And Democratic Core,Gas,3101,05/08/2020,5881821,441.81,REVENUE,Corona Energy Retail 4 Ltd,,COR0300R
North Lincolnshire Council,http://data.ordnancesurvey.co.uk/id/7000000000025623,Corporate And Democratic Core,Gas,3101,05/08/2020,5881865,337.72,REVENUE,Corona Energy Retail 4 Ltd,,COR0300R
North Lincolnshire Council,http://data.ordnancesurvey.co.uk/id/7000000000025623,Culture & Related Services,Gas,3101,05/08/2020,5881794,411.46,REVENUE,Corona Energy Retail 4 Ltd,,COR0300R
North Lincolnshire Council,http://data.ordnancesurvey.co.uk/id/7000000000025623,Culture & Related Services,Gas,3101,05/08/2020,5881813,"1,418.88",REVENUE,Corona Energy Retail 4 Ltd,,COR0300R
North Lincolnshire Council,http://data.ordnancesurvey.co.uk/id/7000000000025623,Culture & Related Services,Gas,3101,05/08/2020,5881853,705.73,REVENUE,Corona Energy Retail 4 Ltd,,COR0300R
North Lincolnshire Council,http://data.ordnancesurvey.co.uk/id/7000000000025623,Culture & Related Services,Gas,3101,05/08/2020,5881866,577.59,REVENUE,Corona Energy Retail 4 Ltd,,COR0300R
North Lincolnshire Council,http://data.ordnancesurvey.co.uk/id/7000000000025623,Environmental & Regulatory Svs,Gas,3101,05/08/2020,5881869,"1,850.52",REVENUE,Corona Energy Retail 4 Ltd,,COR0300R
North Lincolnshire Council,http://data.ordnancesurvey.co.uk/id/7000000000025623,Non Distributed Costs,Gas,3101,05/08/2020,5881854,330.19,REVENUE,Corona Energy Retail 4 Ltd,,COR0300R
North Lincolnshire Council,http://data.ordnancesurvey.co.uk/id/7000000000025623,Childrens & Education,Client Related Costs,5534,17/07/2020,5877700,975,REVENUE,Country Kids Nursery,,COU0312U
North Lincolnshire Council,http://data.ordnancesurvey.co.uk/id/7000000000025623,Central Services To Public,Business Support Grants,6090,08/07/2020,5874963,"25,000.00",REVENUE,Courtesy Shoes Ltd,,CD028470
North Lincolnshire Council,http://data.ordnancesurvey.co.uk/id/7000000000025623,Environmental & Regulatory Svs,Materials,5004,10/07/2020,5875452,519.25,REVENUE,C P Davidson & Sons Ltd,2590166,DAV0077V
North Lincolnshire Council,http://data.ordnancesurvey.co.uk/id/7000000000025623,Fin&Inv I&E,Premises Insurance-Control.,3362,22/07/2020,5879290,559,REVENUE,Crawford Lawnmowers Ltd,,CRA0150A
North Lincolnshire Council,http://data.ordnancesurvey.co.uk/id/7000000000025623,Adult Social Care,Payments To Private Orgs,6002,03/07/2020,5872385,"107,818.14",REVENUE,Creative Support,,CRE0144E
North Lincolnshire Council,http://data.ordnancesurvey.co.uk/id/7000000000025623,Adult Social Care,Payments To Private Orgs,6002,03/07/2020,5872385,"1,920.79",REVENUE,Creative Support,,CRE0144E
North Lincolnshire Council,http://data.ordnancesurvey.co.uk/id/7000000000025623,Adult Social Care,Payments To Private Orgs,6002,31/07/2020,5882786,"111,461.75",REVENUE,Creative Support,,CRE0144E
North Lincolnshire Council,http://data.ordnancesurvey.co.uk/id/7000000000025623,Adult Social Care,Payments To Private Orgs,6002,31/07/2020,5882786,"3,366.96",REVENUE,Creative Support,,CRE0144E
North Lincolnshire Council,http://data.ordnancesurvey.co.uk/id/7000000000025623,Adult Social Care,Payments To Private Orgs,6002,31/07/2020,5882788,397.98,REVENUE,Creative Support,,CRE0144E
North Lincolnshire Council,http://data.ordnancesurvey.co.uk/id/7000000000025623,Adult Social Care,Payments To Private Orgs,6002,31/07/2020,5883377,"30,365.93",REVENUE,Creative Support,,CRE0144E
North Lincolnshire Council,http://data.ordnancesurvey.co.uk/id/7000000000025623,Adult Social Care,Payments To Private Orgs,6002,01/07/2020,5872396,"4,338.88",REVENUE,Creative Support Ltd,,ISF0013F
North Lincolnshire Council,http://data.ordnancesurvey.co.uk/id/7000000000025623,Adult Social Care,Payments To Private Orgs,6002,29/07/2020,5882802,"4,338.88",REVENUE,Creative Support Ltd,,ISF0013F
North Lincolnshire Council,http://data.ordnancesurvey.co.uk/id/7000000000025623,Environmental & Regulatory Svs,Materials,5004,08/07/2020,5864437,691.2,REVENUE,Cromwell Polythene Ltd,2230104,CRO0048O
North Lincolnshire Council,http://data.ordnancesurvey.co.uk/id/7000000000025623,Environmental & Regulatory Svs,Stock Purchases & Adjustments,5030,22/07/2020,5879201,"2,382.08",REVENUE,Cromwell Polythene Ltd,2230104,CRO0048O
North Lincolnshire Council,http://data.ordnancesurvey.co.uk/id/7000000000025623,Adult Social Care,Fees & Charges Income,9002,22/07/2020,5878507,-122.56,REVENUE,REDACTED,,REDACTED 
North Lincolnshire Council,http://data.ordnancesurvey.co.uk/id/7000000000025623,Childrens & Education,Home To School Transport,4201,08/07/2020,5874068,821.6,REVENUE,Crosby Cabz,,CRO0242O
North Lincolnshire Council,http://data.ordnancesurvey.co.uk/id/7000000000025623,Childrens & Education,Home To School Transport,4201,08/07/2020,5874069,346.5,REVENUE,Crosby Cabz,,CRO0242O
North Lincolnshire Council,http://data.ordnancesurvey.co.uk/id/7000000000025623,Childrens & Education,Home To School Transport,4201,08/07/2020,5874071,810,REVENUE,Crosby Cabz,,CRO0242O
North Lincolnshire Council,http://data.ordnancesurvey.co.uk/id/7000000000025623,Childrens & Education,Home To School Transport,4201,08/07/2020,5874072,792,REVENUE,Crosby Cabz,,CRO0242O
North Lincolnshire Council,http://data.ordnancesurvey.co.uk/id/7000000000025623,Childrens & Education,Home To School Transport,4201,08/07/2020,5874074,"1,092.00",REVENUE,Crosby Cabz,,CRO0242O
North Lincolnshire Council,http://data.ordnancesurvey.co.uk/id/7000000000025623,Childrens & Education,Home To School Transport,4201,08/07/2020,5874075,858,REVENUE,Crosby Cabz,,CRO0242O
North Lincolnshire Council,http://data.ordnancesurvey.co.uk/id/7000000000025623,Childrens & Education,Home To School Transport,4201,08/07/2020,5874076,"1,320.00",REVENUE,Crosby Cabz,,CRO0242O
North Lincolnshire Council,http://data.ordnancesurvey.co.uk/id/7000000000025623,Childrens & Education,Home To School Transport,4201,08/07/2020,5874077,"1,980.00",REVENUE,Crosby Cabz,,CRO0242O
North Lincolnshire Council,http://data.ordnancesurvey.co.uk/id/7000000000025623,Childrens & Education,Home To School Transport,4201,08/07/2020,5874078,792,REVENUE,Crosby Cabz,,CRO0242O
North Lincolnshire Council,http://data.ordnancesurvey.co.uk/id/7000000000025623,Childrens & Education,Home To School Transport,4201,08/07/2020,5874080,"1,188.00",REVENUE,Crosby Cabz,,CRO0242O
North Lincolnshire Council,http://data.ordnancesurvey.co.uk/id/7000000000025623,Childrens & Education,Home To School Transport,4201,08/07/2020,5874081,990,REVENUE,Crosby Cabz,,CRO0242O
North Lincolnshire Council,http://data.ordnancesurvey.co.uk/id/7000000000025623,Childrens & Education,Home To School Transport,4201,08/07/2020,5874083,552,REVENUE,Crosby Cabz,,CRO0242O
North Lincolnshire Council,http://data.ordnancesurvey.co.uk/id/7000000000025623,Childrens & Education,Home To School Transport,4201,08/07/2020,5874084,"1,276.00",REVENUE,Crosby Cabz,,CRO0242O
North Lincolnshire Council,http://data.ordnancesurvey.co.uk/id/7000000000025623,Central Services To Public,Business Support Grants,6090,01/07/2020,5872524,"4,000.00",REVENUE,Crosby Together,,CD027930
North Lincolnshire Council,http://data.ordnancesurvey.co.uk/id/7000000000025623,Childrens & Education,Rents,3201,31/07/2020,5883539,"3,750.00",REVENUE,Crosby Together,,CRO0159O
North Lincolnshire Council,http://data.ordnancesurvey.co.uk/id/7000000000025623,Central Services To Public,Business Support Grants,6090,01/07/2020,5872478,"2,500.00",REVENUE,Crosby United Junior Football Club,,CD027470
North Lincolnshire Council,http://data.ordnancesurvey.co.uk/id/7000000000025623,"Culture,Env,Reg & Planning Cap",Other Costs,A085,22/07/2020,5877842,"10,000.00",CAPITAL,Crowle & Ealand Playing Field Assocn,,CRO0184O
North Lincolnshire Council,http://data.ordnancesurvey.co.uk/id/7000000000025623,Planning Services,Payments To Voluntary Orgs,6001,08/07/2020,5873045,"2,791.00",REVENUE,Crowle & Ealand Regeneration Project Ltd,,CRO0130O
North Lincolnshire Council,http://data.ordnancesurvey.co.uk/id/7000000000025623,Culture & Related Services,Other Supplies & Services,5799,01/07/2020,5871545,"1,974.19",REVENUE,Crowle Peatland Railway,,CRO0463O
North Lincolnshire Council,http://data.ordnancesurvey.co.uk/id/7000000000025623,Culture & Related Services,Other Supplies & Services,5799,01/07/2020,5871546,331.3,REVENUE,Crowle Peatland Railway,,CRO0463O
North Lincolnshire Council,http://data.ordnancesurvey.co.uk/id/7000000000025623,Culture & Related Services,Other Supplies & Services,5799,17/07/2020,5877373,510.14,REVENUE,Crowle Peatland Railway,,CRO0463O
North Lincolnshire Council,http://data.ordnancesurvey.co.uk/id/7000000000025623,Culture & Related Services,Other Supplies & Services,5799,29/07/2020,5882395,816.79,REVENUE,Crowle Peatland Railway,,CRO0463O
North Lincolnshire Council,http://data.ordnancesurvey.co.uk/id/7000000000025623,Childrens & Education,Gas,3101,08/07/2020,5874235,356.18,REVENUE,Crowle Primary Academy,,CRO0346O
North Lincolnshire Council,http://data.ordnancesurvey.co.uk/id/7000000000025623,Central Services To Public,Business Support Grants,6090,01/07/2020,5872470,"10,000.00",REVENUE,Crownship Developments Ltd,,CD027390
North Lincolnshire Council,http://data.ordnancesurvey.co.uk/id/7000000000025623,Highways & Transport,Other Vehicle Costs,4005,15/07/2020,5875451,"2,318.25",REVENUE,Ctrack Ltd,4643588,CTR0001R
North Lincolnshire Council,http://data.ordnancesurvey.co.uk/id/7000000000025623,Childrens & Education,Telephone Rent/Calls,5403,17/07/2020,5877612,102.6,REVENUE,Daisy Communications Ltd,4145329,DAI0009I
North Lincolnshire Council,http://data.ordnancesurvey.co.uk/id/7000000000025623,Childrens & Education,Telephone Rent/Calls,5403,17/07/2020,5877612,427.67,REVENUE,Daisy Communications Ltd,4145329,DAI0009I
North Lincolnshire Council,http://data.ordnancesurvey.co.uk/id/7000000000025623,Corporate And Democratic Core,Telephone Rent/Calls,5403,17/07/2020,5877612,"14,284.62",REVENUE,Daisy Communications Ltd,4145329,DAI0009I
North Lincolnshire Council,http://data.ordnancesurvey.co.uk/id/7000000000025623,Central Services To Public,Business Support Grants,6090,24/07/2020,5874920,"2,000.00",REVENUE,D And N Bodyshop,,CD028140
North Lincolnshire Council,http://data.ordnancesurvey.co.uk/id/7000000000025623,Central Services To Public,Business Support Grants,6090,01/07/2020,5872447,"2,000.00",REVENUE,Dans Driving School,,CD027160
North Lincolnshire Council,http://data.ordnancesurvey.co.uk/id/7000000000025623,Central Services To Public,Business Support Grants,6090,01/07/2020,5872514,"25,000.00",REVENUE,Dara Kadir Ismail,,CD027830
North Lincolnshire Council,http://data.ordnancesurvey.co.uk/id/7000000000025623,Planning Services,Other Premises Costs,3390,15/07/2020,5876886,"13,105.20",REVENUE,David Samuel Management Ltd,,SAM0300M
North Lincolnshire Council,http://data.ordnancesurvey.co.uk/id/7000000000025623,Central Services To Public,Business Support Grants,6090,22/07/2020,5880271,"10,000.00",REVENUE,Dcc Logistics Group Ltd,,CD028920
North Lincolnshire Council,http://data.ordnancesurvey.co.uk/id/7000000000025623,Central Services To Public,Business Support Grants,6090,22/07/2020,5880272,"10,000.00",REVENUE,Dcc Logistics Ltd,,CD028930
North Lincolnshire Council,http://data.ordnancesurvey.co.uk/id/7000000000025623,Childrens & Education,Repair & Maintenance Costs,3000,10/07/2020,5875213,340,REVENUE,Delta Security Systems Ltd,6373017,DEL0004L
North Lincolnshire Council,http://data.ordnancesurvey.co.uk/id/7000000000025623,Central Services To Public,Business Support Grants,6090,01/07/2020,5872476,"5,000.00",REVENUE,D. Grigaitis Limited,,CD027450
North Lincolnshire Council,http://data.ordnancesurvey.co.uk/id/7000000000025623,Central Services To Public,Business Support Grants,6090,15/07/2020,5877395,"10,000.00",REVENUE,Diamond Life Ltd,,CD028620
North Lincolnshire Council,http://data.ordnancesurvey.co.uk/id/7000000000025623,Central Services To Public,Business Support Grants,6090,22/07/2020,5880264,"10,000.00",REVENUE,D.I.B Holdings Llp,,CD028850
North Lincolnshire Council,http://data.ordnancesurvey.co.uk/id/7000000000025623,Environmental & Regulatory Svs,Materials,5004,29/07/2020,5882106,267.31,REVENUE,Direct Commercial Veh.Serv.Ltd,2267244,DIR0001R
North Lincolnshire Council,http://data.ordnancesurvey.co.uk/id/7000000000025623,Central Services To Public,Business Support Grants,6090,01/07/2020,5872472,"10,000.00",REVENUE,Direct Hoist Ltd,,CD027410
North Lincolnshire Council,http://data.ordnancesurvey.co.uk/id/7000000000025623,Adult Social Care,Other Professional Fees,5829,08/07/2020,5872968,416,REVENUE,Disability Sheffield,,DIS0026S
North Lincolnshire Council,http://data.ordnancesurvey.co.uk/id/7000000000025623,Central Services To Public,Business Support Grants,6090,08/07/2020,5874950,"10,000.00",REVENUE,D & J Kraszewski,,CD028340
North Lincolnshire Council,http://data.ordnancesurvey.co.uk/id/7000000000025623,Childrens & Education,Home To School Transport,4201,10/07/2020,5874329,"7,128.00",REVENUE,D J Taxis Scunthorpe,,DJT0001T
North Lincolnshire Council,http://data.ordnancesurvey.co.uk/id/7000000000025623,Highways & Transport,Other Supplies & Services,5799,15/07/2020,5876682,"3,456.50",REVENUE,Dla Piper Uk Ltd,,DLA0130A
North Lincolnshire Council,http://data.ordnancesurvey.co.uk/id/7000000000025623,Central Services To Public,Business Support Grants,6090,24/07/2020,5881044,"10,000.00",REVENUE,D & Mp Taylor Newsagent And Stores,,CD029010
North Lincolnshire Council,http://data.ordnancesurvey.co.uk/id/7000000000025623,Central Services To Public,Business Support Grants,6090,01/07/2020,5872452,"5,000.00",REVENUE,Dolphin Motors,,CD027210
North Lincolnshire Council,http://data.ordnancesurvey.co.uk/id/7000000000025623,Central Services To Public,Business Support Grants,6090,01/07/2020,5872467,"8,500.00",REVENUE,Doncaster And South Humberside,,CD027360
North Lincolnshire Council,http://data.ordnancesurvey.co.uk/id/7000000000025623,Adult Social Care,Payments To Health Providers,6019,17/07/2020,5877536,"1,987.00",REVENUE,Doncaster & Bassetlaw Hospitals Nhs Trust,,DON0232N
North Lincolnshire Council,http://data.ordnancesurvey.co.uk/id/7000000000025623,Adult Social Care,Payments To Health Providers,6019,17/07/2020,5877537,654,REVENUE,Doncaster & Bassetlaw Hospitals Nhs Trust,,DON0232N
North Lincolnshire Council,http://data.ordnancesurvey.co.uk/id/7000000000025623,Adult Social Care,Payments To Health Providers,6019,17/07/2020,5877538,875.32,REVENUE,Doncaster & Bassetlaw Hospitals Nhs Trust,,DON0232N
North Lincolnshire Council,http://data.ordnancesurvey.co.uk/id/7000000000025623,Childrens & Education,Payments To Other La'S,6003,29/07/2020,5882416,"4,835.00",REVENUE,Doncaster Metropolitan B C,,DON0001N
North Lincolnshire Council,http://data.ordnancesurvey.co.uk/id/7000000000025623,Childrens & Education,Payments To Private Orgs,6002,22/07/2020,5878169,"7,513.32",REVENUE,Do-Re-Mi Nursery,,WIN0044N
North Lincolnshire Council,http://data.ordnancesurvey.co.uk/id/7000000000025623,Childrens & Education,Payments To Private Orgs,6002,10/07/2020,5875348,"19,354.20",REVENUE,Dove Adolescent Care,,DOV0001V
North Lincolnshire Council,http://data.ordnancesurvey.co.uk/id/7000000000025623,Central Services To Public,Business Support Grants,6090,01/07/2020,5872480,"2,500.00",REVENUE,Dove Engineering Consultancy Ltd,,CD027490
North Lincolnshire Council,http://data.ordnancesurvey.co.uk/id/7000000000025623,Childrens & Education,Legal Fees,5823,15/07/2020,5876680,513,REVENUE,Dr Anne M Kelly,,KEL0014L
North Lincolnshire Council,http://data.ordnancesurvey.co.uk/id/7000000000025623,Adult Social Care,Other Professional Fees,5829,22/07/2020,5875949,364.8,REVENUE,Dr Graham Hayes,,HAY0027Y
North Lincolnshire Council,http://data.ordnancesurvey.co.uk/id/7000000000025623,Adult Social Care Capital,Other Costs,A085,15/07/2020,5874939,684.6,CAPITAL,Drive Devilbiss Healthcare Limited,4301005,DRI0008I
North Lincolnshire Council,http://data.ordnancesurvey.co.uk/id/7000000000025623,Adult Social Care Capital,Other Costs,A085,15/07/2020,5874944,"2,478.20",CAPITAL,Drive Devilbiss Healthcare Limited,4301005,DRI0008I
North Lincolnshire Council,http://data.ordnancesurvey.co.uk/id/7000000000025623,Adult Social Care,Payments To Health Providers,6019,17/07/2020,5877545,358.97,REVENUE,Dr M J Dwyer & Partners,,DWY0001Y
North Lincolnshire Council,http://data.ordnancesurvey.co.uk/id/7000000000025623,Public Health,Payments To Health Providers,6019,17/07/2020,5877545,20,REVENUE,Dr M J Dwyer & Partners,,DWY0001Y
North Lincolnshire Council,http://data.ordnancesurvey.co.uk/id/7000000000025623,Culture & Related Services,Payments To Private Orgs,6002,29/07/2020,5882396,"1,100.00",REVENUE,D Roberts,,ROB0139B
North Lincolnshire Council,http://data.ordnancesurvey.co.uk/id/7000000000025623,Childrens & Education,Legal Fees,5823,29/07/2020,5882278,428.4,REVENUE,Dr Russell D Keenan,,RUS0111S
North Lincolnshire Council,http://data.ordnancesurvey.co.uk/id/7000000000025623,Childrens & Education,Legal Fees,5823,29/07/2020,5882285,435.8,REVENUE,Dr Suraj Shenoy,,SUR0011R
North Lincolnshire Council,http://data.ordnancesurvey.co.uk/id/7000000000025623,Environmental & Regulatory Svs,Other Professional Fees,5829,10/07/2020,5874315,"2,025.00",REVENUE,Dr T Mahmood Anwar,,MAH0003H
North Lincolnshire Council,http://data.ordnancesurvey.co.uk/id/7000000000025623,Corporate And Democratic Core,Other Supplies & Services,5799,31/07/2020,5883066,"1,000.00",REVENUE,Dun & Bradstreet Ltd,,DUN0013N
North Lincolnshire Council,http://data.ordnancesurvey.co.uk/id/7000000000025623,Highways & Transport,Equipment Maint.& Repair,5003,01/07/2020,5859877,812.18,REVENUE,Dynniq Uk Ltd,,DYN0017N
North Lincolnshire Council,http://data.ordnancesurvey.co.uk/id/7000000000025623,Central Services To Public,Business Support Grants,6090,08/07/2020,5874965,"10,000.00",REVENUE,Ealand Victory Hall (Also Known As,,CD028490
North Lincolnshire Council,http://data.ordnancesurvey.co.uk/id/7000000000025623,Culture & Related Services,Other Supplies & Services,5799,08/07/2020,5872846,"18,750.00",REVENUE,E A Littlewood,,LIT0008T
North Lincolnshire Council,http://data.ordnancesurvey.co.uk/id/7000000000025623,Planning Services,Other Professional Fees,5829,15/07/2020,5876788,"1,583.33",REVENUE,Easters & Son Commercial Services Ltd,,EAS0590S
North Lincolnshire Council,http://data.ordnancesurvey.co.uk/id/7000000000025623,Planning Services,Other Professional Fees,5829,15/07/2020,5876790,"2,831.83",REVENUE,Easters & Son Commercial Services Ltd,,EAS0590S
North Lincolnshire Council,http://data.ordnancesurvey.co.uk/id/7000000000025623,Planning Services,Payments To Voluntary Orgs,6001,22/07/2020,5879471,"2,061.35",REVENUE,Eastoft C.E. School Fund,,EAS0145S
North Lincolnshire Council,http://data.ordnancesurvey.co.uk/id/7000000000025623,Childrens & Education,Payments To Private Orgs,6002,03/07/2020,5872688,507.99,REVENUE,Eastoft Little Legs,,EAS0282S
North Lincolnshire Council,http://data.ordnancesurvey.co.uk/id/7000000000025623,Culture & Related Services,Materials,5004,03/07/2020,5872025,210,REVENUE,East Riding Horticulture Ltd,,EAS0166S
North Lincolnshire Council,http://data.ordnancesurvey.co.uk/id/7000000000025623,Highways & Transport,Concessionary Fares,6010,03/07/2020,5871968,"4,000.00",REVENUE,East Yorkshire Motor Services Ltd,216628,EAS0120S
North Lincolnshire Council,http://data.ordnancesurvey.co.uk/id/7000000000025623,Culture & Related Services,Repair & Maintenance Costs,3000,31/07/2020,5883169,"3,183.80",REVENUE,E C Surfacing Ltd,7080098,ECS0006S
North Lincolnshire Council,http://data.ordnancesurvey.co.uk/id/7000000000025623,Central Services To Public,Business Support Grants,6090,01/07/2020,5872508,"5,500.00",REVENUE,Eddies Transport Limited,,CD027770
North Lincolnshire Council,http://data.ordnancesurvey.co.uk/id/7000000000025623,Corporate And Democratic Core,Gen Office Exp (Incl Postage),5603,24/07/2020,5880561,"1,500.00",REVENUE,Education And I.T. Limited,5784075,EDU0078U
North Lincolnshire Council,http://data.ordnancesurvey.co.uk/id/7000000000025623,Adult Social Care,Payments To Private Orgs,6002,01/07/2020,5872394,"2,447.20",REVENUE,Elite Care Solutions Ltd,,ISF0009F
North Lincolnshire Council,http://data.ordnancesurvey.co.uk/id/7000000000025623,Adult Social Care,Payments To Private Orgs,6002,01/07/2020,5872394,134.4,REVENUE,Elite Care Solutions Ltd,,ISF0009F
North Lincolnshire Council,http://data.ordnancesurvey.co.uk/id/7000000000025623,Adult Social Care,Payments To Private Orgs,6002,29/07/2020,5882800,134.4,REVENUE,Elite Care Solutions Ltd,,ISF0009F
North Lincolnshire Council,http://data.ordnancesurvey.co.uk/id/7000000000025623,Adult Social Care,Payments To Private Orgs,6002,29/07/2020,5882800,"2,447.20",REVENUE,Elite Care Solutions Ltd,,ISF0009F
North Lincolnshire Council,http://data.ordnancesurvey.co.uk/id/7000000000025623,Central Services To Public,Business Support Grants,6090,29/07/2020,5882895,"10,000.00",REVENUE,Elite Hand Car Wash Limited,,CD029150
North Lincolnshire Council,http://data.ordnancesurvey.co.uk/id/7000000000025623,Environmental & Regulatory Svs,Other Professional Fees,5829,29/07/2020,5880605,"3,477.54",REVENUE,Ellgia Scunthorpe,860123,BEL0170L
North Lincolnshire Council,http://data.ordnancesurvey.co.uk/id/7000000000025623,Environmental & Regulatory Svs,Payments To Private Orgs,6002,22/07/2020,5879221,"1,987.56",REVENUE,Ellgia Scunthorpe,860123,BEL0170L
North Lincolnshire Council,http://data.ordnancesurvey.co.uk/id/7000000000025623,Central Services To Public,Business Support Grants,6090,01/07/2020,5872492,"25,000.00",REVENUE,Elsham Golf Club,,CD027610
North Lincolnshire Council,http://data.ordnancesurvey.co.uk/id/7000000000025623,Adult Social Care,Payments To Private Orgs,6002,01/07/2020,5872399,"3,927.92",REVENUE,Emerald Care Services (North Lincs) Ltd,,ISF0026F
North Lincolnshire Council,http://data.ordnancesurvey.co.uk/id/7000000000025623,Adult Social Care,Payments To Private Orgs,6002,03/07/2020,5872389,"45,208.81",REVENUE,Emerald Care Services (North Lincs) Ltd,8136830,EME0032E
North Lincolnshire Council,http://data.ordnancesurvey.co.uk/id/7000000000025623,Adult Social Care,Payments To Private Orgs,6002,03/07/2020,5872389,"1,824.00",REVENUE,Emerald Care Services (North Lincs) Ltd,8136830,EME0032E
North Lincolnshire Council,http://data.ordnancesurvey.co.uk/id/7000000000025623,Adult Social Care,Payments To Private Orgs,6002,31/07/2020,5882792,"1,824.00",REVENUE,Emerald Care Services (North Lincs) Ltd,8136830,EME0032E
North Lincolnshire Council,http://data.ordnancesurvey.co.uk/id/7000000000025623,Adult Social Care,Payments To Private Orgs,6002,31/07/2020,5882792,"44,031.69",REVENUE,Emerald Care Services (North Lincs) Ltd,8136830,EME0032E
North Lincolnshire Council,http://data.ordnancesurvey.co.uk/id/7000000000025623,Adult Social Care,Payments To Private Orgs,6002,31/07/2020,5882793,"-3,920.67",REVENUE,Emerald Care Services (North Lincs) Ltd,8136830,EME0032E
North Lincolnshire Council,http://data.ordnancesurvey.co.uk/id/7000000000025623,Adult Social Care,Payments To Private Orgs,6002,31/07/2020,5883379,"5,478.84",REVENUE,Emerald Care Services (North Lincs) Ltd,8136830,EME0032E
North Lincolnshire Council,http://data.ordnancesurvey.co.uk/id/7000000000025623,Childrens & Education,Payments To Private Orgs,6002,10/07/2020,5875207,437,REVENUE,Emerald Care Services (North Lincs) Ltd,8136830,EME0032E
North Lincolnshire Council,http://data.ordnancesurvey.co.uk/id/7000000000025623,Childrens & Education,Payments To Private Orgs,6002,17/07/2020,5877831,475,REVENUE,Emerald Care Services (North Lincs) Ltd,8136830,EME0032E
North Lincolnshire Council,http://data.ordnancesurvey.co.uk/id/7000000000025623,Central Services To Public,Provisions,5201,22/07/2020,5879364,428.1,REVENUE,Emergency Finthree,,NOR2002R
North Lincolnshire Council,http://data.ordnancesurvey.co.uk/id/7000000000025623,Central Services To Public,Business Support Grants,6090,01/07/2020,5872435,"4,000.00",REVENUE,Emma Taylor,,CD027040
North Lincolnshire Council,http://data.ordnancesurvey.co.uk/id/7000000000025623,Central Services To Public,Business Support Grants,6090,01/07/2020,5872464,"6,000.00",REVENUE,Endor Learn & Develop,,CD027330
North Lincolnshire Council,http://data.ordnancesurvey.co.uk/id/7000000000025623,Environmental & Regulatory Svs,Other Supplies & Services,5799,15/07/2020,5874170,900,REVENUE,Enitial,2589078,ENI0002I
North Lincolnshire Council,http://data.ordnancesurvey.co.uk/id/7000000000025623,Culture & Related Services,Other Supplies & Services,5799,15/07/2020,5875012,212.78,REVENUE,Envirotec,,ENV0092V
North Lincolnshire Council,http://data.ordnancesurvey.co.uk/id/7000000000025623,Public Health,Equipment Maint.& Repair,5003,24/07/2020,5880343,"3,125.00",REVENUE,Envirotech Europe Ltd,SC367372,ENV0168V
North Lincolnshire Council,http://data.ordnancesurvey.co.uk/id/7000000000025623,Environmental & Regulatory Svs,Payments To Private Orgs,6002,22/07/2020,5879220,465.75,REVENUE,Envirotyre Uk Ltd,,ENV0014V
North Lincolnshire Council,http://data.ordnancesurvey.co.uk/id/7000000000025623,Central Services To Public,Business Support Grants,6090,01/07/2020,5872495,"10,000.00",REVENUE,Epworth & District Agricultural Society Ltd,,CD027640
North Lincolnshire Council,http://data.ordnancesurvey.co.uk/id/7000000000025623,Childrens & Education,Home To School Transport,4201,03/07/2020,5872829,"1,276.00",REVENUE,Epworth Taxis Ltd,8601067,EPW0003W
North Lincolnshire Council,http://data.ordnancesurvey.co.uk/id/7000000000025623,Childrens & Education,Home To School Transport,4201,03/07/2020,5872830,440.1,REVENUE,Epworth Taxis Ltd,8601067,EPW0003W
North Lincolnshire Council,http://data.ordnancesurvey.co.uk/id/7000000000025623,Childrens & Education,Home To School Transport,4201,03/07/2020,5872832,"1,193.50",REVENUE,Epworth Taxis Ltd,8601067,EPW0003W
North Lincolnshire Council,http://data.ordnancesurvey.co.uk/id/7000000000025623,Childrens & Education,Home To School Transport,4201,03/07/2020,5872834,"1,413.50",REVENUE,Epworth Taxis Ltd,8601067,EPW0003W
North Lincolnshire Council,http://data.ordnancesurvey.co.uk/id/7000000000025623,Childrens & Education,Home To School Transport,4201,03/07/2020,5872835,880,REVENUE,Epworth Taxis Ltd,8601067,EPW0003W
North Lincolnshire Council,http://data.ordnancesurvey.co.uk/id/7000000000025623,Childrens & Education,Home To School Transport,4201,03/07/2020,5872836,757.9,REVENUE,Epworth Taxis Ltd,8601067,EPW0003W
North Lincolnshire Council,http://data.ordnancesurvey.co.uk/id/7000000000025623,Childrens & Education,Home To School Transport,4201,03/07/2020,5872837,880,REVENUE,Epworth Taxis Ltd,8601067,EPW0003W
North Lincolnshire Council,http://data.ordnancesurvey.co.uk/id/7000000000025623,Childrens & Education,Home To School Transport,4201,03/07/2020,5872838,854.7,REVENUE,Epworth Taxis Ltd,8601067,EPW0003W
North Lincolnshire Council,http://data.ordnancesurvey.co.uk/id/7000000000025623,Childrens & Education,Home To School Transport,4201,24/07/2020,5880333,705.25,REVENUE,Epworth Taxis Ltd,8601067,EPW0003W
North Lincolnshire Council,http://data.ordnancesurvey.co.uk/id/7000000000025623,Childrens & Education,Home To School Transport,4201,24/07/2020,5880334,835.25,REVENUE,Epworth Taxis Ltd,8601067,EPW0003W
North Lincolnshire Council,http://data.ordnancesurvey.co.uk/id/7000000000025623,Childrens & Education,Home To School Transport,4201,24/07/2020,5880335,520,REVENUE,Epworth Taxis Ltd,8601067,EPW0003W
North Lincolnshire Council,http://data.ordnancesurvey.co.uk/id/7000000000025623,Childrens & Education,Home To School Transport,4201,24/07/2020,5880337,447.85,REVENUE,Epworth Taxis Ltd,8601067,EPW0003W
North Lincolnshire Council,http://data.ordnancesurvey.co.uk/id/7000000000025623,Childrens & Education,Home To School Transport,4201,24/07/2020,5880338,520,REVENUE,Epworth Taxis Ltd,8601067,EPW0003W
North Lincolnshire Council,http://data.ordnancesurvey.co.uk/id/7000000000025623,Childrens & Education,Home To School Transport,4201,24/07/2020,5880339,505.05,REVENUE,Epworth Taxis Ltd,8601067,EPW0003W
North Lincolnshire Council,http://data.ordnancesurvey.co.uk/id/7000000000025623,Childrens & Education,Home To School Transport,4201,24/07/2020,5880340,754,REVENUE,Epworth Taxis Ltd,8601067,EPW0003W
North Lincolnshire Council,http://data.ordnancesurvey.co.uk/id/7000000000025623,Childrens & Education,Home To School Transport,4201,24/07/2020,5880341,244.5,REVENUE,Epworth Taxis Ltd,8601067,EPW0003W
North Lincolnshire Council,http://data.ordnancesurvey.co.uk/id/7000000000025623,Central Services To Public,Business Support Grants,6090,16/07/2020,5877646,"10,000.00",REVENUE,Epworth War Memorial Field,,CD028790
North Lincolnshire Council,http://data.ordnancesurvey.co.uk/id/7000000000025623,Culture & Related Services,Gen Office Exp (Incl Postage),5603,24/07/2020,5880366,223.5,REVENUE,Eryc - Supplies,,EAS0125S
North Lincolnshire Council,http://data.ordnancesurvey.co.uk/id/7000000000025623,Planning Services,Cleaning Costs/ Materials,3301,29/07/2020,5882439,338.1,REVENUE,Eryc - Supplies,,EAS0125S
North Lincolnshire Council,http://data.ordnancesurvey.co.uk/id/7000000000025623,"Culture,Env,Reg & Planning Cap",Building/Construction,A082,08/07/2020,5874189,"6,719.14",CAPITAL,Esh Construction Ltd,2529939,ESH0002H
North Lincolnshire Council,http://data.ordnancesurvey.co.uk/id/7000000000025623,Childrens & Education,It Software-Maintenance,5053,10/07/2020,5874667,209.89,REVENUE,Euclid Limited,,EUC0003C
North Lincolnshire Council,http://data.ordnancesurvey.co.uk/id/7000000000025623,Central Services To Public,Business Support Grants,6090,15/07/2020,5877390,"10,000.00",REVENUE,Eva Brothers,,CD028570
North Lincolnshire Council,http://data.ordnancesurvey.co.uk/id/7000000000025623,Central Services To Public,Business Support Grants,6090,01/07/2020,5872522,"3,000.00",REVENUE,Evolve Business Developments,,CD027910
North Lincolnshire Council,http://data.ordnancesurvey.co.uk/id/7000000000025623,Environmental & Regulatory Svs,It Software-Maintenance,5053,04/07/2020,5871828,"-1,467.00",REVENUE,Exegesis Sdm Ltd,,EXE0011E
North Lincolnshire Council,http://data.ordnancesurvey.co.uk/id/7000000000025623,Housing Services,Other Supplies & Services,5799,29/07/2020,5881081,800,REVENUE,Expedius Properties,,EXP0028P
North Lincolnshire Council,http://data.ordnancesurvey.co.uk/id/7000000000025623,Environmental & Regulatory Svs,Other Premises Costs,3390,08/07/2020,5874236,"2,440.00",REVENUE,Eye Watch Security Ltd,4480210,EYE0006E
North Lincolnshire Council,http://data.ordnancesurvey.co.uk/id/7000000000025623,Environmental & Regulatory Svs,Other Premises Costs,3390,08/07/2020,5874237,600,REVENUE,Eye Watch Security Ltd,4480210,EYE0006E
North Lincolnshire Council,http://data.ordnancesurvey.co.uk/id/7000000000025623,Fin&Inv I&E,Other Supplies & Services,5799,10/07/2020,5874947,533.5,REVENUE,Eye Watch Security Ltd,4480210,EYE0006E
North Lincolnshire Council,http://data.ordnancesurvey.co.uk/id/7000000000025623,Fin&Inv I&E,Other Supplies & Services,5799,29/07/2020,5882336,557.75,REVENUE,Eye Watch Security Ltd,4480210,EYE0006E
North Lincolnshire Council,http://data.ordnancesurvey.co.uk/id/7000000000025623,Environmental & Regulatory Svs,Equipment Maint.& Repair,5003,29/07/2020,5882387,"6,285.00",REVENUE,Facultatieve Technologies Ltd,633222,FAC0013C
North Lincolnshire Council,http://data.ordnancesurvey.co.uk/id/7000000000025623,Culture & Related Services,Other Supplies & Services,5799,15/04/2020,5880375,"-2,620.00",REVENUE,Fairview Music,,FAI0051I
North Lincolnshire Council,http://data.ordnancesurvey.co.uk/id/7000000000025623,Central Services To Public,Business Support Grants,6090,01/07/2020,5872497,"2,000.00",REVENUE,Fcs Sports Limited,,CD027660
North Lincolnshire Council,http://data.ordnancesurvey.co.uk/id/7000000000025623,Childrens & Education,"Licenses, Subs & Memberships",5510,31/07/2020,5883533,900,REVENUE,Fellowship Of Inspection Nominees,10850428,FEL0006L
North Lincolnshire Council,http://data.ordnancesurvey.co.uk/id/7000000000025623,Central Services To Public,Business Support Grants,6090,01/07/2020,5872512,"25,000.00",REVENUE,Fenix Active Ltd,,CD027810
North Lincolnshire Council,http://data.ordnancesurvey.co.uk/id/7000000000025623,Central Services To Public,Business Support Grants,6090,15/07/2020,5877385,"10,000.00",REVENUE,Ferncroft Environmental,,CD028520
North Lincolnshire Council,http://data.ordnancesurvey.co.uk/id/7000000000025623,Culture & Related Services,Vehicle Repairs,4004,10/07/2020,5873982,771.42,REVENUE,F G Adamson & Son,,ADA0002A
North Lincolnshire Council,http://data.ordnancesurvey.co.uk/id/7000000000025623,Childrens & Education,Payments To Private Orgs,6002,08/07/2020,5874000,220,REVENUE,First Class Tailored Solutions Ltd,7819183,FIR0124R
North Lincolnshire Council,http://data.ordnancesurvey.co.uk/id/7000000000025623,Childrens & Education,Payments To Private Orgs,6002,08/07/2020,5874002,320,REVENUE,First Class Tailored Solutions Ltd,7819183,FIR0124R
North Lincolnshire Council,http://data.ordnancesurvey.co.uk/id/7000000000025623,Childrens & Education,Payments To Private Orgs,6002,15/07/2020,5875651,320,REVENUE,First Class Tailored Solutions Ltd,7819183,FIR0124R
North Lincolnshire Council,http://data.ordnancesurvey.co.uk/id/7000000000025623,Childrens & Education,Payments To Private Orgs,6002,15/07/2020,5875654,220,REVENUE,First Class Tailored Solutions Ltd,7819183,FIR0124R
North Lincolnshire Council,http://data.ordnancesurvey.co.uk/id/7000000000025623,Childrens & Education,Payments To Private Orgs,6002,17/07/2020,5877376,220,REVENUE,First Class Tailored Solutions Ltd,7819183,FIR0124R
North Lincolnshire Council,http://data.ordnancesurvey.co.uk/id/7000000000025623,Childrens & Education,Payments To Private Orgs,6002,17/07/2020,5877377,320,REVENUE,First Class Tailored Solutions Ltd,7819183,FIR0124R
North Lincolnshire Council,http://data.ordnancesurvey.co.uk/id/7000000000025623,Highways & Transport,Passenger Transport,6011,24/07/2020,5880255,"1,020.50",REVENUE,First South Yorkshire Ltd,2332529,FIR0041R
North Lincolnshire Council,http://data.ordnancesurvey.co.uk/id/7000000000025623,Highways & Transport,Passenger Transport,6011,24/07/2020,5880257,979.68,REVENUE,First South Yorkshire Ltd,2332529,FIR0041R
North Lincolnshire Council,http://data.ordnancesurvey.co.uk/id/7000000000025623,Highways & Transport,Passenger Transport,6011,24/07/2020,5880258,"1,061.32",REVENUE,First South Yorkshire Ltd,2332529,FIR0041R
North Lincolnshire Council,http://data.ordnancesurvey.co.uk/id/7000000000025623,Highways & Transport,Other Supplies & Services,5799,31/07/2020,5876569,"27,512.00",REVENUE,First Step Sports Ltd,,FIR0143R
North Lincolnshire Council,http://data.ordnancesurvey.co.uk/id/7000000000025623,Childrens & Education,Payments To Private Orgs,6002,03/07/2020,5872945,"3,403.50",REVENUE,Five Rivers Child Care Ltd,,FIV0006V
North Lincolnshire Council,http://data.ordnancesurvey.co.uk/id/7000000000025623,Highways & Transport,Equipment Hire/Rent,5002,29/07/2020,5882110,368.25,REVENUE,Fleetclean Ltd,1381865,FLE0007E
North Lincolnshire Council,http://data.ordnancesurvey.co.uk/id/7000000000025623,Adult Social Care,Materials,5004,10/07/2020,5875481,227.86,REVENUE,Fleet Factors Ltd,1231325,FLE0026E
North Lincolnshire Council,http://data.ordnancesurvey.co.uk/id/7000000000025623,Childrens & Education,Materials,5004,10/07/2020,5875489,283.09,REVENUE,Fleet Factors Ltd,1231325,FLE0026E
North Lincolnshire Council,http://data.ordnancesurvey.co.uk/id/7000000000025623,Childrens & Education,Materials,5004,10/07/2020,5875494,405.01,REVENUE,Fleet Factors Ltd,1231325,FLE0026E
North Lincolnshire Council,http://data.ordnancesurvey.co.uk/id/7000000000025623,Childrens & Education,Materials,5004,29/07/2020,5882133,398.06,REVENUE,Fleet Factors Ltd,1231325,FLE0026E
North Lincolnshire Council,http://data.ordnancesurvey.co.uk/id/7000000000025623,Childrens & Education,Other Vehicle Costs,4005,29/07/2020,5882111,713.7,REVENUE,Fleet Factors Ltd,1231325,FLE0026E
North Lincolnshire Council,http://data.ordnancesurvey.co.uk/id/7000000000025623,Culture & Related Services,Materials,5004,10/07/2020,5875476,635,REVENUE,Fleet Factors Ltd,1231325,FLE0026E
North Lincolnshire Council,http://data.ordnancesurvey.co.uk/id/7000000000025623,Culture & Related Services,Materials,5004,10/07/2020,5875508,617.87,REVENUE,Fleet Factors Ltd,1231325,FLE0026E
North Lincolnshire Council,http://data.ordnancesurvey.co.uk/id/7000000000025623,Culture & Related Services,Materials,5004,10/07/2020,5875520,638.48,REVENUE,Fleet Factors Ltd,1231325,FLE0026E
North Lincolnshire Council,http://data.ordnancesurvey.co.uk/id/7000000000025623,Culture & Related Services,Materials,5004,10/07/2020,5875521,508.68,REVENUE,Fleet Factors Ltd,1231325,FLE0026E
North Lincolnshire Council,http://data.ordnancesurvey.co.uk/id/7000000000025623,Culture & Related Services,Materials,5004,29/07/2020,5882116,311.68,REVENUE,Fleet Factors Ltd,1231325,FLE0026E
North Lincolnshire Council,http://data.ordnancesurvey.co.uk/id/7000000000025623,Culture & Related Services,Materials,5004,29/07/2020,5882122,"1,689.30",REVENUE,Fleet Factors Ltd,1231325,FLE0026E
North Lincolnshire Council,http://data.ordnancesurvey.co.uk/id/7000000000025623,Culture & Related Services,Materials,5004,29/07/2020,5882147,213.37,REVENUE,Fleet Factors Ltd,1231325,FLE0026E
North Lincolnshire Council,http://data.ordnancesurvey.co.uk/id/7000000000025623,Culture & Related Services,Materials,5004,29/07/2020,5882166,404.01,REVENUE,Fleet Factors Ltd,1231325,FLE0026E
North Lincolnshire Council,http://data.ordnancesurvey.co.uk/id/7000000000025623,Culture & Related Services,Materials,5004,29/07/2020,5882179,481.6,REVENUE,Fleet Factors Ltd,1231325,FLE0026E
North Lincolnshire Council,http://data.ordnancesurvey.co.uk/id/7000000000025623,Culture & Related Services,Materials,5004,29/07/2020,5882206,774.65,REVENUE,Fleet Factors Ltd,1231325,FLE0026E
North Lincolnshire Council,http://data.ordnancesurvey.co.uk/id/7000000000025623,Culture & Related Services,Materials,5004,29/07/2020,5882209,729.94,REVENUE,Fleet Factors Ltd,1231325,FLE0026E
North Lincolnshire Council,http://data.ordnancesurvey.co.uk/id/7000000000025623,Culture & Related Services,Materials,5004,31/07/2020,5882217,"2,400.00",REVENUE,Fleet Factors Ltd,1231325,FLE0026E
North Lincolnshire Council,http://data.ordnancesurvey.co.uk/id/7000000000025623,Environmental & Regulatory Svs,Materials,5004,10/07/2020,5875465,"2,511.84",REVENUE,Fleet Factors Ltd,1231325,FLE0026E
North Lincolnshire Council,http://data.ordnancesurvey.co.uk/id/7000000000025623,Environmental & Regulatory Svs,Materials,5004,10/07/2020,5875472,825.77,REVENUE,Fleet Factors Ltd,1231325,FLE0026E
North Lincolnshire Council,http://data.ordnancesurvey.co.uk/id/7000000000025623,Environmental & Regulatory Svs,Materials,5004,10/07/2020,5875473,756.68,REVENUE,Fleet Factors Ltd,1231325,FLE0026E
North Lincolnshire Council,http://data.ordnancesurvey.co.uk/id/7000000000025623,Environmental & Regulatory Svs,Materials,5004,10/07/2020,5875478,470,REVENUE,Fleet Factors Ltd,1231325,FLE0026E
North Lincolnshire Council,http://data.ordnancesurvey.co.uk/id/7000000000025623,Environmental & Regulatory Svs,Materials,5004,10/07/2020,5875484,250.8,REVENUE,Fleet Factors Ltd,1231325,FLE0026E
North Lincolnshire Council,http://data.ordnancesurvey.co.uk/id/7000000000025623,Environmental & Regulatory Svs,Materials,5004,10/07/2020,5875509,"1,983.65",REVENUE,Fleet Factors Ltd,1231325,FLE0026E
North Lincolnshire Council,http://data.ordnancesurvey.co.uk/id/7000000000025623,Environmental & Regulatory Svs,Materials,5004,10/07/2020,5875510,"2,514.90",REVENUE,Fleet Factors Ltd,1231325,FLE0026E
North Lincolnshire Council,http://data.ordnancesurvey.co.uk/id/7000000000025623,Environmental & Regulatory Svs,Materials,5004,10/07/2020,5875511,"2,965.49",REVENUE,Fleet Factors Ltd,1231325,FLE0026E
North Lincolnshire Council,http://data.ordnancesurvey.co.uk/id/7000000000025623,Environmental & Regulatory Svs,Materials,5004,10/07/2020,5875512,427.94,REVENUE,Fleet Factors Ltd,1231325,FLE0026E
North Lincolnshire Council,http://data.ordnancesurvey.co.uk/id/7000000000025623,Environmental & Regulatory Svs,Materials,5004,10/07/2020,5875513,427.94,REVENUE,Fleet Factors Ltd,1231325,FLE0026E
North Lincolnshire Council,http://data.ordnancesurvey.co.uk/id/7000000000025623,Environmental & Regulatory Svs,Materials,5004,10/07/2020,5875530,251.78,REVENUE,Fleet Factors Ltd,1231325,FLE0026E
North Lincolnshire Council,http://data.ordnancesurvey.co.uk/id/7000000000025623,Environmental & Regulatory Svs,Materials,5004,15/07/2020,5875534,415.6,REVENUE,Fleet Factors Ltd,1231325,FLE0026E
North Lincolnshire Council,http://data.ordnancesurvey.co.uk/id/7000000000025623,Environmental & Regulatory Svs,Materials,5004,29/07/2020,5882121,446.09,REVENUE,Fleet Factors Ltd,1231325,FLE0026E
North Lincolnshire Council,http://data.ordnancesurvey.co.uk/id/7000000000025623,Environmental & Regulatory Svs,Materials,5004,29/07/2020,5882127,263.57,REVENUE,Fleet Factors Ltd,1231325,FLE0026E
North Lincolnshire Council,http://data.ordnancesurvey.co.uk/id/7000000000025623,Environmental & Regulatory Svs,Materials,5004,29/07/2020,5882137,277.56,REVENUE,Fleet Factors Ltd,1231325,FLE0026E
North Lincolnshire Council,http://data.ordnancesurvey.co.uk/id/7000000000025623,Environmental & Regulatory Svs,Materials,5004,29/07/2020,5882144,838.31,REVENUE,Fleet Factors Ltd,1231325,FLE0026E
North Lincolnshire Council,http://data.ordnancesurvey.co.uk/id/7000000000025623,Environmental & Regulatory Svs,Materials,5004,29/07/2020,5882148,966.52,REVENUE,Fleet Factors Ltd,1231325,FLE0026E
North Lincolnshire Council,http://data.ordnancesurvey.co.uk/id/7000000000025623,Environmental & Regulatory Svs,Materials,5004,29/07/2020,5882149,277.56,REVENUE,Fleet Factors Ltd,1231325,FLE0026E
North Lincolnshire Council,http://data.ordnancesurvey.co.uk/id/7000000000025623,Environmental & Regulatory Svs,Materials,5004,29/07/2020,5882151,"1,855.62",REVENUE,Fleet Factors Ltd,1231325,FLE0026E
North Lincolnshire Council,http://data.ordnancesurvey.co.uk/id/7000000000025623,Environmental & Regulatory Svs,Materials,5004,29/07/2020,5882156,"1,426.72",REVENUE,Fleet Factors Ltd,1231325,FLE0026E
North Lincolnshire Council,http://data.ordnancesurvey.co.uk/id/7000000000025623,Environmental & Regulatory Svs,Materials,5004,29/07/2020,5882159,275.19,REVENUE,Fleet Factors Ltd,1231325,FLE0026E
North Lincolnshire Council,http://data.ordnancesurvey.co.uk/id/7000000000025623,Environmental & Regulatory Svs,Materials,5004,29/07/2020,5882163,880.58,REVENUE,Fleet Factors Ltd,1231325,FLE0026E
North Lincolnshire Council,http://data.ordnancesurvey.co.uk/id/7000000000025623,Environmental & Regulatory Svs,Materials,5004,29/07/2020,5882169,348.6,REVENUE,Fleet Factors Ltd,1231325,FLE0026E
North Lincolnshire Council,http://data.ordnancesurvey.co.uk/id/7000000000025623,Environmental & Regulatory Svs,Materials,5004,29/07/2020,5882174,769.48,REVENUE,Fleet Factors Ltd,1231325,FLE0026E
North Lincolnshire Council,http://data.ordnancesurvey.co.uk/id/7000000000025623,Environmental & Regulatory Svs,Materials,5004,29/07/2020,5882175,868.64,REVENUE,Fleet Factors Ltd,1231325,FLE0026E
North Lincolnshire Council,http://data.ordnancesurvey.co.uk/id/7000000000025623,Environmental & Regulatory Svs,Materials,5004,29/07/2020,5882188,319.98,REVENUE,Fleet Factors Ltd,1231325,FLE0026E
North Lincolnshire Council,http://data.ordnancesurvey.co.uk/id/7000000000025623,Environmental & Regulatory Svs,Materials,5004,29/07/2020,5882204,494.21,REVENUE,Fleet Factors Ltd,1231325,FLE0026E
North Lincolnshire Council,http://data.ordnancesurvey.co.uk/id/7000000000025623,Environmental & Regulatory Svs,Materials,5004,29/07/2020,5882205,509.71,REVENUE,Fleet Factors Ltd,1231325,FLE0026E
North Lincolnshire Council,http://data.ordnancesurvey.co.uk/id/7000000000025623,Environmental & Regulatory Svs,Materials,5004,29/07/2020,5882212,419.95,REVENUE,Fleet Factors Ltd,1231325,FLE0026E
North Lincolnshire Council,http://data.ordnancesurvey.co.uk/id/7000000000025623,Environmental & Regulatory Svs,Materials,5004,31/07/2020,5882224,232.48,REVENUE,Fleet Factors Ltd,1231325,FLE0026E
North Lincolnshire Council,http://data.ordnancesurvey.co.uk/id/7000000000025623,Highways & Transport,Equipment Maint.& Repair,5003,10/07/2020,5875522,247.54,REVENUE,Fleet Factors Ltd,1231325,FLE0026E
North Lincolnshire Council,http://data.ordnancesurvey.co.uk/id/7000000000025623,Highways & Transport,Equipment Purchase,5001,29/07/2020,5882112,378,REVENUE,Fleet Factors Ltd,1231325,FLE0026E
North Lincolnshire Council,http://data.ordnancesurvey.co.uk/id/7000000000025623,Highways & Transport,Fuel,4001,29/07/2020,5882176,870,REVENUE,Fleet Factors Ltd,1231325,FLE0026E
North Lincolnshire Council,http://data.ordnancesurvey.co.uk/id/7000000000025623,Highways & Transport,Materials,5004,10/07/2020,5875480,764.81,REVENUE,Fleet Factors Ltd,1231325,FLE0026E
North Lincolnshire Council,http://data.ordnancesurvey.co.uk/id/7000000000025623,Highways & Transport,Materials,5004,10/07/2020,5875501,"1,350.00",REVENUE,Fleet Factors Ltd,1231325,FLE0026E
North Lincolnshire Council,http://data.ordnancesurvey.co.uk/id/7000000000025623,Highways & Transport,Materials,5004,29/07/2020,5882124,909.61,REVENUE,Fleet Factors Ltd,1231325,FLE0026E
North Lincolnshire Council,http://data.ordnancesurvey.co.uk/id/7000000000025623,Highways & Transport,Other Vehicle Costs,4005,10/07/2020,5875454,405.44,REVENUE,Fleet Factors Ltd,1231325,FLE0026E
North Lincolnshire Council,http://data.ordnancesurvey.co.uk/id/7000000000025623,Highways & Transport,Other Vehicle Costs,4005,10/07/2020,5875461,311.39,REVENUE,Fleet Factors Ltd,1231325,FLE0026E
North Lincolnshire Council,http://data.ordnancesurvey.co.uk/id/7000000000025623,Highways & Transport,Other Vehicle Costs,4005,10/07/2020,5875463,388.71,REVENUE,Fleet Factors Ltd,1231325,FLE0026E
North Lincolnshire Council,http://data.ordnancesurvey.co.uk/id/7000000000025623,Highways & Transport,Stock Purchases & Adjustments,5030,29/07/2020,5882114,755.04,REVENUE,Fleet Factors Ltd,1231325,FLE0026E
North Lincolnshire Council,http://data.ordnancesurvey.co.uk/id/7000000000025623,Highways & Transport,Vehicle Repairs,4004,29/07/2020,5882153,242.48,REVENUE,Fleet Factors Ltd,1231325,FLE0026E
North Lincolnshire Council,http://data.ordnancesurvey.co.uk/id/7000000000025623,Corporate And Democratic Core,Course Fees/Training,2002,24/07/2020,5880252,420,REVENUE,Forefront Training Ltd,7200153,FOR0084R
North Lincolnshire Council,http://data.ordnancesurvey.co.uk/id/7000000000025623,Childrens & Education,Payments To Private Orgs,6002,03/07/2020,5872931,"3,192.60",REVENUE,Foster Care Associates Limited,8273494,FOS0030S
North Lincolnshire Council,http://data.ordnancesurvey.co.uk/id/7000000000025623,Childrens & Education,Payments To Private Orgs,6002,03/07/2020,5872937,"3,649.20",REVENUE,Fostering People Ltd,,FOS0214S
North Lincolnshire Council,http://data.ordnancesurvey.co.uk/id/7000000000025623,Childrens & Education,Payments To Private Orgs,6002,10/07/2020,5874915,"2,710.50",REVENUE,Fostering People Ltd,,FOS0214S
North Lincolnshire Council,http://data.ordnancesurvey.co.uk/id/7000000000025623,Childrens & Education,Payments To Private Orgs,6002,03/07/2020,5872951,"3,160.50",REVENUE,Fostering Solutions Ltd,,FOS0044S
North Lincolnshire Council,http://data.ordnancesurvey.co.uk/id/7000000000025623,Central Services To Public,Business Support Grants,6090,08/07/2020,5874949,"10,000.00",REVENUE,Foxhill Farm,,CD028330
North Lincolnshire Council,http://data.ordnancesurvey.co.uk/id/7000000000025623,Housing Services,Other Supplies & Services,5799,17/07/2020,5877895,"5,850.00",REVENUE,Fox Red Living Ltd,11098298,FOX0150X
North Lincolnshire Council,http://data.ordnancesurvey.co.uk/id/7000000000025623,Housing Services,Other Supplies & Services,5799,01/07/2020,5871581,"10,723.11",REVENUE,Framework Housing Association,,FRA0017A
North Lincolnshire Council,http://data.ordnancesurvey.co.uk/id/7000000000025623,Public Health,Payments To Private Orgs,6002,03/07/2020,5872958,"21,400.00",REVENUE,Framework Housing Association,,FRA0017A
North Lincolnshire Council,http://data.ordnancesurvey.co.uk/id/7000000000025623,Corporate And Democratic Core,Equipment Maint.& Repair,5003,15/07/2020,5876968,350,REVENUE,Freelance Offset Services Ltd,,FRE0013E
North Lincolnshire Council,http://data.ordnancesurvey.co.uk/id/7000000000025623,Planning Services,Payments To Voluntary Orgs,6001,29/07/2020,5880330,"1,049.00",REVENUE,Friends Of Garthorpe & Fockerby,,FGF0001F
North Lincolnshire Council,http://data.ordnancesurvey.co.uk/id/7000000000025623,Central Services To Public,Business Support Grants,6090,01/07/2020,5872484,"10,000.00",REVENUE,Frodingham Community Association,,CD027530
North Lincolnshire Council,http://data.ordnancesurvey.co.uk/id/7000000000025623,Central Services To Public,Business Support Grants,6090,01/07/2020,5872437,"5,500.00",REVENUE,Frodingham Fun Club,,CD027060
North Lincolnshire Council,http://data.ordnancesurvey.co.uk/id/7000000000025623,Fin&Inv I&E,Grounds Maintenance,3010,29/07/2020,5882276,648,REVENUE,F W S Consultants Ltd,3944252,FWS0001S
North Lincolnshire Council,http://data.ordnancesurvey.co.uk/id/7000000000025623,Fin&Inv I&E,Grounds Maintenance,3010,29/07/2020,5882277,"1,080.00",REVENUE,F W S Consultants Ltd,3944252,FWS0001S
North Lincolnshire Council,http://data.ordnancesurvey.co.uk/id/7000000000025623,Corporate And Democratic Core,Telephone Rent/Calls,5403,17/07/2020,5876965,"7,195.20",REVENUE,Gamma Business Communications Ltd,4340834,GAM0150M
North Lincolnshire Council,http://data.ordnancesurvey.co.uk/id/7000000000025623,Corporate And Democratic Core,Telephone Rent/Calls,5403,17/07/2020,5876966,"1,822.40",REVENUE,Gamma Business Communications Ltd,4340834,GAM0150M
North Lincolnshire Council,http://data.ordnancesurvey.co.uk/id/7000000000025623,Childrens & Education,"Licenses, Subs & Memberships",5510,15/07/2020,5876953,750,REVENUE,Gateway Qualifications Limited,,GAT0071T
North Lincolnshire Council,http://data.ordnancesurvey.co.uk/id/7000000000025623,Culture & Related Services,Materials,5004,08/07/2020,5868158,885.9,REVENUE,Gb Sport & Leisure Uk Ltd,7524601,GBS0004S
North Lincolnshire Council,http://data.ordnancesurvey.co.uk/id/7000000000025623,Central Services To Public,Business Support Grants,6090,01/07/2020,5872459,"4,000.00",REVENUE,Gc Reports Limited,,CD027280
North Lincolnshire Council,http://data.ordnancesurvey.co.uk/id/7000000000025623,Culture & Related Services,Materials,5004,08/07/2020,5847515,225.6,REVENUE,G Empson & Sons Limited,1434924,EMP0019P
North Lincolnshire Council,http://data.ordnancesurvey.co.uk/id/7000000000025623,Public Health,Materials,5004,10/07/2020,5874328,351,REVENUE,G Empson & Sons Limited,1434924,EMP0019P
North Lincolnshire Council,http://data.ordnancesurvey.co.uk/id/7000000000025623,Central Services To Public,Business Support Grants,6090,15/07/2020,5877399,"10,000.00",REVENUE,Glanford And Scunthorpe Canoe Club,,CD028660
North Lincolnshire Council,http://data.ordnancesurvey.co.uk/id/7000000000025623,Culture & Related Services,Materials,5004,15/07/2020,5869379,"2,575.00",REVENUE,Glendale Services,,GLE0041E
North Lincolnshire Council,http://data.ordnancesurvey.co.uk/id/7000000000025623,Childrens & Education,Advertising & Publicity,5610,01/07/2020,5871837,"1,450.00",REVENUE,Global Radio Services Ltd,,GLO0090O
North Lincolnshire Council,http://data.ordnancesurvey.co.uk/id/7000000000025623,Childrens & Education,Advertising & Publicity,5610,01/07/2020,5871838,"1,200.00",REVENUE,Global Radio Services Ltd,,GLO0090O
North Lincolnshire Council,http://data.ordnancesurvey.co.uk/id/7000000000025623,Childrens & Education,Advertising & Publicity,5610,01/07/2020,5871839,"1,150.00",REVENUE,Global Radio Services Ltd,,GLO0090O
North Lincolnshire Council,http://data.ordnancesurvey.co.uk/id/7000000000025623,Childrens & Education,Advertising & Publicity,5610,08/07/2020,5873354,949.25,REVENUE,Global Radio Services Ltd,,GLO0090O
North Lincolnshire Council,http://data.ordnancesurvey.co.uk/id/7000000000025623,Childrens & Education,Advertising & Publicity,5610,22/07/2020,5879572,"1,150.00",REVENUE,Global Radio Services Ltd,,GLO0090O
North Lincolnshire Council,http://data.ordnancesurvey.co.uk/id/7000000000025623,Corporate And Democratic Core,Fees & Charges Income,9002,08/07/2020,5874295,-43.55,REVENUE,G M B,,GMB0003B
North Lincolnshire Council,http://data.ordnancesurvey.co.uk/id/7000000000025623,Central Services To Public,Business Support Grants,6090,15/07/2020,5877400,"10,000.00",REVENUE,Gowrings Mobility Group Ltd,,CD028670
North Lincolnshire Council,http://data.ordnancesurvey.co.uk/id/7000000000025623,"Culture,Env,Reg & Planning Cap",Other Costs,A085,08/07/2020,5873046,"50,000.00",CAPITAL,Goxhill Parish Council,,GOX0001X
North Lincolnshire Council,http://data.ordnancesurvey.co.uk/id/7000000000025623,Central Services To Public,Business Support Grants,6090,01/07/2020,5872481,"5,000.00",REVENUE,Grahams Cars,,CD027500
North Lincolnshire Council,http://data.ordnancesurvey.co.uk/id/7000000000025623,Environmental & Regulatory Svs,Other Supplies & Services,5799,22/07/2020,5879515,414,REVENUE,Granart Ltd,2633289,GRA0288A
North Lincolnshire Council,http://data.ordnancesurvey.co.uk/id/7000000000025623,Environmental & Regulatory Svs,Other Supplies & Services,5799,22/07/2020,5879516,877.5,REVENUE,Granart Ltd,2633289,GRA0288A
North Lincolnshire Council,http://data.ordnancesurvey.co.uk/id/7000000000025623,Corporate And Democratic Core,Other Premises Costs,3390,29/07/2020,5881761,"1,774.95",REVENUE,Grange Europe Ltd,472697,GRA0534A
North Lincolnshire Council,http://data.ordnancesurvey.co.uk/id/7000000000025623,Central Services To Public,Business Support Grants,6090,01/07/2020,5872465,"5,500.00",REVENUE,Grange Farm Hobbies Centre,,CD027340
North Lincolnshire Council,http://data.ordnancesurvey.co.uk/id/7000000000025623,"Culture,Env,Reg & Planning Cap",Building/Construction,A082,08/07/2020,5873042,"154,592.50",CAPITAL,Grantham Industries Ltd T/A Gbm Demol & Earth,,GBM0001M
North Lincolnshire Council,http://data.ordnancesurvey.co.uk/id/7000000000025623,"Culture,Env,Reg & Planning Cap",Building/Construction,A082,10/07/2020,5875357,"104,304.63",CAPITAL,Grantham Industries Ltd T/A Gbm Demol & Earth,,GBM0001M
North Lincolnshire Council,http://data.ordnancesurvey.co.uk/id/7000000000025623,Central Services To Public,Business Support Grants,6090,01/07/2020,5872466,"10,000.00",REVENUE,Grantham Lodges,,CD027350
North Lincolnshire Council,http://data.ordnancesurvey.co.uk/id/7000000000025623,Adult Social Care,Payments To Private Orgs,6002,01/07/2020,5872400,"1,864.68",REVENUE,Gray Healthcare Ltd,,ISF0032F
North Lincolnshire Council,http://data.ordnancesurvey.co.uk/id/7000000000025623,Adult Social Care,Payments To Private Orgs,6002,29/07/2020,5882806,"1,864.68",REVENUE,Gray Healthcare Ltd,,ISF0032F
North Lincolnshire Council,http://data.ordnancesurvey.co.uk/id/7000000000025623,Adult Social Care,Payments To Private Orgs,6002,31/07/2020,5883382,451.47,REVENUE,Gray Healthcare Ltd,,ISF0032F
North Lincolnshire Council,http://data.ordnancesurvey.co.uk/id/7000000000025623,Highways & Transport,Materials,5004,17/07/2020,5875319,550,REVENUE,Grove Groundwork Services,,GRO0051O
North Lincolnshire Council,http://data.ordnancesurvey.co.uk/id/7000000000025623,Environmental & Regulatory Svs,Equipment Purchase,5001,15/07/2020,5876794,"1,763.00",REVENUE,G T Cleaning Machines Ltd,,GTC0001C
North Lincolnshire Council,http://data.ordnancesurvey.co.uk/id/7000000000025623,Central Services To Public,Business Support Grants,6090,08/07/2020,5874958,"10,000.00",REVENUE,Gvd Car Parts Ltd,,CD028420
North Lincolnshire Council,http://data.ordnancesurvey.co.uk/id/7000000000025623,Central Services To Public,Business Support Grants,6090,01/07/2020,5872458,"25,000.00",REVENUE,H & A Bella Limited,,CD027270
North Lincolnshire Council,http://data.ordnancesurvey.co.uk/id/7000000000025623,Childrens & Education,Payments To Private Orgs,6002,17/07/2020,5877719,600,REVENUE,Hackberry (Scotter) Ltd,,HAC0005C
North Lincolnshire Council,http://data.ordnancesurvey.co.uk/id/7000000000025623,Childrens & Education,Payments To Private Orgs,6002,24/07/2020,5877720,500,REVENUE,Hackberry (Scotter) Ltd,,HAC0005C
North Lincolnshire Council,http://data.ordnancesurvey.co.uk/id/7000000000025623,Central Services To Public,Business Support Grants,6090,01/07/2020,5872529,"1,000.00",REVENUE,Hair By Sally,,CD027980
North Lincolnshire Council,http://data.ordnancesurvey.co.uk/id/7000000000025623,Central Services To Public,Business Support Grants,6090,08/07/2020,5874932,"2,000.00",REVENUE,Hair By Zoe Bainbridge,,CD028260
North Lincolnshire Council,http://data.ordnancesurvey.co.uk/id/7000000000025623,Adult Social Care,Payments To Private Orgs,6002,03/07/2020,5872371,"93,155.33",REVENUE,Hales Group Ltd,4738023,ABB0054B
North Lincolnshire Council,http://data.ordnancesurvey.co.uk/id/7000000000025623,Adult Social Care,Payments To Private Orgs,6002,03/07/2020,5872371,"3,278.04",REVENUE,Hales Group Ltd,4738023,ABB0054B
North Lincolnshire Council,http://data.ordnancesurvey.co.uk/id/7000000000025623,Adult Social Care,Payments To Private Orgs,6002,31/07/2020,5882761,"-1,218.59",REVENUE,Hales Group Ltd,4738023,ABB0054B
North Lincolnshire Council,http://data.ordnancesurvey.co.uk/id/7000000000025623,Adult Social Care,Payments To Private Orgs,6002,31/07/2020,5882762,929.29,REVENUE,Hales Group Ltd,4738023,ABB0054B
North Lincolnshire Council,http://data.ordnancesurvey.co.uk/id/7000000000025623,Adult Social Care,Payments To Private Orgs,6002,31/07/2020,5882763,"86,268.56",REVENUE,Hales Group Ltd,4738023,ABB0054B
North Lincolnshire Council,http://data.ordnancesurvey.co.uk/id/7000000000025623,Adult Social Care,Payments To Private Orgs,6002,31/07/2020,5882763,"2,825.48",REVENUE,Hales Group Ltd,4738023,ABB0054B
North Lincolnshire Council,http://data.ordnancesurvey.co.uk/id/7000000000025623,Adult Social Care,Payments To Private Orgs,6002,31/07/2020,5883364,"19,242.59",REVENUE,Hales Group Ltd,4738023,ABB0054B
North Lincolnshire Council,http://data.ordnancesurvey.co.uk/id/7000000000025623,Adult Social Care,Payments To Private Orgs (Inv),6026,03/07/2020,5872906,"6,267.13",REVENUE,Hales Group Ltd,4738023,ABB0054B
North Lincolnshire Council,http://data.ordnancesurvey.co.uk/id/7000000000025623,Adult Social Care,Payments To Private Orgs (Inv),6026,03/07/2020,5872911,"6,012.16",REVENUE,Hales Group Ltd,4738023,ABB0054B
North Lincolnshire Council,http://data.ordnancesurvey.co.uk/id/7000000000025623,Corporate And Democratic Core,Repair & Maintenance Costs,3000,08/07/2020,5874238,0,REVENUE,Harrison Lightning Protection &Earthing Ltd,,HAR0369R
North Lincolnshire Council,http://data.ordnancesurvey.co.uk/id/7000000000025623,Culture & Related Services,Provisions,5201,28/08/2020,5883246,252.4,REVENUE,Hartnoll Ltd,,HAR0354R
North Lincolnshire Council,http://data.ordnancesurvey.co.uk/id/7000000000025623,Highways & Transport,Other Supplies & Services,5799,08/07/2020,5864448,"1,039.20",REVENUE,Hatton Traffic Management Limited,1272806,HAT0008T
North Lincolnshire Council,http://data.ordnancesurvey.co.uk/id/7000000000025623,Highways & Transport,Other Supplies & Services,5799,08/07/2020,5864449,409.5,REVENUE,Hatton Traffic Management Limited,1272806,HAT0008T
North Lincolnshire Council,http://data.ordnancesurvey.co.uk/id/7000000000025623,Central Services To Public,Business Support Grants,6090,08/07/2020,5874953,"10,000.00",REVENUE,Havercroft Construction Limited,,CD028370
North Lincolnshire Council,http://data.ordnancesurvey.co.uk/id/7000000000025623,Childrens & Education,Payments To Voluntary Orgs,6001,24/07/2020,5880397,481.83,REVENUE,Haxey Pre-School Cio,,HAX0008X
North Lincolnshire Council,http://data.ordnancesurvey.co.uk/id/7000000000025623,Culture & Related Services,"Clothing, Uniforms & Laundry",5301,08/07/2020,5872859,880.36,REVENUE,Hazchem Safety Llp,,HAZ0120Z
North Lincolnshire Council,http://data.ordnancesurvey.co.uk/id/7000000000025623,Central Services To Public,Business Support Grants,6090,01/07/2020,5872509,"1,000.00",REVENUE,Healing Hands,,CD027780
North Lincolnshire Council,http://data.ordnancesurvey.co.uk/id/7000000000025623,Environmental & Regulatory Svs,Other Supplies & Services,5799,26/08/2020,5882968,"27,695.00",REVENUE,Health And Safety Executive,,HSE0002E
North Lincolnshire Council,http://data.ordnancesurvey.co.uk/id/7000000000025623,Environmental & Regulatory Svs,Materials,5004,29/07/2020,5882109,282.4,REVENUE,Heil Farid European Company Limited,SC053003,FAR0008R
North Lincolnshire Council,http://data.ordnancesurvey.co.uk/id/7000000000025623,Highways & Transport,Other Supplies & Services,5799,31/07/2020,5874035,987,REVENUE,Hemswell Surfacing Ltd,7263330,HEM0013M
North Lincolnshire Council,http://data.ordnancesurvey.co.uk/id/7000000000025623,Culture & Related Services,Payments To Private Orgs,6002,22/07/2020,5876717,"4,031.00",REVENUE,Heritage Lincolnshire,2554738,HER0165R
North Lincolnshire Council,http://data.ordnancesurvey.co.uk/id/7000000000025623,Culture & Related Services,Payments To Private Orgs,6002,22/07/2020,5876718,"6,110.00",REVENUE,Heritage Lincolnshire,2554738,HER0165R
North Lincolnshire Council,http://data.ordnancesurvey.co.uk/id/7000000000025623,Childrens & Education,Other Supplies & Services,5799,03/07/2020,5871999,699.53,REVENUE,He Words Ltd,,HEW0030W
North Lincolnshire Council,http://data.ordnancesurvey.co.uk/id/7000000000025623,Childrens & Education,Other Supplies & Services,5799,03/07/2020,5872004,219.31,REVENUE,He Words Ltd,,HEW0030W
North Lincolnshire Council,http://data.ordnancesurvey.co.uk/id/7000000000025623,Childrens & Education,Other Supplies & Services,5799,29/07/2020,5881901,223.6,REVENUE,He Words Ltd,,HEW0030W
North Lincolnshire Council,http://data.ordnancesurvey.co.uk/id/7000000000025623,Central Services To Public,Business Support Grants,6090,16/07/2020,5872516,"10,000.00",REVENUE,Hfm Northern Limited,,CD027850
North Lincolnshire Council,http://data.ordnancesurvey.co.uk/id/7000000000025623,Adult Social Care,Payments To Private Orgs,6002,01/07/2020,5872395,"1,318.80",REVENUE,Hica Ltd,,ISF0010F
North Lincolnshire Council,http://data.ordnancesurvey.co.uk/id/7000000000025623,Adult Social Care,Payments To Private Orgs,6002,29/07/2020,5882801,"1,318.80",REVENUE,Hica Ltd,,ISF0010F
North Lincolnshire Council,http://data.ordnancesurvey.co.uk/id/7000000000025623,Childrens & Education,Repair & Maintenance Costs,3000,17/07/2020,5877671,57.2,REVENUE,Hill Builders (Humberside) Ltd,1876857,HIL0003L
North Lincolnshire Council,http://data.ordnancesurvey.co.uk/id/7000000000025623,Culture & Related Services,Repair & Maintenance Costs,3000,17/07/2020,5877671,131.32,REVENUE,Hill Builders (Humberside) Ltd,1876857,HIL0003L
North Lincolnshire Council,http://data.ordnancesurvey.co.uk/id/7000000000025623,Environmental & Regulatory Svs,Repair & Maintenance Costs,3000,17/07/2020,5877671,217.68,REVENUE,Hill Builders (Humberside) Ltd,1876857,HIL0003L
North Lincolnshire Council,http://data.ordnancesurvey.co.uk/id/7000000000025623,Non Distributed Costs,Materials,5004,17/07/2020,5877671,438.44,REVENUE,Hill Builders (Humberside) Ltd,1876857,HIL0003L
North Lincolnshire Council,http://data.ordnancesurvey.co.uk/id/7000000000025623,Non Distributed Costs,Repair & Maintenance Costs,3000,17/07/2020,5877671,52.7,REVENUE,Hill Builders (Humberside) Ltd,1876857,HIL0003L
North Lincolnshire Council,http://data.ordnancesurvey.co.uk/id/7000000000025623,Environmental & Regulatory Svs,Other Supplies & Services,5799,10/07/2020,5874967,503.33,REVENUE,Hilton Studio,,HIL0023L
North Lincolnshire Council,http://data.ordnancesurvey.co.uk/id/7000000000025623,Central Services To Public,Business Support Grants,6090,08/07/2020,5874952,"10,000.00",REVENUE,H Middlewood & Son Ltd,,CD028360
North Lincolnshire Council,http://data.ordnancesurvey.co.uk/id/7000000000025623,Childrens & Education,Payments To Private Orgs,6002,17/07/2020,5877904,"6,741.00",REVENUE,Hm Prison & Probation Service (Hmpps),,HMP0009P
North Lincolnshire Council,http://data.ordnancesurvey.co.uk/id/7000000000025623,Housing Services,Fees & Charges Income,9002,03/07/2020,5871742,"-1,644.21",REVENUE,Hobson & Porter Ltd,,HOB0001B
North Lincolnshire Council,http://data.ordnancesurvey.co.uk/id/7000000000025623,Housing Services,Fees & Charges Income,9002,10/07/2020,5875166,-846.17,REVENUE,Hobson & Porter Ltd,,HOB0001B
North Lincolnshire Council,http://data.ordnancesurvey.co.uk/id/7000000000025623,Housing Services,Fees & Charges Income,9002,17/07/2020,5877850,"-1,531.37",REVENUE,Hobson & Porter Ltd,,HOB0001B
North Lincolnshire Council,http://data.ordnancesurvey.co.uk/id/7000000000025623,Central Services To Public,Business Support Grants,6090,22/07/2020,5880276,"25,000.00",REVENUE,Holdall Self Storage Limited,,CD028970
North Lincolnshire Council,http://data.ordnancesurvey.co.uk/id/7000000000025623,Adult Social Care,Repair & Maintenance Costs,3000,17/07/2020,5877716,218.06,REVENUE,Holls Electrical Ltd,1421429,HOL0021L
North Lincolnshire Council,http://data.ordnancesurvey.co.uk/id/7000000000025623,Childrens & Education,Repair & Maintenance Costs,3000,17/07/2020,5877716,438.69,REVENUE,Holls Electrical Ltd,1421429,HOL0021L
North Lincolnshire Council,http://data.ordnancesurvey.co.uk/id/7000000000025623,Childrens & Education Services,Building/Construction,A082,08/07/2020,5874240,"4,403.62",REVENUE,Holls Electrical Ltd,1421429,HOL0021L
North Lincolnshire Council,http://data.ordnancesurvey.co.uk/id/7000000000025623,Corporate And Democratic Core,Repair & Maintenance Costs,3000,17/07/2020,5877716,160.97,REVENUE,Holls Electrical Ltd,1421429,HOL0021L
North Lincolnshire Council,http://data.ordnancesurvey.co.uk/id/7000000000025623,Corporate And Democratic Core,Repair & Maintenance Costs,3000,31/07/2020,5883357,725,REVENUE,Holls Electrical Ltd,1421429,HOL0021L
North Lincolnshire Council,http://data.ordnancesurvey.co.uk/id/7000000000025623,Corporate And Democratic Core,Repair & Maintenance Costs,3000,31/07/2020,5883362,0,REVENUE,Holls Electrical Ltd,1421429,HOL0021L
North Lincolnshire Council,http://data.ordnancesurvey.co.uk/id/7000000000025623,Culture & Related Services,Repair & Maintenance Costs,3000,17/07/2020,5877716,89.44,REVENUE,Holls Electrical Ltd,1421429,HOL0021L
North Lincolnshire Council,http://data.ordnancesurvey.co.uk/id/7000000000025623,Culture & Related Services,Repair & Maintenance Costs,3000,31/07/2020,5883357,725,REVENUE,Holls Electrical Ltd,1421429,HOL0021L
North Lincolnshire Council,http://data.ordnancesurvey.co.uk/id/7000000000025623,Environmental & Regulatory Svs,Equipment Purchase,5001,22/07/2020,5879203,531.79,REVENUE,Holls Electrical Ltd,1421429,HOL0021L
North Lincolnshire Council,http://data.ordnancesurvey.co.uk/id/7000000000025623,Environmental & Regulatory Svs,Equipment Purchase,5001,31/07/2020,5882982,886.09,REVENUE,Holls Electrical Ltd,1421429,HOL0021L
North Lincolnshire Council,http://data.ordnancesurvey.co.uk/id/7000000000025623,Environmental & Regulatory Svs,Repair & Maintenance Costs,3000,08/07/2020,5874242,385.54,REVENUE,Holls Electrical Ltd,1421429,HOL0021L
North Lincolnshire Council,http://data.ordnancesurvey.co.uk/id/7000000000025623,Environmental & Regulatory Svs,Repair & Maintenance Costs,3000,17/07/2020,5877716,129.9,REVENUE,Holls Electrical Ltd,1421429,HOL0021L
North Lincolnshire Council,http://data.ordnancesurvey.co.uk/id/7000000000025623,Fin&Inv I&E,Repair & Maintenance Costs,3000,31/07/2020,5883357,-725,REVENUE,Holls Electrical Ltd,1421429,HOL0021L
North Lincolnshire Council,http://data.ordnancesurvey.co.uk/id/7000000000025623,Fin&Inv I&E,Repair & Maintenance Costs,3000,31/07/2020,5883362,242.5,REVENUE,Holls Electrical Ltd,1421429,HOL0021L
North Lincolnshire Council,http://data.ordnancesurvey.co.uk/id/7000000000025623,Highways & Transport,Equipment Purchase,5001,01/07/2020,5871880,"1,637.99",REVENUE,Holls Electrical Ltd,1421429,HOL0021L
North Lincolnshire Council,http://data.ordnancesurvey.co.uk/id/7000000000025623,Highways & Transport,Repair & Maintenance Costs,3000,17/07/2020,5877716,36.4,REVENUE,Holls Electrical Ltd,1421429,HOL0021L
North Lincolnshire Council,http://data.ordnancesurvey.co.uk/id/7000000000025623,Planning Services,Repair & Maintenance Costs,3000,17/07/2020,5877716,26,REVENUE,Holls Electrical Ltd,1421429,HOL0021L
North Lincolnshire Council,http://data.ordnancesurvey.co.uk/id/7000000000025623,Fin&Inv I&E,Provisions,5201,08/07/2020,5874342,255.38,REVENUE,Hopwells Limited,1404481,HOP0104P
North Lincolnshire Council,http://data.ordnancesurvey.co.uk/id/7000000000025623,Childrens & Education,Home To School Transport,4201,08/07/2020,5874257,"9,483.60",REVENUE,Hornsby Travel Services Ltd,1490232,HOR0122R
North Lincolnshire Council,http://data.ordnancesurvey.co.uk/id/7000000000025623,Highways & Transport,Concessionary Fares,6010,03/07/2020,5871966,"32,400.00",REVENUE,Hornsby Travel Services Ltd,1490232,HOR0122R
North Lincolnshire Council,http://data.ordnancesurvey.co.uk/id/7000000000025623,Highways & Transport,Passenger Transport,6011,22/07/2020,5879507,"6,975.00",REVENUE,Hornsby Travel Services Ltd,1490232,HOR0122R
North Lincolnshire Council,http://data.ordnancesurvey.co.uk/id/7000000000025623,Highways & Transport,Passenger Transport,6011,22/07/2020,5879508,"6,975.00",REVENUE,Hornsby Travel Services Ltd,1490232,HOR0122R
North Lincolnshire Council,http://data.ordnancesurvey.co.uk/id/7000000000025623,Highways & Transport,Passenger Transport,6011,22/07/2020,5879509,"6,975.00",REVENUE,Hornsby Travel Services Ltd,1490232,HOR0122R
North Lincolnshire Council,http://data.ordnancesurvey.co.uk/id/7000000000025623,Highways & Transport,Passenger Transport,6011,22/07/2020,5879510,"29,502.66",REVENUE,Hornsby Travel Services Ltd,1490232,HOR0122R
North Lincolnshire Council,http://data.ordnancesurvey.co.uk/id/7000000000025623,Childrens & Education,Payments To Private Orgs,6002,08/07/2020,5873942,"12,402.86",REVENUE,Horton Establishments Ltd,,HOR0164R
North Lincolnshire Council,http://data.ordnancesurvey.co.uk/id/7000000000025623,Childrens & Education,Payments To Private Orgs,6002,17/07/2020,5877690,"5,788.02",REVENUE,Horton Establishments Ltd,,HOR0164R
North Lincolnshire Council,http://data.ordnancesurvey.co.uk/id/7000000000025623,Central Services To Public,Business Support Grants,6090,01/07/2020,5872523,"10,000.00",REVENUE,Hospitality Management Services (Hms) Ltd,,CD027920
North Lincolnshire Council,http://data.ordnancesurvey.co.uk/id/7000000000025623,Adult Social Care,Payments To Private Orgs,6002,01/07/2020,5872397,"19,218.56",REVENUE,Housing & Support Solutions Ltd,,ISF0014F
North Lincolnshire Council,http://data.ordnancesurvey.co.uk/id/7000000000025623,Adult Social Care,Payments To Private Orgs,6002,01/07/2020,5872397,"1,764.00",REVENUE,Housing & Support Solutions Ltd,,ISF0014F
North Lincolnshire Council,http://data.ordnancesurvey.co.uk/id/7000000000025623,Adult Social Care,Payments To Private Orgs,6002,03/07/2020,5872391,"11,263.44",REVENUE,Housing & Support Solutions Ltd,,HOU0264U
North Lincolnshire Council,http://data.ordnancesurvey.co.uk/id/7000000000025623,Adult Social Care,Payments To Private Orgs,6002,29/07/2020,5882803,"3,278.34",REVENUE,Housing & Support Solutions Ltd,,ISF0014F
North Lincolnshire Council,http://data.ordnancesurvey.co.uk/id/7000000000025623,Adult Social Care,Payments To Private Orgs,6002,29/07/2020,5882804,"1,568.00",REVENUE,Housing & Support Solutions Ltd,,ISF0014F
North Lincolnshire Council,http://data.ordnancesurvey.co.uk/id/7000000000025623,Adult Social Care,Payments To Private Orgs,6002,29/07/2020,5882804,"23,418.56",REVENUE,Housing & Support Solutions Ltd,,ISF0014F
North Lincolnshire Council,http://data.ordnancesurvey.co.uk/id/7000000000025623,Adult Social Care,Payments To Private Orgs,6002,31/07/2020,5882797,"11,263.44",REVENUE,Housing & Support Solutions Ltd,,HOU0264U
North Lincolnshire Council,http://data.ordnancesurvey.co.uk/id/7000000000025623,Adult Social Care,Payments To Private Orgs,6002,31/07/2020,5883381,"8,673.67",REVENUE,Housing & Support Solutions Ltd,,HOU0264U
North Lincolnshire Council,http://data.ordnancesurvey.co.uk/id/7000000000025623,Central Services To Public,Business Support Grants,6090,22/07/2020,5880275,"25,000.00",REVENUE,H Samuel Limited,,CD028960
North Lincolnshire Council,http://data.ordnancesurvey.co.uk/id/7000000000025623,Central Services To Public,Business Support Grants,6090,08/07/2020,5874919,"8,500.00",REVENUE,Humber And Wolds Rural Community Council,,CD028130
North Lincolnshire Council,http://data.ordnancesurvey.co.uk/id/7000000000025623,Highways & Transport,Equipment Hire/Rent,5002,08/07/2020,5864501,988,REVENUE,Humberside Aid Plant Hire Ltd,1207398,HUM0020M
North Lincolnshire Council,http://data.ordnancesurvey.co.uk/id/7000000000025623,Highways & Transport,Equipment Hire/Rent,5002,08/07/2020,5864502,228,REVENUE,Humberside Aid Plant Hire Ltd,1207398,HUM0020M
North Lincolnshire Council,http://data.ordnancesurvey.co.uk/id/7000000000025623,Highways & Transport,Equipment Hire/Rent,5002,08/07/2020,5864503,972,REVENUE,Humberside Aid Plant Hire Ltd,1207398,HUM0020M
North Lincolnshire Council,http://data.ordnancesurvey.co.uk/id/7000000000025623,Highways & Transport,Equipment Hire/Rent,5002,08/07/2020,5864505,228,REVENUE,Humberside Aid Plant Hire Ltd,1207398,HUM0020M
North Lincolnshire Council,http://data.ordnancesurvey.co.uk/id/7000000000025623,Fin&Inv I&E,Rents,3201,29/07/2020,5882084,"5,625.00",REVENUE,Humberside International Airport,,HUM0039M
North Lincolnshire Council,http://data.ordnancesurvey.co.uk/id/7000000000025623,Central Services To Public,Business Support Grants,6090,22/07/2020,5880266,"10,000.00",REVENUE,Hygrow Hydroponics,,CD028870
North Lincolnshire Council,http://data.ordnancesurvey.co.uk/id/7000000000025623,Corporate And Democratic Core,Other Professional Fees,5829,15/07/2020,5876890,480,REVENUE,Hymans Robertson Llp,,HYM0020M
North Lincolnshire Council,http://data.ordnancesurvey.co.uk/id/7000000000025623,Adult Social Care,Repair & Maintenance Costs,3000,17/07/2020,5877675,"1,046.75",REVENUE,Iag Developments Ltd,5073636,IGA0021A
North Lincolnshire Council,http://data.ordnancesurvey.co.uk/id/7000000000025623,Childrens & Education,Repair & Maintenance Costs,3000,10/07/2020,5875045,937.6,REVENUE,Iag Developments Ltd,5073636,IGA0021A
North Lincolnshire Council,http://data.ordnancesurvey.co.uk/id/7000000000025623,Childrens & Education,Repair & Maintenance Costs,3000,17/07/2020,5877675,671.75,REVENUE,Iag Developments Ltd,5073636,IGA0021A
North Lincolnshire Council,http://data.ordnancesurvey.co.uk/id/7000000000025623,Corporate And Democratic Core,Repair & Maintenance Costs,3000,10/07/2020,5875043,0,REVENUE,Iag Developments Ltd,5073636,IGA0021A
North Lincolnshire Council,http://data.ordnancesurvey.co.uk/id/7000000000025623,Corporate And Democratic Core,Repair & Maintenance Costs,3000,17/07/2020,5877675,908.44,REVENUE,Iag Developments Ltd,5073636,IGA0021A
North Lincolnshire Council,http://data.ordnancesurvey.co.uk/id/7000000000025623,Corporate And Democratic Core,Repair & Maintenance Costs,3000,31/07/2020,5883392,0,REVENUE,Iag Developments Ltd,5073636,IGA0021A
North Lincolnshire Council,http://data.ordnancesurvey.co.uk/id/7000000000025623,Culture & Related Services,Repair & Maintenance Costs,3000,10/07/2020,5875043,222,REVENUE,Iag Developments Ltd,5073636,IGA0021A
North Lincolnshire Council,http://data.ordnancesurvey.co.uk/id/7000000000025623,Culture & Related Services,Repair & Maintenance Costs,3000,17/07/2020,5877675,104,REVENUE,Iag Developments Ltd,5073636,IGA0021A
North Lincolnshire Council,http://data.ordnancesurvey.co.uk/id/7000000000025623,Non Distributed Costs,Repair & Maintenance Costs,3000,17/07/2020,5877675,480.3,REVENUE,Iag Developments Ltd,5073636,IGA0021A
North Lincolnshire Council,http://data.ordnancesurvey.co.uk/id/7000000000025623,Corporate And Democratic Core,Course Fees/Training,2002,29/07/2020,5881989,475,REVENUE,Iccm,,IBC0004C
North Lincolnshire Council,http://data.ordnancesurvey.co.uk/id/7000000000025623,Central Services To Public,Business Support Grants,6090,01/07/2020,5872471,"10,000.00",REVENUE,Ideal Community Care Solutions,,CD027400
North Lincolnshire Council,http://data.ordnancesurvey.co.uk/id/7000000000025623,Childrens & Education,It Software-Maintenance,5053,05/08/2020,5880590,"36,000.00",REVENUE,Idox Group,,IDO0002O
North Lincolnshire Council,http://data.ordnancesurvey.co.uk/id/7000000000025623,Childrens & Education,Payments To Private Orgs,6002,24/07/2020,5880399,"1,042.68",REVENUE,I Learn Education Crowle,,ILE0012E
North Lincolnshire Council,http://data.ordnancesurvey.co.uk/id/7000000000025623,Central Services To Public,Business Support Grants,6090,01/07/2020,5872486,"25,000.00",REVENUE,I Learn Education Limited,,CD027550
North Lincolnshire Council,http://data.ordnancesurvey.co.uk/id/7000000000025623,Childrens & Education,Client Related Costs,5534,01/07/2020,5871536,288.42,REVENUE,I Learn Education Ltd,,ABC0063C
North Lincolnshire Council,http://data.ordnancesurvey.co.uk/id/7000000000025623,Childrens & Education,Payments To Private Orgs,6002,03/07/2020,5872694,843.51,REVENUE,I Learn Education Ltd,,ILE0004E
North Lincolnshire Council,http://data.ordnancesurvey.co.uk/id/7000000000025623,Childrens & Education,Payments To Private Orgs,6002,24/07/2020,5880395,"2,861.12",REVENUE,I Learn Education Ltd,,ABC0063C
North Lincolnshire Council,http://data.ordnancesurvey.co.uk/id/7000000000025623,Childrens & Education,Payments To Private Orgs,6002,24/07/2020,5880398,"1,390.16",REVENUE,I Learn Education Ltd,,ILE0004E
North Lincolnshire Council,http://data.ordnancesurvey.co.uk/id/7000000000025623,Environmental & Regulatory Svs,Materials,5004,31/07/2020,5882239,916.9,REVENUE,Imperial Commercials Ltd,653665,LEX0001X
North Lincolnshire Council,http://data.ordnancesurvey.co.uk/id/7000000000025623,Central Services To Public,Equipment Purchase,5001,15/07/2020,5876987,"8,294.00",REVENUE,Imperial Polythene Products,,IMP0014P
North Lincolnshire Council,http://data.ordnancesurvey.co.uk/id/7000000000025623,Central Services To Public,Business Support Grants,6090,01/07/2020,5872436,"1,500.00",REVENUE,Impulse Physiotherapy,,CD027050
North Lincolnshire Council,http://data.ordnancesurvey.co.uk/id/7000000000025623,Childrens & Education,Equipment Purchase,5001,03/07/2020,5872736,466.5,REVENUE,Inclusive Technology Ltd,3525459,INC0014C
North Lincolnshire Council,http://data.ordnancesurvey.co.uk/id/7000000000025623,Childrens & Education,Payments To Private Orgs,6002,03/07/2020,5872925,"13,714.20",REVENUE,Independent Childcare Group Of Schools Ltd,,CAM0185M
North Lincolnshire Council,http://data.ordnancesurvey.co.uk/id/7000000000025623,Central Services To Public,Business Support Grants,6090,31/07/2020,5883698,"25,000.00",REVENUE,Infocus Id Ltd,,INF0018F
North Lincolnshire Council,http://data.ordnancesurvey.co.uk/id/7000000000025623,Housing Services,Other Supplies & Services,5799,08/07/2020,5873352,"1,400.00",REVENUE,Ingle Brook Hotel,,ING0071G
North Lincolnshire Council,http://data.ordnancesurvey.co.uk/id/7000000000025623,Planning Services,Other Supplies & Services,5799,17/07/2020,5877709,"30,000.00",REVENUE,Intechnology Smart Cities Limited,,ISC0010C
North Lincolnshire Council,http://data.ordnancesurvey.co.uk/id/7000000000025623,Childrens & Education,Home To School Transport,4201,08/07/2020,5874155,"7,549.52",REVENUE,Isle Coaches,,COA0039A
North Lincolnshire Council,http://data.ordnancesurvey.co.uk/id/7000000000025623,Highways & Transport,Concessionary Fares,6010,03/07/2020,5871970,"5,000.00",REVENUE,Isle Coaches,,COA0039A
North Lincolnshire Council,http://data.ordnancesurvey.co.uk/id/7000000000025623,Childrens & Education,Electricity,3102,08/07/2020,5874188,"1,594.04",REVENUE,Isle Education Trust,7814150,ISL0029L
North Lincolnshire Council,http://data.ordnancesurvey.co.uk/id/7000000000025623,Childrens & Education,Payments To Private Orgs,6002,17/07/2020,5877513,"3,304.25",REVENUE,Isle Education Trust,7814150,ISL0029L
North Lincolnshire Council,http://data.ordnancesurvey.co.uk/id/7000000000025623,Central Services To Public,Business Support Grants,6090,15/07/2020,5877389,"10,000.00",REVENUE,Isle Ink Tattoo Studio,,CD028560
North Lincolnshire Council,http://data.ordnancesurvey.co.uk/id/7000000000025623,Highways & Transport,"Clothing, Uniforms & Laundry",5301,15/07/2020,5875550,453,REVENUE,Jacksons Workwear Rental Ltd,193856,JAC0171C
North Lincolnshire Council,http://data.ordnancesurvey.co.uk/id/7000000000025623,Corporate And Democratic Core,Other Professional Fees,5829,03/07/2020,5872047,0,REVENUE,Jacobs,,JAC0011C
North Lincolnshire Council,http://data.ordnancesurvey.co.uk/id/7000000000025623,Corporate And Democratic Core,Other Professional Fees,5829,08/07/2020,5874230,0,REVENUE,Jacobs,,JAC0011C
North Lincolnshire Council,http://data.ordnancesurvey.co.uk/id/7000000000025623,Central Services To Public,Business Support Grants,6090,24/07/2020,5881047,"10,000.00",REVENUE,Jadealto,,CD029040
North Lincolnshire Council,http://data.ordnancesurvey.co.uk/id/7000000000025623,Central Services To Public,Business Support Grants,6090,22/07/2020,5880277,"10,000.00",REVENUE,Jade Pavilion,,CD028980
North Lincolnshire Council,http://data.ordnancesurvey.co.uk/id/7000000000025623,Corporate And Democratic Core,It Software-Maintenance,5053,15/07/2020,5875922,"1,878.00",REVENUE,J C Applications Development Ltd,,JCA0002A
North Lincolnshire Council,http://data.ordnancesurvey.co.uk/id/7000000000025623,Fin&Inv I&E,Repair & Maintenance Costs,3000,22/07/2020,5879300,"1,469.73",REVENUE,J E Vickers & Sons,,VIC0036C
North Lincolnshire Council,http://data.ordnancesurvey.co.uk/id/7000000000025623,Fin&Inv I&E,Repair & Maintenance Costs,3000,22/07/2020,5879301,"2,293.50",REVENUE,J E Vickers & Sons,,VIC0036C
North Lincolnshire Council,http://data.ordnancesurvey.co.uk/id/7000000000025623,Fin&Inv I&E,Repair & Maintenance Costs,3000,24/07/2020,5876936,"1,200.00",REVENUE,J E Vickers & Sons,,VIC0036C
North Lincolnshire Council,http://data.ordnancesurvey.co.uk/id/7000000000025623,Highways & Transport,Other Supplies & Services,5799,01/07/2020,5862092,642.38,REVENUE,J Mccann & Co Ltd,8326109,JMC0004C
North Lincolnshire Council,http://data.ordnancesurvey.co.uk/id/7000000000025623,Highways & Transport,Other Supplies & Services,5799,01/07/2020,5862129,848.22,REVENUE,J Mccann & Co Ltd,8326109,JMC0004C
North Lincolnshire Council,http://data.ordnancesurvey.co.uk/id/7000000000025623,Highways & Transport,Other Supplies & Services,5799,22/07/2020,5877553,638.84,REVENUE,J Mccann & Co Ltd,8326109,JMC0004C
North Lincolnshire Council,http://data.ordnancesurvey.co.uk/id/7000000000025623,Adult Social Care,Payments To Private Orgs,6002,01/07/2020,5872401,"25,455.80",REVENUE,Jme Care Ltd,,ISF0035F
North Lincolnshire Council,http://data.ordnancesurvey.co.uk/id/7000000000025623,Adult Social Care,Payments To Private Orgs,6002,29/07/2020,5882807,"25,455.80",REVENUE,Jme Care Ltd,,ISF0035F
North Lincolnshire Council,http://data.ordnancesurvey.co.uk/id/7000000000025623,Central Services To Public,Business Support Grants,6090,08/07/2020,5874921,"4,000.00",REVENUE,Jmj Contracts,,CD028150
North Lincolnshire Council,http://data.ordnancesurvey.co.uk/id/7000000000025623,Childrens & Education,Payments To Private Orgs,6002,15/07/2020,5873328,250,REVENUE,Jmp Support Ltd,8185918,JMP0010P
North Lincolnshire Council,http://data.ordnancesurvey.co.uk/id/7000000000025623,Corporate And Democratic Core,Gen Office Exp (Incl Postage),5603,29/07/2020,5879214,288,REVENUE,John Espin Signs Ltd,5305298,ESP0003P
North Lincolnshire Council,http://data.ordnancesurvey.co.uk/id/7000000000025623,Culture & Related Services,Exhibitions/Events,5709,29/07/2020,5879305,"6,570.00",REVENUE,John Espin Signs Ltd,5305298,ESP0003P
North Lincolnshire Council,http://data.ordnancesurvey.co.uk/id/7000000000025623,Environmental & Regulatory Svs,Materials,5004,08/07/2020,5864374,"1,200.00",REVENUE,John Espin Signs Ltd,5305298,ESP0003P
North Lincolnshire Council,http://data.ordnancesurvey.co.uk/id/7000000000025623,Childrens & Education,Equipment Purchase,5001,31/07/2020,5883119,885,REVENUE,John Packer Ltd,,PAC0006C
North Lincolnshire Council,http://data.ordnancesurvey.co.uk/id/7000000000025623,Childrens & Education,Equipment Purchase,5001,31/07/2020,5883547,974.17,REVENUE,John Packer Ltd,,PAC0006C
North Lincolnshire Council,http://data.ordnancesurvey.co.uk/id/7000000000025623,Central Services To Public,Business Support Grants,6090,01/07/2020,5872485,"10,000.00",REVENUE,Johnson Coaches,,CD027540
North Lincolnshire Council,http://data.ordnancesurvey.co.uk/id/7000000000025623,Childrens & Education,Home To School Transport,4201,10/07/2020,5872831,"3,713.60",REVENUE,Johnson Coaches,,JOH0153H
North Lincolnshire Council,http://data.ordnancesurvey.co.uk/id/7000000000025623,Childrens & Education,Home To School Transport,4201,31/07/2020,5880284,"1,688.00",REVENUE,Johnson Coaches,,JOH0153H
North Lincolnshire Council,http://data.ordnancesurvey.co.uk/id/7000000000025623,Environmental & Regulatory Svs,Materials,5004,10/07/2020,5875553,411.58,REVENUE,Johnston Sweepers Ltd,199841,JOH0004H
North Lincolnshire Council,http://data.ordnancesurvey.co.uk/id/7000000000025623,Environmental & Regulatory Svs,Equipment Maint.& Repair,5003,03/07/2020,5871708,"3,954.00",REVENUE,Jontek Limited,,JON0165N
North Lincolnshire Council,http://data.ordnancesurvey.co.uk/id/7000000000025623,Environmental & Regulatory Svs,Equipment Maint.& Repair,5003,03/07/2020,5871711,"2,270.00",REVENUE,Jontek Limited,,JON0165N
North Lincolnshire Council,http://data.ordnancesurvey.co.uk/id/7000000000025623,Housing Services,Fees & Charges Income,9002,03/07/2020,5871571,-79.17,REVENUE,Jp Developers Limited,,JPD0001D
North Lincolnshire Council,http://data.ordnancesurvey.co.uk/id/7000000000025623,Housing Services,Fees & Charges Income,9002,03/07/2020,5871731,"-1,115.49",REVENUE,Jp Developers Limited,,JPD0001D
North Lincolnshire Council,http://data.ordnancesurvey.co.uk/id/7000000000025623,Housing Services,Fees & Charges Income,9002,03/07/2020,5871736,-69.77,REVENUE,Jp Developers Limited,,JPD0001D
North Lincolnshire Council,http://data.ordnancesurvey.co.uk/id/7000000000025623,Housing Services,Fees & Charges Income,9002,03/07/2020,5871740,"-3,355.71",REVENUE,Jp Developers Limited,,JPD0001D
North Lincolnshire Council,http://data.ordnancesurvey.co.uk/id/7000000000025623,Housing Services,Fees & Charges Income,9002,10/07/2020,5875159,"-2,407.07",REVENUE,Jp Developers Limited,,JPD0001D
North Lincolnshire Council,http://data.ordnancesurvey.co.uk/id/7000000000025623,Housing Services,Fees & Charges Income,9002,10/07/2020,5875160,-70.78,REVENUE,Jp Developers Limited,,JPD0001D
North Lincolnshire Council,http://data.ordnancesurvey.co.uk/id/7000000000025623,Housing Services,Fees & Charges Income,9002,17/07/2020,5877837,-37.58,REVENUE,Jp Developers Limited,,JPD0001D
North Lincolnshire Council,http://data.ordnancesurvey.co.uk/id/7000000000025623,Housing Services,Fees & Charges Income,9002,17/07/2020,5877839,-915.57,REVENUE,Jp Developers Limited,,JPD0001D
North Lincolnshire Council,http://data.ordnancesurvey.co.uk/id/7000000000025623,Housing Services,Fees & Charges Income,9002,17/07/2020,5877843,"-1,900.85",REVENUE,Jp Developers Limited,,JPD0001D
North Lincolnshire Council,http://data.ordnancesurvey.co.uk/id/7000000000025623,Housing Services,Fees & Charges Income,9002,17/07/2020,5877844,"-1,015.98",REVENUE,Jp Developers Limited,,JPD0001D
North Lincolnshire Council,http://data.ordnancesurvey.co.uk/id/7000000000025623,Housing Services,Fees & Charges Income,9002,17/07/2020,5877846,-63.21,REVENUE,Jp Developers Limited,,JPD0001D
North Lincolnshire Council,http://data.ordnancesurvey.co.uk/id/7000000000025623,Housing Services,Fees & Charges Income,9002,24/07/2020,5880523,-913.1,REVENUE,Jp Developers Limited,,JPD0001D
North Lincolnshire Council,http://data.ordnancesurvey.co.uk/id/7000000000025623,Childrens & Education,Advertising & Publicity,5610,15/07/2020,5876711,336,REVENUE,Jpi Media  Joh0340,11499982,JOH0340H
North Lincolnshire Council,http://data.ordnancesurvey.co.uk/id/7000000000025623,Central Services To Public,Business Support Grants,6090,08/07/2020,5874962,"25,000.00",REVENUE,Jp Leisure Pub Scunthorpe Limited,,CD028460
North Lincolnshire Council,http://data.ordnancesurvey.co.uk/id/7000000000025623,Culture & Related Services,Equipment Purchase,5001,01/07/2020,5871563,548.35,REVENUE,J P Lennard Ltd,750393,LEN0001N
North Lincolnshire Council,http://data.ordnancesurvey.co.uk/id/7000000000025623,Central Services To Public,Business Support Grants,6090,22/07/2020,5880263,"10,000.00",REVENUE,Julian J Hair,,CD028840
North Lincolnshire Council,http://data.ordnancesurvey.co.uk/id/7000000000025623,Fin&Inv I&E,Provisions,5201,08/07/2020,5874364,261.15,REVENUE,J W Young (Butcher) Ltd,1348637,JWY0001Y
North Lincolnshire Council,http://data.ordnancesurvey.co.uk/id/7000000000025623,Childrens & Education,Other Professional Fees,5829,08/07/2020,5873318,633.32,REVENUE,Karen Beer,,BEE0016E
North Lincolnshire Council,http://data.ordnancesurvey.co.uk/id/7000000000025623,Childrens & Education,Other Professional Fees,5829,31/07/2020,5883129,474.99,REVENUE,Karen Beer,,BEE0016E
North Lincolnshire Council,http://data.ordnancesurvey.co.uk/id/7000000000025623,Childrens & Education,Client Transport Costs,6092,08/07/2020,5874245,690,REVENUE,Kaths Kabs,1967063,KAT0001T
North Lincolnshire Council,http://data.ordnancesurvey.co.uk/id/7000000000025623,Childrens & Education,Client Transport Costs,6092,08/07/2020,5874246,398.67,REVENUE,Kaths Kabs,1967063,KAT0001T
North Lincolnshire Council,http://data.ordnancesurvey.co.uk/id/7000000000025623,Childrens & Education,Client Transport Costs,6092,08/07/2020,5874247,"1,228.33",REVENUE,Kaths Kabs,1967063,KAT0001T
North Lincolnshire Council,http://data.ordnancesurvey.co.uk/id/7000000000025623,Childrens & Education,Client Transport Costs,6092,08/07/2020,5874249,976.67,REVENUE,Kaths Kabs,1967063,KAT0001T
North Lincolnshire Council,http://data.ordnancesurvey.co.uk/id/7000000000025623,Childrens & Education,Client Transport Costs,6092,08/07/2020,5874250,"1,143.33",REVENUE,Kaths Kabs,1967063,KAT0001T
North Lincolnshire Council,http://data.ordnancesurvey.co.uk/id/7000000000025623,Childrens & Education,Client Transport Costs,6092,08/07/2020,5874251,640,REVENUE,Kaths Kabs,1967063,KAT0001T
North Lincolnshire Council,http://data.ordnancesurvey.co.uk/id/7000000000025623,Childrens & Education,Client Transport Costs,6092,08/07/2020,5874253,850.33,REVENUE,Kaths Kabs,1967063,KAT0001T
North Lincolnshire Council,http://data.ordnancesurvey.co.uk/id/7000000000025623,Childrens & Education,Client Transport Costs,6092,08/07/2020,5874254,300,REVENUE,Kaths Kabs,1967063,KAT0001T
North Lincolnshire Council,http://data.ordnancesurvey.co.uk/id/7000000000025623,Childrens & Education,Client Transport Costs,6092,22/07/2020,5879456,956.8,REVENUE,Kaths Kabs,1967063,KAT0001T
North Lincolnshire Council,http://data.ordnancesurvey.co.uk/id/7000000000025623,Childrens & Education,Client Transport Costs,6092,22/07/2020,5879458,717.6,REVENUE,Kaths Kabs,1967063,KAT0001T
North Lincolnshire Council,http://data.ordnancesurvey.co.uk/id/7000000000025623,Childrens & Education,Client Transport Costs,6092,22/07/2020,5879461,"1,495.00",REVENUE,Kaths Kabs,1967063,KAT0001T
North Lincolnshire Council,http://data.ordnancesurvey.co.uk/id/7000000000025623,Childrens & Education,Client Transport Costs,6092,22/07/2020,5879465,"1,800.00",REVENUE,Kaths Kabs,1967063,KAT0001T
North Lincolnshire Council,http://data.ordnancesurvey.co.uk/id/7000000000025623,Childrens & Education,Client Transport Costs,6092,22/07/2020,5879466,540.6,REVENUE,Kaths Kabs,1967063,KAT0001T
North Lincolnshire Council,http://data.ordnancesurvey.co.uk/id/7000000000025623,Childrens & Education,Client Transport Costs,6092,22/07/2020,5879468,860,REVENUE,Kaths Kabs,1967063,KAT0001T
North Lincolnshire Council,http://data.ordnancesurvey.co.uk/id/7000000000025623,Central Services To Public,Equipment Purchase,5001,10/07/2020,5875285,500,REVENUE,Kdg Work Wear Ltd,4630104,KDG0001G
North Lincolnshire Council,http://data.ordnancesurvey.co.uk/id/7000000000025623,Planning Services,Payments To Voluntary Orgs,6001,29/07/2020,5882021,"3,650.00",REVENUE,Keadby With Althorpe Parish Council,,KEA0023A
North Lincolnshire Council,http://data.ordnancesurvey.co.uk/id/7000000000025623,Central Services To Public,Business Support Grants,6090,01/07/2020,5872483,"2,500.00",REVENUE,K.E. Autobodies,,CD027520
North Lincolnshire Council,http://data.ordnancesurvey.co.uk/id/7000000000025623,Environmental & Regulatory Svs,"Licenses, Subs & Memberships",5510,15/07/2020,5866662,"1,995.00",REVENUE,Keep Britain Tidy-Eco Schools,3496361,ECO0030O
North Lincolnshire Council,http://data.ordnancesurvey.co.uk/id/7000000000025623,Housing Services,Other Supplies & Services,5799,17/07/2020,5877893,553.66,REVENUE,Kenneth Cousen,,KEN0050N
North Lincolnshire Council,http://data.ordnancesurvey.co.uk/id/7000000000025623,Housing Services,Other Supplies & Services,5799,17/07/2020,5877894,"4,339.98",REVENUE,Kenneth Cousen,,KEN0050N
North Lincolnshire Council,http://data.ordnancesurvey.co.uk/id/7000000000025623,Highways & Transport,Stock Purchases & Adjustments,5030,15/07/2020,5873022,324,REVENUE,Keyline Builders Merchants,42425,KEY0035Y
North Lincolnshire Council,http://data.ordnancesurvey.co.uk/id/7000000000025623,Environmental & Regulatory Svs,Other Supplies & Services,5799,03/07/2020,5871737,639,REVENUE,Key Security (Uk) Ltd,6168252,KEY0017Y
North Lincolnshire Council,http://data.ordnancesurvey.co.uk/id/7000000000025623,Environmental & Regulatory Svs,Other Supplies & Services,5799,03/07/2020,5871739,"1,539.00",REVENUE,Key Security (Uk) Ltd,6168252,KEY0017Y
North Lincolnshire Council,http://data.ordnancesurvey.co.uk/id/7000000000025623,Environmental & Regulatory Svs,Other Supplies & Services,5799,15/07/2020,5876700,300,REVENUE,Key Security (Uk) Ltd,6168252,KEY0017Y
North Lincolnshire Council,http://data.ordnancesurvey.co.uk/id/7000000000025623,Highways & Transport,Other Professional Fees,5829,08/07/2020,5873333,660,REVENUE,Key Security (Uk) Ltd,6168252,KEY0017Y
North Lincolnshire Council,http://data.ordnancesurvey.co.uk/id/7000000000025623,Central Services To Public,Business Support Grants,6090,08/07/2020,5874937,"10,000.00",REVENUE,Keystone Architecture Ltd,,CD028310
North Lincolnshire Council,http://data.ordnancesurvey.co.uk/id/7000000000025623,Childrens & Education,Payments To Private Orgs,6002,03/07/2020,5872696,289.1,REVENUE,Kingsway Consulting Ltd,2808435,KIN0105N
North Lincolnshire Council,http://data.ordnancesurvey.co.uk/id/7000000000025623,Central Services To Public,Business Support Grants,6090,08/07/2020,5874927,"4,000.00",REVENUE,Kirton Couriers Limited,,CD028210
North Lincolnshire Council,http://data.ordnancesurvey.co.uk/id/7000000000025623,Childrens & Education,Payments To Private Orgs,6002,10/07/2020,5872850,"1,200.00",REVENUE,Kmec Scunthorpe,,KIP0010P
North Lincolnshire Council,http://data.ordnancesurvey.co.uk/id/7000000000025623,Central Services To Public,Business Support Grants,6090,29/07/2020,5882896,"10,000.00",REVENUE,Kriss Resturrant,,CD029160
North Lincolnshire Council,http://data.ordnancesurvey.co.uk/id/7000000000025623,Central Services To Public,Business Support Grants,6090,01/07/2020,5872525,"4,000.00",REVENUE,La Petite Salle,,CD027940
North Lincolnshire Council,http://data.ordnancesurvey.co.uk/id/7000000000025623,Environmental & Regulatory Svs,Payments To Private Orgs,6002,22/07/2020,5879193,933,REVENUE,Las Metals,,LAS0020S
North Lincolnshire Council,http://data.ordnancesurvey.co.uk/id/7000000000025623,Culture & Related Services,Other Supplies & Services,5799,10/07/2020,5875014,"1,833.33",REVENUE,Ld Golf Ltd,10458739,LDG0120G
North Lincolnshire Council,http://data.ordnancesurvey.co.uk/id/7000000000025623,Corporate And Democratic Core,"Licenses, Subs & Memberships",5510,22/07/2020,5879209,"6,500.00",REVENUE,Leeds City Council,,LEE0066E
North Lincolnshire Council,http://data.ordnancesurvey.co.uk/id/7000000000025623,Culture & Related Services,Other Professional Fees,5829,17/07/2020,5876692,254.57,REVENUE,Les Mills Fitness Uk Ltd,7880229,MIL0298L
North Lincolnshire Council,http://data.ordnancesurvey.co.uk/id/7000000000025623,Culture & Related Services,Other Professional Fees,5829,17/07/2020,5876694,402.48,REVENUE,Les Mills Fitness Uk Ltd,7880229,MIL0298L
North Lincolnshire Council,http://data.ordnancesurvey.co.uk/id/7000000000025623,Corporate And Democratic Core,Other Professional Fees,5829,17/07/2020,5875951,434.56,REVENUE,Lewis Removals Ltd,5115077,LEW0003W
North Lincolnshire Council,http://data.ordnancesurvey.co.uk/id/7000000000025623,Childrens & Education,Legal Fees,5823,08/07/2020,5872822,924,REVENUE,Lextox,,LEX0011X
North Lincolnshire Council,http://data.ordnancesurvey.co.uk/id/7000000000025623,Central Services To Public,Business Support Grants,6090,01/07/2020,5872453,"10,000.00",REVENUE,Lgj Vehicle Paintwork Services Ltd,,CD027220
North Lincolnshire Council,http://data.ordnancesurvey.co.uk/id/7000000000025623,Childrens & Education,Other Professional Fees,5829,08/07/2020,5873317,800,REVENUE,Liam Fletcher,,FLE0167E
North Lincolnshire Council,http://data.ordnancesurvey.co.uk/id/7000000000025623,Childrens & Education,Other Professional Fees,5829,31/07/2020,5883135,600,REVENUE,Liam Fletcher,,FLE0167E
North Lincolnshire Council,http://data.ordnancesurvey.co.uk/id/7000000000025623,Childrens & Education,Agency Costs,6005,29/07/2020,5881087,"1,150.33",REVENUE,Life Change Care Ltd,,LIF0163F
North Lincolnshire Council,http://data.ordnancesurvey.co.uk/id/7000000000025623,Central Services To Public,Business Support Grants,6090,01/07/2020,5872474,"10,000.00",REVENUE,Lincoln Gardens Pre School Ltd,,CD027430
North Lincolnshire Council,http://data.ordnancesurvey.co.uk/id/7000000000025623,Central Services To Public,Business Support Grants,6090,01/07/2020,5872502,"25,000.00",REVENUE,Lincolnshire Salad Company Limited,,CD027710
North Lincolnshire Council,http://data.ordnancesurvey.co.uk/id/7000000000025623,Central Services To Public,Business Support Grants,6090,24/07/2020,5881052,"10,000.00",REVENUE,Lindsey'S Crowle,,CD029090
North Lincolnshire Council,http://data.ordnancesurvey.co.uk/id/7000000000025623,Central Services To Public,Business Support Grants,6090,24/07/2020,5881050,"10,000.00",REVENUE,Lindseys Pre-Loved Fashion Boutique,,CD029070
North Lincolnshire Council,http://data.ordnancesurvey.co.uk/id/7000000000025623,Central Services To Public,Business Support Grants,6090,24/07/2020,5881051,"10,000.00",REVENUE,Lindsey'S Pre-Loved Fashion & Gifts,,CD029080
North Lincolnshire Council,http://data.ordnancesurvey.co.uk/id/7000000000025623,Corporate And Democratic Core,Other Supplies & Services,5799,10/07/2020,5874668,"1,150.00",REVENUE,Linkedin Ireland Unlimited Company,,LIN0521N
North Lincolnshire Council,http://data.ordnancesurvey.co.uk/id/7000000000025623,Central Services To Public,Business Support Grants,6090,01/07/2020,5872445,"1,000.00",REVENUE,Lion Learners North Lincolnshire,,CD027140
North Lincolnshire Council,http://data.ordnancesurvey.co.uk/id/7000000000025623,Central Services To Public,Business Support Grants,6090,01/07/2020,5872448,"2,000.00",REVENUE,Lion Outside Bars,,CD027170
North Lincolnshire Council,http://data.ordnancesurvey.co.uk/id/7000000000025623,Childrens & Education,Payments To Voluntary Orgs,6001,24/07/2020,5880400,924.75,REVENUE,Little Acorns Pre-School,,LIT0009T
North Lincolnshire Council,http://data.ordnancesurvey.co.uk/id/7000000000025623,Central Services To Public,Business Support Grants,6090,01/07/2020,5872461,"4,500.00",REVENUE,Little Imps Day Care,,CD027300
North Lincolnshire Council,http://data.ordnancesurvey.co.uk/id/7000000000025623,Childrens & Education,Payments To Private Orgs,6002,24/07/2020,5880401,322.03,REVENUE,Little Imps Playgroup,,LIT0035T
North Lincolnshire Council,http://data.ordnancesurvey.co.uk/id/7000000000025623,Childrens & Education,Payments To Private Orgs,6002,03/07/2020,5872698,380.16,REVENUE,Little Owls Pre-School,,LIT0041T
North Lincolnshire Council,http://data.ordnancesurvey.co.uk/id/7000000000025623,Central Services To Public,Business Support Grants,6090,01/07/2020,5872468,"10,000.00",REVENUE,Little Owls (Scunthorpe) Ltd,,CD027370
North Lincolnshire Council,http://data.ordnancesurvey.co.uk/id/7000000000025623,Central Services To Public,Business Support Grants,6090,08/07/2020,5874924,"8,000.00",REVENUE,Little Rascals Pre-School,,CD028180
North Lincolnshire Council,http://data.ordnancesurvey.co.uk/id/7000000000025623,Central Services To Public,Gen Office Exp (Incl Postage),5603,10/07/2020,5873941,320,REVENUE,Lyreco Uk Ltd,442696,LYR0001R
North Lincolnshire Council,http://data.ordnancesurvey.co.uk/id/7000000000025623,Childrens & Education,Cleaning Costs/ Materials,3301,03/07/2020,5871726,257.65,REVENUE,Lyreco Uk Ltd,442696,LYR0001R
North Lincolnshire Council,http://data.ordnancesurvey.co.uk/id/7000000000025623,Corporate And Democratic Core,Gen Office Exp (Incl Postage),5603,10/07/2020,5875330,211.2,REVENUE,Lyreco Uk Ltd,442696,LYR0001R
North Lincolnshire Council,http://data.ordnancesurvey.co.uk/id/7000000000025623,Culture & Related Services,Equipment Purchase,5001,10/07/2020,5875417,596.88,REVENUE,Lyreco Uk Ltd,442696,LYR0001R
North Lincolnshire Council,http://data.ordnancesurvey.co.uk/id/7000000000025623,Culture & Related Services,Gen Office Exp (Incl Postage),5603,10/07/2020,5875417,12.4,REVENUE,Lyreco Uk Ltd,442696,LYR0001R
North Lincolnshire Council,http://data.ordnancesurvey.co.uk/id/7000000000025623,Central Services To Public,Business Support Grants,6090,29/07/2020,5874918,"2,500.00",REVENUE,Mad As A Potter,,CD028120
North Lincolnshire Council,http://data.ordnancesurvey.co.uk/id/7000000000025623,Housing Services,Other Supplies & Services,5799,08/07/2020,5873351,"1,300.00",REVENUE,REDACTED,,REDACTED
North Lincolnshire Council,http://data.ordnancesurvey.co.uk/id/7000000000025623,Highways & Transport,Equipment Purchase,5001,10/07/2020,5843974,472.32,REVENUE,Mallatite Ltd,2621328,MAL0036L
North Lincolnshire Council,http://data.ordnancesurvey.co.uk/id/7000000000025623,Highways & Transport,Equipment Purchase,5001,15/07/2020,5875289,684,REVENUE,Mallatite Ltd,2621328,MAL0036L
North Lincolnshire Council,http://data.ordnancesurvey.co.uk/id/7000000000025623,Highways & Transport,Stock Purchases & Adjustments,5030,01/07/2020,5871721,"3,665.24",REVENUE,Mallatite Ltd,2621328,MAL0036L
North Lincolnshire Council,http://data.ordnancesurvey.co.uk/id/7000000000025623,Central Services To Public,Business Support Grants,6090,08/07/2020,5874933,"1,500.00",REVENUE,Maqs Hackney Carriage,,CD028270
North Lincolnshire Council,http://data.ordnancesurvey.co.uk/id/7000000000025623,Childrens & Education,Payments To Private Orgs,6002,03/07/2020,5872689,"1,321.60",REVENUE,Marie Fenwick,,FEN0095N
North Lincolnshire Council,http://data.ordnancesurvey.co.uk/id/7000000000025623,Housing Services,Other Supplies & Services,5799,17/07/2020,5877360,550,REVENUE,Mark Baker,,MAR0968R
North Lincolnshire Council,http://data.ordnancesurvey.co.uk/id/7000000000025623,Corporate And Democratic Core,Cleaning Services & Contracts,3311,29/07/2020,5881890,325,REVENUE,Marris Cleaning Services,,MAR0378R
North Lincolnshire Council,http://data.ordnancesurvey.co.uk/id/7000000000025623,Childrens & Education,Other Professional Fees,5829,31/07/2020,5883132,"2,100.00",REVENUE,Martin Clarridge,,CLA0690A
North Lincolnshire Council,http://data.ordnancesurvey.co.uk/id/7000000000025623,"Culture,Env,Reg & Planning Cap",Consultants,A087,10/07/2020,5875367,360,CAPITAL,Mason Clark Associates,2537113,MAS0158S
North Lincolnshire Council,http://data.ordnancesurvey.co.uk/id/7000000000025623,Highways & Transport Capital,Consultants,A087,10/07/2020,5875415,"5,591.90",CAPITAL,Mason Clark Associates,2537113,MAS0158S
North Lincolnshire Council,http://data.ordnancesurvey.co.uk/id/7000000000025623,Central Services To Public,Business Support Grants,6090,01/07/2020,5872449,"25,000.00",REVENUE,Mcarthur Agriculture Ltd,,CD027180
North Lincolnshire Council,http://data.ordnancesurvey.co.uk/id/7000000000025623,Central Services To Public,Business Support Grants,6090,01/07/2020,5872542,"10,000.00",REVENUE,Mcarthur Dean Training Ltd,,CD028100
North Lincolnshire Council,http://data.ordnancesurvey.co.uk/id/7000000000025623,Central Services To Public,Business Support Grants,6090,01/07/2020,5872456,"8,000.00",REVENUE,Mces Hire Ltd,,CD027250
North Lincolnshire Council,http://data.ordnancesurvey.co.uk/id/7000000000025623,Central Services To Public,Equipment Purchase,5001,29/07/2020,5881894,693,REVENUE,Md Signs Limited,7734254,MDS0003S
North Lincolnshire Council,http://data.ordnancesurvey.co.uk/id/7000000000025623,Central Services To Public,Equipment Purchase,5001,29/07/2020,5881895,634,REVENUE,Md Signs Limited,7734254,MDS0003S
North Lincolnshire Council,http://data.ordnancesurvey.co.uk/id/7000000000025623,Environmental & Regulatory Svs,Equipment Purchase,5001,29/07/2020,5881889,230,REVENUE,Md Signs Limited,7734254,MDS0003S
North Lincolnshire Council,http://data.ordnancesurvey.co.uk/id/7000000000025623,Environmental & Regulatory Svs,Other Supplies & Services,5799,03/07/2020,5871971,427.15,REVENUE,Md Signs Limited,7734254,MDS0003S
North Lincolnshire Council,http://data.ordnancesurvey.co.uk/id/7000000000025623,Environmental & Regulatory Svs,Other Supplies & Services,5799,03/07/2020,5871972,423.2,REVENUE,Md Signs Limited,7734254,MDS0003S
North Lincolnshire Council,http://data.ordnancesurvey.co.uk/id/7000000000025623,Central Services To Public,Business Support Grants,6090,15/07/2020,5877397,"25,000.00",REVENUE,Medacs Healthcare Plc,,CD028640
North Lincolnshire Council,http://data.ordnancesurvey.co.uk/id/7000000000025623,Central Services To Public,Business Support Grants,6090,01/07/2020,5872455,"7,000.00",REVENUE,Medical Servicing Engineers Ltd,,CD027240
North Lincolnshire Council,http://data.ordnancesurvey.co.uk/id/7000000000025623,Childrens & Education,Payments To Private Orgs,6002,10/07/2020,5875199,"2,250.00",REVENUE,Meeting New Horizons,7605054,MNH0001H
North Lincolnshire Council,http://data.ordnancesurvey.co.uk/id/7000000000025623,Planning Services,Payments To Voluntary Orgs,6001,15/07/2020,5875164,"28,910.00",REVENUE,Meeting New Horizons Cic,,MEE0006E
North Lincolnshire Council,http://data.ordnancesurvey.co.uk/id/7000000000025623,Adult Social Care,Payments To Private Orgs,6002,03/07/2020,5872405,"3,130.48",REVENUE,Mencap,,MEN0244N
North Lincolnshire Council,http://data.ordnancesurvey.co.uk/id/7000000000025623,Adult Social Care,Payments To Private Orgs,6002,31/07/2020,5882811,"3,130.48",REVENUE,Mencap,,MEN0244N
North Lincolnshire Council,http://data.ordnancesurvey.co.uk/id/7000000000025623,Childrens & Education,Legal Fees,5823,17/07/2020,5877910,220,REVENUE,Mendes Investigation Services Ltd,,MEN0044N
North Lincolnshire Council,http://data.ordnancesurvey.co.uk/id/7000000000025623,Central Services To Public,Business Support Grants,6090,15/07/2020,5877392,"25,000.00",REVENUE,Merrick & Day Ltd,,CD028590
North Lincolnshire Council,http://data.ordnancesurvey.co.uk/id/7000000000025623,"Culture,Env,Reg & Planning Cap",Other Costs,A085,22/07/2020,5879355,"13,500.00",CAPITAL,Messingham Village Hall,,MES0004S
North Lincolnshire Council,http://data.ordnancesurvey.co.uk/id/7000000000025623,Highways & Transport,Equipment Purchase,5001,08/07/2020,5873332,"3,528.00",REVENUE,Metric Group Ltd,,MET0006T
North Lincolnshire Council,http://data.ordnancesurvey.co.uk/id/7000000000025623,Highways & Transport,Equipment Purchase,5001,08/07/2020,5873337,458.03,REVENUE,Metric Group Ltd,,MET0006T
North Lincolnshire Council,http://data.ordnancesurvey.co.uk/id/7000000000025623,Highways & Transport,Equipment Purchase,5001,29/07/2020,5880520,511.33,REVENUE,Metric Group Ltd,,MET0006T
North Lincolnshire Council,http://data.ordnancesurvey.co.uk/id/7000000000025623,Central Services To Public,Business Support Grants,6090,01/07/2020,5872443,"2,000.00",REVENUE,Millers Mix,,CD027120
North Lincolnshire Council,http://data.ordnancesurvey.co.uk/id/7000000000025623,Planning Services,Other Supplies & Services,5799,31/07/2020,5883551,"3,350.00",REVENUE,Miss E Scurrah,,SCU0206U
North Lincolnshire Council,http://data.ordnancesurvey.co.uk/id/7000000000025623,Culture & Related Services,Catering Contract,5204,22/07/2020,5877636,733.34,REVENUE,Miss Jaimie Marshall,,JAI0050I
North Lincolnshire Council,http://data.ordnancesurvey.co.uk/id/7000000000025623,Childrens & Education,Payments To Private Orgs,6002,22/07/2020,5879483,"1,300.00",REVENUE,Miss Louise Dykstra,,LOU0150U
North Lincolnshire Council,http://data.ordnancesurvey.co.uk/id/7000000000025623,Environmental & Regulatory Svs,Other Premises Costs,3390,10/07/2020,5875053,750,REVENUE,Mist-Air Environmental,,MIS0021S
North Lincolnshire Council,http://data.ordnancesurvey.co.uk/id/7000000000025623,Adult Social Care,Legal Fees,5823,15/07/2020,5874169,"2,332.00",REVENUE,Mjc Law Ltd,10995817,MJC0032C
North Lincolnshire Council,http://data.ordnancesurvey.co.uk/id/7000000000025623,Highways & Transport,Equipment Maint.& Repair,5003,29/07/2020,5882244,300,REVENUE,Mobile Fleet Wash,6439022,MOB0012B
North Lincolnshire Council,http://data.ordnancesurvey.co.uk/id/7000000000025623,Childrens & Education,Payments To Private Orgs,6002,03/07/2020,5872701,"1,565.10",REVENUE,Moorwell Miracles Ltd,,MOO0120O
North Lincolnshire Council,http://data.ordnancesurvey.co.uk/id/7000000000025623,Childrens & Education,Payments To Private Orgs,6002,15/07/2020,5876681,784.8,REVENUE,Moorwell Miracles Ltd,,MOO0120O
North Lincolnshire Council,http://data.ordnancesurvey.co.uk/id/7000000000025623,Housing Services,Other Supplies & Services,5799,01/07/2020,5871580,"5,460.00",REVENUE,Mortz Property Management Ltd,,MOR0107R
